﻿Directorate,Service,Division,Responsible Unit,Expense Type,Payment Date,Trans No,Net Amount,Supplier Name
Children & Culture,Children's Social Care,Children's and Young People's Safety,FSP Sect 17 - Team 10,Childrens Act Section 17 - Other Childcare Support,01/04/2020,5394491,"1,200.00",Cedar Park Nursery Wolverton
Children & Culture,Children's Social Care,Children's and Young People's Safety,Early Help Central Team,Training Expenses - Staff External Training (UK Based),01/04/2020,5395067,595.00,Interface Enterprises Ltd
Children & Culture,Children's Social Care,Children Looked After,Virtual School PPG,Third Party Payments - Payments to Schools,01/04/2020,5395536,"1,400.00",Arthur Bugler Primary School
Children & Culture,Children's Social Care,Services for young people,Outdoor,Repairs and Maintenance - Responsive - Security,01/04/2020,5398397,"1,860.00",JC Coster (Metalworks) Ltd
Children & Culture,Cultural and Related Services,Open Spaces,Victoria Park,Repairs and Maintenance - Responsive - Repair & Maintenance,01/04/2020,5398798,990.00,JC Coster (Metalworks) Ltd
Children & Culture,Cultural and Related Services,Open Spaces,Mile End Park,Repairs and Maintenance - Responsive - Buildings,01/04/2020,5398799,"3,410.00",JC Coster (Metalworks) Ltd
Children & Culture,Cultural and Related Services,Open Spaces,Parks & Open Spaces Man&Admin,Repairs and Maintenance - Responsive - Buildings,01/04/2020,5398800,420.00,JC Coster (Metalworks) Ltd
Children & Culture,No Service Specified,No Division Specified,Capital-Minor Works (SC),Other External Fees - Other External Fees,01/04/2020,5398850,"2,160.00",Carter Accomodation Ltd
Children & Culture,Children's Social Care,Support Service and Management Costs,Schools Catering,Kitchen Supplies - Food and Beverages,01/04/2020,5399410,781.17,Thomas Ridley & Son Ltd
Children & Culture,Children's Social Care,Support Service and Management Costs,Schools Catering,Kitchen Supplies - Food and Beverages,01/04/2020,5399411,358.70,Thomas Ridley & Son Ltd
Children & Culture,Children's Social Care,Support Service and Management Costs,Schools Catering,Kitchen Supplies - Food and Beverages,01/04/2020,5399412,789.70,Thomas Ridley & Son Ltd
Children & Culture,Children's Social Care,Support Service and Management Costs,Schools Catering,Kitchen Supplies - Food and Beverages,01/04/2020,5399416,810.96,Thomas Ridley & Son Ltd
Children & Culture,Children's Social Care,Support Service and Management Costs,Schools Catering,Kitchen Supplies - Food and Beverages,01/04/2020,5399417,384.31,Thomas Ridley & Son Ltd
Children & Culture,Children's Social Care,Support Service and Management Costs,Schools Catering,Kitchen Supplies - Food and Beverages,01/04/2020,5399418,557.66,Thomas Ridley & Son Ltd
Children & Culture,Children's Social Care,Support Service and Management Costs,Schools Catering,Kitchen Supplies - Food and Beverages,01/04/2020,5399419,436.77,Thomas Ridley & Son Ltd
Children & Culture,Children's Social Care,Support Service and Management Costs,Schools Catering,Kitchen Supplies - Food and Beverages,01/04/2020,5399420,374.19,Thomas Ridley & Son Ltd
Children & Culture,Children's Social Care,Support Service and Management Costs,Schools Catering,Kitchen Supplies - Food and Beverages,01/04/2020,5399421,255.04,Thomas Ridley & Son Ltd
Children & Culture,Children's Social Care,Support Service and Management Costs,Schools Catering,Kitchen Supplies - Food and Beverages,01/04/2020,5399423,916.99,Thomas Ridley & Son Ltd
Children & Culture,Children's Social Care,Support Service and Management Costs,Schools Catering,Kitchen Supplies - Food and Beverages,01/04/2020,5399424,425.25,Thomas Ridley & Son Ltd
Children & Culture,Children's Social Care,Support Service and Management Costs,Schools Catering,Kitchen Supplies - Food and Beverages,01/04/2020,5399425,881.64,Thomas Ridley & Son Ltd
Children & Culture,Children's Social Care,Support Service and Management Costs,Schools Catering,Kitchen Supplies - Food and Beverages,01/04/2020,5399426,439.49,Thomas Ridley & Son Ltd
Children & Culture,Children's Social Care,Support Service and Management Costs,Schools Catering,Kitchen Supplies - Food and Beverages,01/04/2020,5399427,432.08,Thomas Ridley & Son Ltd
Children & Culture,Children's Social Care,Support Service and Management Costs,Schools Catering,Kitchen Supplies - Food and Beverages,01/04/2020,5399429,497.16,Thomas Ridley & Son Ltd
Children & Culture,Children's Social Care,Support Service and Management Costs,Schools Catering,Kitchen Supplies - Food and Beverages,01/04/2020,5399430,723.30,Thomas Ridley & Son Ltd
Children & Culture,Children's Social Care,Support Service and Management Costs,Schools Catering,Kitchen Supplies - Food and Beverages,01/04/2020,5399432,485.00,Thomas Ridley & Son Ltd
Children & Culture,Children's Social Care,Support Service and Management Costs,Sch. Meals A/c - Central Production Unit,Kitchen Supplies - Food and Beverages,01/04/2020,5399433,906.61,Thomas Ridley & Son Ltd
Children & Culture,Children's Social Care,Support Service and Management Costs,Schools Catering,Kitchen Supplies - Food and Beverages,01/04/2020,5399434,473.66,Thomas Ridley & Son Ltd
Children & Culture,Children's Social Care,Support Service and Management Costs,Schools Catering,Kitchen Supplies - Food and Beverages,01/04/2020,5399436,503.75,Thomas Ridley & Son Ltd
Children & Culture,Children's Social Care,Support Service and Management Costs,Schools Catering,Kitchen Supplies - Food and Beverages,01/04/2020,5399437,538.69,Thomas Ridley & Son Ltd
Children & Culture,Children's Social Care,Support Service and Management Costs,Schools Catering,Kitchen Supplies - Food and Beverages,01/04/2020,5399439,596.73,Thomas Ridley & Son Ltd
Children & Culture,Education Services,Early Years,Children Centre Central Team,Third Party Payments - Voluntary Associations,01/04/2020,5399445,"16,054.50",Toyhouse
Children & Culture,Children's Social Care,Commissioning and Social Work,Advice and Assessment Section 17,Childrens Act Section 17 - Interpreting/Translation,01/04/2020,5399696,"3,578.10",Oncall Interpreters LTD
Children & Culture,Children's Social Care,Youth Justice,Youth Justice Team,Services - Professional Fees - Translation Fees,01/04/2020,5399720,406.00,Oncall Interpreters LTD
Children & Culture,Children's Social Care,Service Strategy,FSP Sect 17 - Team 4,Childrens Act Section 17 - Interpreting/Translation,01/04/2020,5399723,"1,370.35",Oncall Interpreters LTD
Children & Culture,Children's Social Care,Service Strategy,"FSP Sect 17 - Team 7		",Services - Professional Fees - Translation Fees,01/04/2020,5399724,"1,136.95",Oncall Interpreters LTD
Children & Culture,Children's Social Care,Service Strategy,"FSP Sect 17 - Team 2		",Childrens Act Section 17 - Interpreting/Translation,01/04/2020,5399725,"1,443.00",Oncall Interpreters LTD
Children & Culture,Children's Social Care,Children's and Young People's Safety,FSP Sect 17 - Team 10,Services - Professional Fees - Translation Fees,01/04/2020,5399726,955.50,Oncall Interpreters LTD
Children & Culture,Children's Social Care,Children Looked After,Leaving Care-UASC,Services - Professional Fees - Translation Fees,01/04/2020,5399736,891.00,Oncall Interpreters LTD
Children & Culture,Children's Social Care,Family Support Services,Disabled Children�s Outreach Service,Childrens Act Section 17 - Interpreting/Translation,01/04/2020,5399737,387.00,Oncall Interpreters LTD
Children & Culture,Children's Social Care,Children Looked After,Virtual School PPG,Third Party Payments - Payments to Schools,01/04/2020,5399748,"1,400.00",BARRINGTON PRIMARY SCHOOL
Children & Culture,Children's Social Care,Children Looked After,S23 Fam Pl P&V-F/Care,Childrens Act Section 23 - Placement Fee,01/04/2020,5399761,"3,286.00",Greater London Fostering LTD
Children & Culture,Children's Social Care,Children Looked After,Virtual School PPG,Agency Staff - Associations,01/04/2020,5399786,"1,274.85",Academics ltd
Children & Culture,Children's Social Care,Children Looked After,Virtual School PPG,Agency Staff - Associations,01/04/2020,5399787,509.88,Academics ltd
Children & Culture,Children's Social Care,Children Looked After,Virtual School PPG,Agency Staff - Associations,01/04/2020,5399788,"1,019.88",Academics ltd
Children & Culture,Children's Social Care,Children Looked After,Virtual School PPG,Agency Staff - Associations,01/04/2020,5399789,764.91,Academics ltd
Children & Culture,Children's Social Care,Children Looked After,Virtual School PPG,Agency Staff - Associations,01/04/2020,5399790,254.97,Academics ltd
Children & Culture,Children's Social Care,Children Looked After,Virtual School PPG,Agency Staff - Associations,01/04/2020,5399791,"1,019.88",Academics ltd
Children & Culture,Children's Social Care,Children Looked After,Virtual School PPG,Agency Staff - Associations,01/04/2020,5399792,"1,019.88",Academics ltd
Children & Culture,Children's Social Care,Support Service and Management Costs,Schools Catering,Kitchen Supplies - Food and Beverages,01/04/2020,5399978,397.13,Thomas Ridley & Son Ltd
Children & Culture,Children's Social Care,Support Service and Management Costs,Schools Catering,Kitchen Supplies - Food and Beverages,01/04/2020,5399979,575.77,Thomas Ridley & Son Ltd
Children & Culture,Children's Social Care,Support Service and Management Costs,Schools Catering,Kitchen Supplies - Food and Beverages,01/04/2020,5399980,396.19,Thomas Ridley & Son Ltd
Children & Culture,Children's Social Care,Support Service and Management Costs,Schools Catering,Kitchen Supplies - Food and Beverages,01/04/2020,5399982,492.18,Thomas Ridley & Son Ltd
Children & Culture,Children's Social Care,Support Service and Management Costs,Schools Catering,Kitchen Supplies - Food and Beverages,01/04/2020,5399983,269.19,Thomas Ridley & Son Ltd
Children & Culture,Children's Social Care,Support Service and Management Costs,Schools Catering,Kitchen Supplies - Food and Beverages,01/04/2020,5399984,659.59,Thomas Ridley & Son Ltd
Children & Culture,Children's Social Care,Support Service and Management Costs,Schools Catering,Kitchen Supplies - Food and Beverages,01/04/2020,5399986,402.02,Thomas Ridley & Son Ltd
Children & Culture,Children's Social Care,Support Service and Management Costs,Schools Catering,Kitchen Supplies - Food and Beverages,01/04/2020,5399987,401.09,Thomas Ridley & Son Ltd
Children & Culture,Children's Social Care,Support Service and Management Costs,Schools Catering,Kitchen Supplies - Food and Beverages,01/04/2020,5399989,332.73,Thomas Ridley & Son Ltd
Children & Culture,Children's Social Care,Support Service and Management Costs,Schools Catering,Kitchen Supplies - Food and Beverages,01/04/2020,5399990,292.41,Thomas Ridley & Son Ltd
Children & Culture,Children's Social Care,Support Service and Management Costs,Schools Catering,Kitchen Supplies - Food and Beverages,01/04/2020,5399992,492.55,Thomas Ridley & Son Ltd
Children & Culture,Children's Social Care,Support Service and Management Costs,Schools Catering,Kitchen Supplies - Food and Beverages,01/04/2020,5399993,416.94,Thomas Ridley & Son Ltd
Children & Culture,Children's Social Care,Support Service and Management Costs,Schools Catering,Kitchen Supplies - Food and Beverages,01/04/2020,5399994,363.69,Thomas Ridley & Son Ltd
Children & Culture,Children's Social Care,Support Service and Management Costs,Schools Catering,Kitchen Supplies - Food and Beverages,01/04/2020,5399995,837.69,Thomas Ridley & Son Ltd
Children & Culture,Children's Social Care,Support Service and Management Costs,Schools Catering,Kitchen Supplies - Food and Beverages,01/04/2020,5399996,312.67,Thomas Ridley & Son Ltd
Children & Culture,Children's Social Care,Support Service and Management Costs,Schools Catering,Kitchen Supplies - Food and Beverages,01/04/2020,5399997,475.79,Thomas Ridley & Son Ltd
Children & Culture,Children's Social Care,Support Service and Management Costs,Schools Catering,Kitchen Supplies - Food and Beverages,01/04/2020,5399999,361.68,Thomas Ridley & Son Ltd
Children & Culture,Children's Social Care,Support Service and Management Costs,Schools Catering,Kitchen Supplies - Food and Beverages,01/04/2020,5400001,392.69,Thomas Ridley & Son Ltd
Children & Culture,Children's Social Care,Support Service and Management Costs,Schools Catering,Kitchen Supplies - Food and Beverages,01/04/2020,5400002,286.40,Thomas Ridley & Son Ltd
Children & Culture,Children's Social Care,Support Service and Management Costs,Schools Catering,Kitchen Supplies - Food and Beverages,01/04/2020,5400003,"1,033.09",Thomas Ridley & Son Ltd
Children & Culture,Children's Social Care,Support Service and Management Costs,Schools Catering,Kitchen Supplies - Food and Beverages,01/04/2020,5400004,370.91,Thomas Ridley & Son Ltd
Children & Culture,Children's Social Care,Support Service and Management Costs,Schools Catering,Kitchen Supplies - Food and Beverages,01/04/2020,5400005,574.74,Thomas Ridley & Son Ltd
Children & Culture,Children's Social Care,Support Service and Management Costs,Schools Catering,Kitchen Supplies - Food and Beverages,01/04/2020,5400007,500.57,Thomas Ridley & Son Ltd
Children & Culture,Children's Social Care,Support Service and Management Costs,Schools Catering,Kitchen Supplies - Food and Beverages,01/04/2020,5400009,385.46,Thomas Ridley & Son Ltd
Children & Culture,Cultural and Related Services,Recreation & Sport,GLL Sports Centres,Payments to Private Contractors - Minor Works,01/04/2020,5400211,"30,920.00",Greenwich Leisure LTD
Children & Culture,Education Services,Other Strategic Functions,Alternative Provision,Third Party Payments - Payments to Schools,01/04/2020,5400375,"3,000.00",BOW SCHOOL
Children & Culture,Education Services,Other Strategic Functions,Alternative Provision,Third Party Payments - Payments to Schools,01/04/2020,5400376,"3,000.00",BOW SCHOOL
Children & Culture,Education Services,Other Strategic Functions,Alternative Provision,Third Party Payments - Payments to Schools,01/04/2020,5400377,"3,000.00",BOW SCHOOL
Children & Culture,Education Services,Other Strategic Functions,Alternative Provision,Third Party Payments - Payments to Schools,01/04/2020,5400378,"3,000.00",George Green School
Children & Culture,Education Services,Other Strategic Functions,Alternative Provision,Third Party Payments - Payments to Schools,01/04/2020,5400381,"3,000.00",Oakland School
Children & Culture,Children's Social Care,Family Support Services,CNN Pool: Joint Family Support,Services - Professional Fees - Translation Fees,01/04/2020,5403130,"1,907.82",DA Languages Ltd
Children & Culture,No Service Specified,No Division Specified,Capital-Minor Works (SC),Other External Fees - Consultants Fees,01/04/2020,5403172,"1,095.00",Ground Engineering Ltd
Children & Culture,Cultural and Related Services,Open Spaces,Parks & Open Spaces Man&Admin,Grounds Maintenance - Contract - Horticultural Maintenance,01/04/2020,5403630,600.00,Lubbe & Sons (Bulbs) Ltd
Children & Culture,Cultural and Related Services,Culture & Heritage,Arts-Park Events,Events & Exhibition Supplies,01/04/2020,5403632,"2,387.65",A P Security (North) LTD
Children & Culture,Children's Social Care,Children Looked After,S23-Other-Mother & Baby Unit,Childrens Act Section 23 - Placement Fee,01/04/2020,5403648,"9,528.53",Real Life
Children & Culture,Children's Social Care,Children Looked After,S23-Other-Semi-Ind. Unit,Childrens Act Section 23 - Placement Fee,01/04/2020,5403649,"4,039.12",Real Life
Children & Culture,Children's Social Care,Service Strategy,FSP Sect 17 - Team 5,Services - Professional Fees - Translation Fees,01/04/2020,5403880,"1,155.50",Oncall Interpreters LTD
Children & Culture,Children's Social Care,Family Support Services,CNN Pool: Joint Family Support,Social Care - Homecare,01/04/2020,5403900,"2,000.00",Explore Independence Ltd
Children & Culture,Children's Social Care,Children Looked After,S23 Fam Pl P&V-F/Care,Childrens Act Section 23 - Non-Contact Taxi Costs,01/04/2020,5407973,"1,950.00",Healthcare and Transport Services Group Ltd
Children & Culture,Children's Social Care,Children Looked After,S23 Fam Pl P&V-F/Care,Childrens Act Section 23 - Non-Contact Taxi Costs,01/04/2020,5407976,"2,470.00",Healthcare and Transport Services Group Ltd
Children & Culture,Children's Social Care,Service Strategy,Child Care M & A,Training Expenses - Staff External Training (UK Based),01/04/2020,5408194,"3,934.71",Open Door Adventure limited
Children & Culture,Children's Social Care,Service Strategy,Child Care M & A,Services - Professional Fees - Legal Fees/Expenses,01/04/2020,5408437,"22,050.00",4 Paper Buildings (Client Account)
Children & Culture,Children's Social Care,Other Children's and Family Services,Permanancy and Adoption Support Team 1,Subscriptions - Associations,01/04/2020,5408443,"4,995.54",Post-Adoption Centre
Children & Culture,Education Services,Other Strategic Functions,Special Education Needs DSG,Third Party Payments - Other Agencies,01/04/2020,5408827,"4,500.00",Mime Consulting Ltd
Children & Culture,Education Services,Other Strategic Functions,Special Education Needs DSG,Third Party Payments - Payments to Schools,01/04/2020,5410675,"4,995.43",Hillcrest Care Ltd
Children & Culture,Children's Social Care,Children Looked After,S23-Resi-P&V/OLA-Boarding Sch,Childrens Act Section 23 - Placement Fee,01/04/2020,5410675,"11,656.01",Hillcrest Care Ltd
Children & Culture,Cultural and Related Services,Open Spaces,Victoria Park,Contract Cleaning,01/04/2020,5410881,-605.40,Wetton Cleaning Services LTD
Children & Culture,Children's Social Care,Children's and Young People's Safety,Child Protection Mgt & Admin,Education & Training - Non Staff Tuition Fees,01/04/2020,5411471,423.00,Open College Network London Region
Children & Culture,Education Services,Services to Young People and Other Community Learners,Holiday Childcare,Meeting Expenses,01/04/2020,5411474,257.00,the royal foundation of st katharine
Children & Culture,Children's Social Care,Children Looked After,Virtual School PPG,Third Party Payments - Payments to Schools,01/04/2020,5411501,450.00,St Johns School
Children & Culture,Children's Social Care,Service Strategy,Exploitation Team,Third Party Payments - Voluntary Associations,01/04/2020,5411521,"13,700.00",St Giles Trust
Children & Culture,Children's Social Care,Children Looked After,S23-Other-Semi-Ind. Unit,Childrens Act Section 23 - Interpreting/Translation,01/04/2020,5411532,"2,355.45",Oncall Interpreters LTD
Children & Culture,Education Services,Other Strategic Functions,Tower Hamlets Education Partnership,Training Expenses - Staff External Training (UK Based),01/04/2020,5411546,"300,000.00",Tower Hamlets Education Partnership
Children & Culture,Education Services,Other Strategic Functions,Tower Hamlets Education Partnership,Training Expenses - Staff External Training (UK Based),01/04/2020,5411547,"250,000.00",Tower Hamlets Education Partnership
Children & Culture,Education Services,Other Strategic Functions,Music Trading Account,Payments to Private Contractors - General Contractors,01/04/2020,5411560,335.37,Redacted Section 40 FOI Act
Children & Culture,Children's Social Care,Children Looked After,S23 Fam Pl P&V-F/Care,Childrens Act Section 23 - Placement Fee,01/04/2020,5411584,"2,494.29",Sunbeam Fostering Agency Ltd
Children & Culture,Children's Social Care,Children Looked After,S23 Fam Pl P&V-F/Care,Childrens Act Section 23 - Placement Fee,01/04/2020,5411585,"2,494.29",Sunbeam Fostering Agency Ltd
Children & Culture,Children's Social Care,Children Looked After,S23 Fam Pl P&V-F/Care,Childrens Act Section 23 - Placement Fee,01/04/2020,5411586,"2,494.29",Sunbeam Fostering Agency Ltd
Children & Culture,Children's Social Care,Children Looked After,S23 Fam Pl P&V-F/Care,Childrens Act Section 23 - Placement Fee,01/04/2020,5411587,"2,411.14",Sunbeam Fostering Agency Ltd
Children & Culture,Children's Social Care,Children Looked After,S23 Fam Pl P&V-F/Care,Childrens Act Section 23 - Placement Fee,01/04/2020,5411588,"2,411.14",Sunbeam Fostering Agency Ltd
Children & Culture,Education Services,Other Strategic Functions,Music Trading Account,Third Party Payments - Voluntary Associations,01/04/2020,5411591,"2,500.00",CITY OF LONDON SINFONIA
Children & Culture,Children's Social Care,Support Service and Management Costs,Schools Catering,Kitchen Supplies - Food and Beverages,01/04/2020,5411626,-301.96,Thomas Ridley & Son Ltd
Children & Culture,Children's Social Care,Other Children's and Family Services,Adoption Support Fund,Medical Requisites,01/04/2020,5411702,"1,200.00",The Anna Freud Centre
Children & Culture,Children's Social Care,Other Children's and Family Services,Adoption Support Fund,Medical Requisites,01/04/2020,5411703,300.00,The Anna Freud Centre
Children & Culture,Education Services,Other Strategic Functions,Schools Library,Services - Professional Fees - Design Fees,01/04/2020,5411709,"3,750.00",Authors Aloud
Children & Culture,Children's Social Care,Children Looked After,S23 Fam Pl P&V-F/Care,Childrens Act Section 23 - Placement Fee,01/04/2020,5411770,784.00,Swiis Foster Care Limited
Children & Culture,Children's Social Care,Children's and Young People's Safety,Child Protection Mgt & Admin,Training Expenses - Staff External Training (UK Based),01/04/2020,5411780,"1,300.00",Redacted Section 40 FOI Act
Children & Culture,Cultural and Related Services,Open Spaces,Parks & Open Spaces Man&Admin,Repairs and Maintenance - Responsive - Buildings,01/04/2020,5411801,"1,000.00",J&L Coster (Drainage) Ltd
Children & Culture,Education Services,Other Strategic Functions,Schools Library,Comms - Courier,01/04/2020,5411818,555.00,Ram Transport LTD
Children & Culture,Children's Social Care,Family Support Services,IPST S17 NRPF,Childrens Act Section 17 - Food Grants,01/04/2020,5411834,"5,324.55",METROPOLITAN & CROWN
Children & Culture,Children's Social Care,Family Support Services,IPST S17 NRPF,Childrens Act Section 17 - Food Grants,01/04/2020,5411835,"6,124.57",METROPOLITAN & CROWN
Children & Culture,Children's Social Care,Family Support Services,IPST S17 NRPF,Childrens Act Section 17 - Food Grants,01/04/2020,5411836,"3,994.29",METROPOLITAN & CROWN
Children & Culture,Children's Social Care,Family Support Services,IPST S17 NRPF,Childrens Act Section 17 - Other Placements Bed & Breakfast,01/04/2020,5411837,"13,314.29",METROPOLITAN & CROWN
Children & Culture,Children's Social Care,Family Support Services,IPST S17 NRPF,Childrens Act Section 17 - Other Placements Bed & Breakfast,01/04/2020,5411838,"10,684.71",METROPOLITAN & CROWN
Children & Culture,Children's Social Care,Other Children's and Family Services,Permanancy and Adoption Support Team 1,Newspapers and Magazines - General Purchases,01/04/2020,5411892,450.00,New Family Social
Children & Culture,Education Services,Services to Young People and Other Community Learners,Holiday Childcare,Training Expenses - Staff Internal Training,01/04/2020,5411910,"3,000.00",Safe and Sound
Children & Culture,Education Services,Services to Young People and Other Community Learners,Holiday Childcare,Training Expenses - Staff Internal Training,01/04/2020,5411912,500.00,Play England
Children & Culture,Children's Social Care,Family Support Services,CNN Pool: Children Direct Paym,Social Care - Direct Payments,01/04/2020,5411956,"11,730.00",DH TOWER HAMLETS
Children & Culture,Education Services,Other Strategic Functions,SEN External Travel,Non Staff Transport Costs - Reimbursement,01/04/2020,5411959,500.00,Mile End Car Hire Limited
Children & Culture,Education Services,Other Strategic Functions,SEN External Travel,Non Staff Transport Costs - Reimbursement,01/04/2020,5411960,"2,250.00",Mile End Car Hire Limited
Children & Culture,Education Services,Other Strategic Functions,SEN External Travel,Non Staff Transport Costs - Reimbursement,01/04/2020,5411961,"3,120.00",Mile End Car Hire Limited
Children & Culture,Education Services,Other Strategic Functions,SEN External Travel,Non Staff Transport Costs - Reimbursement,01/04/2020,5411962,"1,625.00",Mile End Car Hire Limited
Children & Culture,Education Services,Other Strategic Functions,SEN External Travel,Non Staff Transport Costs - Reimbursement,01/04/2020,5411963,"2,160.00",Mile End Car Hire Limited
Children & Culture,Education Services,Other Strategic Functions,SEN External Travel,Non Staff Transport Costs - Reimbursement,01/04/2020,5411964,"1,800.00",Mile End Car Hire Limited
Children & Culture,Education Services,Other Strategic Functions,SEN External Travel,Non Staff Transport Costs - Reimbursement,01/04/2020,5411965,"2,250.00",Mile End Car Hire Limited
Children & Culture,Education Services,Other Strategic Functions,Schools Library,Services - Professional Fees - Design Fees,01/04/2020,5411972,"9,000.00",Authors Aloud
Children & Culture,Children's Social Care,Children's and Young People's Safety,Early Help Central Team,Training Expenses - Staff External Training (UK Based),01/04/2020,5411976,595.00,Interface Enterprises Ltd
Children & Culture,Children's Social Care,Children Looked After,S23-Other-Semi-Ind. Unit,Childrens Act Section 23 - Placement Fee,01/04/2020,5411980,"3,759.99",Heartwood Outreach Services Ltd
Children & Culture,Children's Social Care,Children Looked After,Virtual School PPG,Education & Training - Non Staff Tuition Fees,01/04/2020,5412107,"1,200.00",Anchor Teaching Ltd
Children & Culture,Education Services,Other Strategic Functions,Special Education Needs DSG,Services - Professional Fees - Training,01/04/2020,5412116,"4,063.08",UK Behaviour Analysis & Research Group CIC
Children & Culture,Education Services,Other Strategic Functions,Special Education Needs DSG,Third Party Payments - Payments to Schools,01/04/2020,5412129,"15,214.64",Hesley Group Limited
Children & Culture,Children's Social Care,Children Looked After,S23-Resi-P&V/OLA-Boarding Sch,Childrens Act Section 23 - Placement Fee,01/04/2020,5412129,"15,214.64",Hesley Group Limited
Children & Culture,Children's Social Care,Children Looked After,S23-Other-Semi-Ind. Unit,Childrens Act Section 23 - Placement Fee,01/04/2020,5412141,"14,023.55",Harvest Care Group Limited
Children & Culture,Children's Social Care,Children Looked After,S23-Other-Semi-Ind. Unit,Childrens Act Section 23 - Placement Fee,01/04/2020,5412142,"14,023.55",Harvest Care Group Limited
Children & Culture,Education Services,Other Strategic Functions,Alternative Provision,Third Party Payments - Contingencies,01/04/2020,5412151,"4,620.00",Redbridge Alternative Provision
Children & Culture,Children's Social Care,Family Support Services,IPST S17 NRPF,Childrens Act Section 17 - Other Placements Bed & Breakfast,01/04/2020,5412156,"1,706.24",Atlantic Lodge
Children & Culture,Children's Social Care,Service Strategy,FSP Sect 17 - Team 1,Social Care - Day Care,01/04/2020,5412157,"2,700.00",HAMLETTS LTD
Children & Culture,Cultural and Related Services,Culture & Heritage,Arts-Park Events,Events & Exhibition Supplies,01/04/2020,5412160,259.68,A P Security (North) LTD
Children & Culture,Children's Social Care,Services for young people,A Team Arts,Educational/Training Supplies - Curriculum Visits/Activities,01/04/2020,5412162,490.00,Trinity College
Children & Culture,Children's Social Care,Children Looked After,Leaving Care-UASC,Leaving Care Financial Assistance - Reg Plan Maint L-Allow,01/04/2020,5412204,256.86,Pangea Support Services
Children & Culture,Children's Social Care,Children Looked After,Leaving Care-UASC,Leaving Care Financial Assistance - Supp Accom/Hous Rents,01/04/2020,5412204,"1,107.14",Pangea Support Services
Children & Culture,Children's Social Care,Children Looked After,Leaving Care-UASC,Leaving Care Financial Assistance - Supp Accom/Hous Rents,01/04/2020,5412205,980.29,Pangea Support Services
Children & Culture,Children's Social Care,Support Service and Management Costs,Schools Catering,Kitchen Supplies - Food and Beverages,01/04/2020,5412257,-574.70,Thomas Ridley & Son Ltd
Children & Culture,Education Services,Other Strategic Functions,SEN External Travel,Non Staff Transport Costs - Reimbursement,01/04/2020,5412393,"1,260.00",Mile End Car Hire Limited
Children & Culture,Children's Social Care,Services for young people,Youth Service Management,Room Hire,01/04/2020,5412407,289.00,City Of London Corporation
Children & Culture,Children's Social Care,Service Strategy,Child Care M & A,Meeting Expenses,01/04/2020,5412422,822.00,the royal foundation of st katharine
Children & Culture,Children's Social Care,Children's and Young People's Safety,Early Help Central Team,Education & Training - Non Staff Tuition Fees,01/04/2020,5412425,941.18,CAPITA BUSINESS SERVICES LTD
Children & Culture,Children's Social Care,Children's and Young People's Safety,Early Help Central Team,Education & Training - Non Staff Tuition Fees,01/04/2020,5412426,686.97,CAPITA BUSINESS SERVICES LTD
Children & Culture,Children's Social Care,Children's and Young People's Safety,Early Help Central Team,Education & Training - Non Staff Tuition Fees,01/04/2020,5412427,686.97,CAPITA BUSINESS SERVICES LTD
Children & Culture,Children's Social Care,Children's and Young People's Safety,Early Help Central Team,Education & Training - Non Staff Tuition Fees,01/04/2020,5412428,"1,373.94",CAPITA BUSINESS SERVICES LTD
Children & Culture,Children's Social Care,Children's and Young People's Safety,Early Help Central Team,Education & Training - Non Staff Tuition Fees,01/04/2020,5412429,"1,373.94",CAPITA BUSINESS SERVICES LTD
Children & Culture,Education Services,Other Strategic Functions,High Needs FE Colleges,Third Party Payments - SEN Top Up Funding,01/04/2020,5412435,"61,801.84",Canary Wharf College
Children & Culture,Education Services,Other Strategic Functions,High Needs FE Colleges,Third Party Payments - SEN Top Up Funding,01/04/2020,5412435,"37,809.37",Canary Wharf College
Children & Culture,Education Services,Other Strategic Functions,High Needs FE Colleges,Third Party Payments - SEN Top Up Funding,01/04/2020,5412435,"109,806.79",Canary Wharf College
Children & Culture,Education Services,Other Strategic Functions,Non-Statemented Ed.Placemts,Third Party Payments - Payments to Schools,01/04/2020,5412445,"4,722.86",Potton Homes Limited
Children & Culture,Children's Social Care,Children Looked After,S23-Resi-P&V/OLA-Child Home,Childrens Act Section 23 - Placement Fee,01/04/2020,5412445,"11,020.00",Potton Homes Limited
Children & Culture,Children's Social Care,Children Looked After,S23-Resi-P&V/OLA-Child Home,Childrens Act Section 23 - Placement Fee,01/04/2020,5412461,"26,150.71",Bryn Melyn Care Ltd
Children & Culture,Children's Social Care,Children Looked After,S23-Resi-P&V/OLA-Child Home,Childrens Act Section 23 - Placement Fee,01/04/2020,5412462,"6,522.14",Bryn Melyn Care Ltd
Children & Culture,Children's Social Care,Children Looked After,S23-Resi-P&V/OLA-Child Home,Childrens Act Section 23 - Placement Fee,01/04/2020,5412463,"24,463.57",Bryn Melyn Care Ltd
Children & Culture,Children's Social Care,Children Looked After,S23-Resi-P&V/OLA-Child Home,Childrens Act Section 23 - Placement Fee,01/04/2020,5412464,"7,089.29",Bryn Melyn Care Ltd
Children & Culture,Education Services,Other Strategic Functions,Special Education Needs DSG,Third Party Payments - Nursing Care,01/04/2020,5412465,"7,280.57",Bryn Melyn Care Ltd
Children & Culture,Children's Social Care,Children Looked After,S23-Other-Semi-Ind. Unit,Childrens Act Section 23 - Placement Fee,01/04/2020,5412465,"16,988.00",Bryn Melyn Care Ltd
Children & Culture,Children's Social Care,Children Looked After,S23-Resi-P&V/OLA-Child Home,Childrens Act Section 23 - Placement Fee,01/04/2020,5412506,"18,378.57",Care Focus Ltd
Children & Culture,Children's Social Care,Children Looked After,S23-Other-Semi-Ind. Unit,Childrens Act Section 23 - Placement Fee,01/04/2020,5412516,"3,040.00",Pathfinders Care Services
Children & Culture,Children's Social Care,Children Looked After,S23-Resi-P&V/OLA-Child Home,Childrens Act Section 23 - Placement Fee,01/04/2020,5412520,"9,600.00",Blossom Care Group Limited
Children & Culture,Cultural and Related Services,Open Spaces,Parks & Open Spaces Man&Admin,Grounds Maintenance - Contract - Horticultural Maintenance,01/04/2020,5412528,400.00,Lubbe & Sons (Bulbs) Ltd
Children & Culture,No Service Specified,No Division Specified,Capital-Minor Works (SC),Other External Fees - Consultants Fees,01/04/2020,5412574,"6,080.00",Macegreen Consulting Ltd
Children & Culture,No Service Specified,No Division Specified,Capital-Minor Works (SC),Other External Fees - Consultants Fees,01/04/2020,5412575,"6,340.00",Macegreen Consulting Ltd
Children & Culture,Education Services,Other Strategic Functions,Schools Library,Educational/Training Supplies - Books,01/04/2020,5412608,"2,098.40",Edusentials Limited
Children & Culture,Children's Social Care,Youth Justice,Youth Justice Team,Services - Professional Fees - Legal Fees/Expenses,01/04/2020,5412618,350.00,UNIONLINE
Children & Culture,Children's Social Care,Family Support Services,CNN Pool: Joint Family Support,Social Care - Homecare,01/04/2020,5413253,"74,492.66",APASENTH
Children & Culture,Children's Social Care,Youth Justice,YJB-Core,Social Care - Nursing Care,01/04/2020,5413275,"2,800.00",NSPCC
Children & Culture,Children's Social Care,Children Looked After,S23-Resi-P&V/OLA-Child Home,Childrens Act Section 23 - Placement Fee,01/04/2020,5413335,"-3,374.29",Bryn Melyn Care Ltd
Children & Culture,Children's Social Care,Service Strategy,"FSP Sect 17 - Team 2		",Childrens Act Section 17 - Interpreting/Translation,03/04/2020,5383080,"1,301.95",Oncall Interpreters LTD
Children & Culture,Children's Social Care,Support Service and Management Costs,Sch. Meals A/c - St. John's,Kitchen Supplies - Catering Equipment,03/04/2020,5399622,820.22,W V Howe LTD
Children & Culture,Children's Social Care,Children Looked After,Virtual School PPG,Third Party Payments - Payments to Schools,03/04/2020,5399626,700.00,Brampton Primary School
Children & Culture,Children's Social Care,Support Service and Management Costs,Swanlea,Kitchen Supplies - Food and Beverages,03/04/2020,5400036,315.11,Prescott-Thomas LTD.
Children & Culture,Children's Social Care,Service Strategy,FSP Sect 17 - Team 4,Childrens Act Section 17 - Non-Contact Taxi Costs,03/04/2020,5400077,295.00,Mile End Car Hire Limited
Children & Culture,Education Services,Early Years,SSEYCG Development Staffing,Educational/Training Supplies - Books,03/04/2020,5400089,"7,120.00",EARLY EDUCATION
Children & Culture,Cultural and Related Services,Culture & Heritage,Brady Centre Resource Bank,Audio/Video Supplies,03/04/2020,5400188,"24,727.00","Clarity in Sound, Light & Vision Ltd"
Children & Culture,Children's Social Care,Support Service and Management Costs,Schools Catering,Kitchen Supplies - Food and Beverages,03/04/2020,5400296,"1,299.92",Thomas Ridley & Son Ltd
Children & Culture,Children's Social Care,Support Service and Management Costs,Schools Catering,Kitchen Supplies - Food and Beverages,03/04/2020,5400299,428.44,Thomas Ridley & Son Ltd
Children & Culture,Children's Social Care,Support Service and Management Costs,Schools Catering,Kitchen Supplies - Food and Beverages,03/04/2020,5400300,331.19,Thomas Ridley & Son Ltd
Children & Culture,Children's Social Care,Support Service and Management Costs,Schools Catering,Kitchen Supplies - Food and Beverages,03/04/2020,5400302,"1,101.03",Thomas Ridley & Son Ltd
Children & Culture,Children's Social Care,Support Service and Management Costs,Schools Catering,Kitchen Supplies - Food and Beverages,03/04/2020,5400303,839.06,Thomas Ridley & Son Ltd
Children & Culture,Children's Social Care,Support Service and Management Costs,Schools Catering,Kitchen Supplies - Food and Beverages,03/04/2020,5400304,311.59,Thomas Ridley & Son Ltd
Children & Culture,Children's Social Care,Support Service and Management Costs,Schools Catering,Kitchen Supplies - Food and Beverages,03/04/2020,5400305,346.78,Thomas Ridley & Son Ltd
Children & Culture,Children's Social Care,Support Service and Management Costs,Sch. Meals A/c - Central Production Unit,Kitchen Supplies - Food and Beverages,03/04/2020,5400306,"2,190.41",Thomas Ridley & Son Ltd
Children & Culture,Children's Social Care,Support Service and Management Costs,Schools Catering,Kitchen Supplies - Food and Beverages,03/04/2020,5400308,764.11,Thomas Ridley & Son Ltd
Children & Culture,Children's Social Care,Support Service and Management Costs,Schools Catering,Kitchen Supplies - Food and Beverages,03/04/2020,5400309,809.58,Thomas Ridley & Son Ltd
Children & Culture,Children's Social Care,Support Service and Management Costs,Schools Catering,Kitchen Supplies - Food and Beverages,03/04/2020,5400310,563.18,Thomas Ridley & Son Ltd
Children & Culture,Children's Social Care,Support Service and Management Costs,Schools Catering,Kitchen Supplies - Food and Beverages,03/04/2020,5400311,374.45,Thomas Ridley & Son Ltd
Children & Culture,Children's Social Care,Support Service and Management Costs,Schools Catering,Kitchen Supplies - Food and Beverages,03/04/2020,5400313,257.57,Thomas Ridley & Son Ltd
Children & Culture,Children's Social Care,Support Service and Management Costs,Schools Catering,Kitchen Supplies - Food and Beverages,03/04/2020,5400314,781.48,Thomas Ridley & Son Ltd
Children & Culture,Education Services,Other Strategic Functions,Alternative Provision,Third Party Payments - Payments to Schools,03/04/2020,5400380,"3,000.00",Mulberry School for Girls
Children & Culture,Education Services,Early Years,Children Centre Central Team,Medical Requisites,03/04/2020,5402077,264.88,NHS SUPPLY CHAIN
Children & Culture,Children's Social Care,Support Service and Management Costs,Sch. Meals A/c - Bow School,Kitchen Supplies - Food and Beverages,03/04/2020,5402087,"1,142.55",Tiffin Sandwiches
Children & Culture,Children's Social Care,Support Service and Management Costs,Sch. Meals A/c - C.F.S. Upper (Harley Grove),Kitchen Supplies - Food and Beverages,03/04/2020,5402088,599.40,Tiffin Sandwiches
Children & Culture,Children's Social Care,Support Service and Management Costs,Sch. Meals A/c - St. Paul's Way Comm. Trust,Kitchen Supplies - Food and Beverages,03/04/2020,5402090,777.60,Tiffin Sandwiches
Children & Culture,Children's Social Care,Support Service and Management Costs,Sch. Meals A/c - Stepney Green,Kitchen Supplies - Food and Beverages,03/04/2020,5402091,291.60,Tiffin Sandwiches
Children & Culture,Children's Social Care,Support Service and Management Costs,Sch. Meals A/c - Morpeth,Kitchen Supplies - Food and Beverages,03/04/2020,5402093,"1,105.65",Tiffin Sandwiches
Children & Culture,Children's Social Care,Support Service and Management Costs,"Mulberry Caf�		",Kitchen Supplies - Food and Beverages,03/04/2020,5402094,336.54,Tiffin Sandwiches
Children & Culture,Children's Social Care,Children Looked After,Virtual School PPG,Training Expenses - Staff External Training (UK Based),03/04/2020,5403586,598.00,National Association of Virtual Heads
Children & Culture,Children's Social Care,Children Looked After,Virtual School PPG,Third Party Payments - Payments to Schools,03/04/2020,5403724,545.00,Brentwood Ursuline Convent High School
Children & Culture,Children's Social Care,Children Looked After,Virtual School PPG,Third Party Payments - Payments to Schools,03/04/2020,5403725,560.00,Brentwood Ursuline Convent High School
Children & Culture,Children's Social Care,Children Looked After,Virtual School PPG,Third Party Payments - Payments to Schools,03/04/2020,5403726,700.00,Brentwood Ursuline Convent High School
Children & Culture,Education Services,Early Years,Chrisp St,Educational/Training Supplies - Arts & Crafts,03/04/2020,5403924,597.60,Wesco UK
Children & Culture,Cultural and Related Services,Culture & Heritage,Filming,Subscriptions - Associations,03/04/2020,5404237,960.00,Canvas Events Ltd
Children & Culture,Children's Social Care,Support Service and Management Costs,Schools Catering,Kitchen Supplies - Food and Beverages,03/04/2020,5404420,374.96,William White Meats Ltd
Children & Culture,Children's Social Care,Support Service and Management Costs,Schools Catering,Kitchen Supplies - Food and Beverages,03/04/2020,5404423,277.16,William White Meats Ltd
Children & Culture,Children's Social Care,Support Service and Management Costs,Schools Catering,Kitchen Supplies - Food and Beverages,03/04/2020,5404427,299.56,William White Meats Ltd
Children & Culture,Children's Social Care,Support Service and Management Costs,Schools Catering,Kitchen Supplies - Food and Beverages,03/04/2020,5404433,255.53,William White Meats Ltd
Children & Culture,Children's Social Care,Support Service and Management Costs,Schools Catering,Kitchen Supplies - Food and Beverages,03/04/2020,5404435,475.76,William White Meats Ltd
Children & Culture,Children's Social Care,Support Service and Management Costs,Schools Catering,Kitchen Supplies - Food and Beverages,03/04/2020,5404437,431.15,William White Meats Ltd
Children & Culture,Children's Social Care,Support Service and Management Costs,Schools Catering,Kitchen Supplies - Food and Beverages,03/04/2020,5404440,461.85,William White Meats Ltd
Children & Culture,Children's Social Care,Support Service and Management Costs,Schools Catering,Kitchen Supplies - Food and Beverages,03/04/2020,5404441,255.82,William White Meats Ltd
Children & Culture,Children's Social Care,Support Service and Management Costs,Schools Catering,Kitchen Supplies - Food and Beverages,03/04/2020,5404443,914.30,William White Meats Ltd
Children & Culture,Children's Social Care,Support Service and Management Costs,Schools Catering,Kitchen Supplies - Food and Beverages,03/04/2020,5407845,306.91,William White Meats Ltd
Children & Culture,Children's Social Care,Support Service and Management Costs,Schools Catering,Kitchen Supplies - Food and Beverages,03/04/2020,5407847,424.39,William White Meats Ltd
Children & Culture,Children's Social Care,Support Service and Management Costs,Schools Catering,Kitchen Supplies - Food and Beverages,03/04/2020,5407850,289.39,William White Meats Ltd
Children & Culture,Children's Social Care,Support Service and Management Costs,Schools Catering,Kitchen Supplies - Food and Beverages,03/04/2020,5407857,399.42,William White Meats Ltd
Children & Culture,Children's Social Care,Support Service and Management Costs,Schools Catering,Kitchen Supplies - Food and Beverages,03/04/2020,5407862,365.72,William White Meats Ltd
Children & Culture,Children's Social Care,Support Service and Management Costs,Schools Catering,Kitchen Supplies - Food and Beverages,03/04/2020,5407869,815.38,William White Meats Ltd
Children & Culture,Children's Social Care,Support Service and Management Costs,Schools Catering,Kitchen Supplies - Food and Beverages,03/04/2020,5407872,"1,065.82",William White Meats Ltd
Children & Culture,Children's Social Care,Support Service and Management Costs,Schools Catering,Kitchen Supplies - Food and Beverages,03/04/2020,5407874,723.78,William White Meats Ltd
Children & Culture,Children's Social Care,Support Service and Management Costs,Schools Catering,Kitchen Supplies - Food and Beverages,03/04/2020,5407875,298.24,William White Meats Ltd
Children & Culture,Children's Social Care,Support Service and Management Costs,Schools Catering,Kitchen Supplies - Food and Beverages,03/04/2020,5407876,323.04,William White Meats Ltd
Children & Culture,Children's Social Care,Support Service and Management Costs,Schools Catering,Kitchen Supplies - Food and Beverages,03/04/2020,5407878,284.57,William White Meats Ltd
Children & Culture,Children's Social Care,Support Service and Management Costs,Schools Catering,Kitchen Supplies - Food and Beverages,03/04/2020,5407880,265.33,William White Meats Ltd
Children & Culture,Education Services,Other Strategic Functions,SEN External Travel,Social Care - Day Care,03/04/2020,5408780,534.75,Carebridge Staffing Ltd
Children & Culture,Children's Social Care,Services for young people,Outdoor,Services - Professional Fees - Security Fees,03/04/2020,5410708,"4,921.20",Manpower Direct UK
Children & Culture,Education Services,Other Strategic Functions,Empty Properties,Services - Professional Fees - Security Fees,03/04/2020,5410711,"9,514.32",Manpower Direct UK
Children & Culture,Education Services,Other Strategic Functions,SEN External Travel,Social Care - Day Care,03/04/2020,5410766,"1,470.00",Carebridge Staffing Ltd
Children & Culture,Education Services,Other Strategic Functions,Student Admissions,Services - Professional Fees - Consultants Fees,03/04/2020,5410897,"12,500.00",Mulberry School for Girls
Children & Culture,Cultural and Related Services,Recreation & Sport,Sports Development,Recreational Activities,03/04/2020,5411931,299.97,Tower Hamlets Trojans Basketball Club
Children & Culture,Education Services,Other Strategic Functions,ESW Trading Account,Grants - Grants To Other Organisations,03/04/2020,5411942,"36,000.00",Royal Society of Arts
Children & Culture,Education Services,Other Strategic Functions,SEN External Travel,Non Staff Transport Costs - Reimbursement,03/04/2020,5411958,"1,200.00",Mile End Car Hire Limited
Children & Culture,Cultural and Related Services,Open Spaces,Victoria Park,Services - Professional Fees - Security Fees,03/04/2020,5412078,"5,220.00",Manpower Direct UK
Children & Culture,Education Services,Other Strategic Functions,Schools Library,Training Expenses - Staff External Training (UK Based),03/04/2020,5412149,500.00,CHITRA SOUNDARARAJAN
Children & Culture,Education Services,Other Strategic Functions,SEN External Travel,Non Staff Transport Costs - Reimbursement,03/04/2020,5412395,"3,000.00",Mile End Car Hire Limited
Children & Culture,Education Services,Other Strategic Functions,SEN External Travel,Non Staff Transport Costs - Reimbursement,03/04/2020,5412397,"2,250.00",Mile End Car Hire Limited
Children & Culture,Education Services,Other Strategic Functions,SEN External Travel,Non Staff Transport Costs - Reimbursement,03/04/2020,5412398,"4,800.00",Mile End Car Hire Limited
Children & Culture,Children's Social Care,Children Looked After,Virtual School PPG,Third Party Payments - Payments to Schools,03/04/2020,5412501,"1,400.00",HIGHBURY FIELDS SCHOOL
Children & Culture,Children's Social Care,Youth Justice,YJB-Core,Third Party Payments - Other Agencies,03/04/2020,5413276,300.00,NSPCC
Children & Culture,Children's Social Care,Children Looked After,S23 Fam Pl P&V-F/Care,Childrens Act Section 23 - Placement Fee,03/04/2020,5413355,"3,268.71",Fostering Innovations Ltd
Children & Culture,Children's Social Care,Children Looked After,S23 Fam Pl P&V-F/Care,Childrens Act Section 23 - Placement Fee,03/04/2020,5413356,"3,268.71",Fostering Innovations Ltd
Children & Culture,Children's Social Care,Family Support Services,CNN Pool: Children Direct Paym,Social Care - Direct Payments,03/04/2020,5413960,966.00,DH TOWER HAMLETS
Children & Culture,Children's Social Care,Family Support Services,CNN Pool: Children Direct Paym,Social Care - Direct Payments,03/04/2020,5413964,674.60,DH TOWER HAMLETS
Children & Culture,Children's Social Care,Family Support Services,CNN Pool: Children Direct Paym,Social Care - Direct Payments,03/04/2020,5413967,"18,630.00",DH TOWER HAMLETS
Children & Culture,Children's Social Care,Family Support Services,CNN Pool: Children Direct Paym,Social Care - Direct Payments,03/04/2020,5413969,674.60,DH TOWER HAMLETS
Children & Culture,Children's Social Care,Family Support Services,CNN Pool: Children Direct Paym,Social Care - Direct Payments,03/04/2020,5413973,"1,401.78",D D PAYROLL SERVICES
Children & Culture,Children's Social Care,Family Support Services,CNN Pool: Children Direct Paym,Social Care - Direct Payments,03/04/2020,5413975,898.42,DH TOWER HAMLETS
Children & Culture,Children's Social Care,Family Support Services,CNN Pool: Children Direct Paym,Social Care - Direct Payments,03/04/2020,5413976,"10,118.87",DH TOWER HAMLETS
Children & Culture,Children's Social Care,Family Support Services,CNN Pool: Children Direct Paym,Social Care - Direct Payments,03/04/2020,5413978,"1,113.00",DH TOWER HAMLETS
Children & Culture,Children's Social Care,Family Support Services,CNN Pool: Children Direct Paym,Social Care - Direct Payments,03/04/2020,5413979,674.60,DH TOWER HAMLETS
Children & Culture,Children's Social Care,Family Support Services,CNN Pool: Children Direct Paym,Social Care - Direct Payments,03/04/2020,5413981,899.42,DH TOWER HAMLETS
Children & Culture,Children's Social Care,Family Support Services,CNN Pool: Children Direct Paym,Social Care - Direct Payments,03/04/2020,5413987,674.60,DH TOWER HAMLETS
Children & Culture,Children's Social Care,Family Support Services,CNN Pool: Children Direct Paym,Social Care - Direct Payments,03/04/2020,5413988,674.60,DH TOWER HAMLETS
Children & Culture,Children's Social Care,Family Support Services,CNN Pool: Children Direct Paym,Social Care - Direct Payments,03/04/2020,5413989,"2,385.41",DH TOWER HAMLETS
Children & Culture,Children's Social Care,Family Support Services,CNN Pool: Children Direct Paym,Social Care - Direct Payments,03/04/2020,5413992,"17,910.38",DH TOWER HAMLETS
Children & Culture,Children's Social Care,Family Support Services,CNN Pool: Children Direct Paym,Social Care - Direct Payments,03/04/2020,5414003,899.46,DH TOWER HAMLETS
Children & Culture,Children's Social Care,Family Support Services,CNN Pool: Children Direct Paym,Social Care - Direct Payments,03/04/2020,5414004,"15,248.16",DH TOWER HAMLETS
Children & Culture,Children's Social Care,Family Support Services,CNN Pool: Children Direct Paym,Social Care - Direct Payments,03/04/2020,5414007,548.40,DH TOWER HAMLETS
Children & Culture,Children's Social Care,Family Support Services,CNN Pool: Children Direct Paym,Social Care - Direct Payments,03/04/2020,5414009,"3,726.00",D D PAYROLL SERVICES
Children & Culture,Children's Social Care,Family Support Services,CNN Pool: Children Direct Paym,Social Care - Direct Payments,03/04/2020,5414010,674.60,DH TOWER HAMLETS
Children & Culture,Children's Social Care,Family Support Services,CNN Pool: Children Direct Paym,Social Care - Direct Payments,03/04/2020,5414011,"2,248.66",DH TOWER HAMLETS
Children & Culture,Children's Social Care,Family Support Services,CNN Pool: Children Direct Paym,Social Care - Direct Payments,03/04/2020,5414012,"1,124.33",DH TOWER HAMLETS
Children & Culture,Children's Social Care,Family Support Services,CNN Pool: Children Direct Paym,Social Care - Direct Payments,03/04/2020,5414013,899.46,D D PAYROLL SERVICES
Children & Culture,Children's Social Care,Family Support Services,CNN Pool: Children Direct Paym,Social Care - Direct Payments,03/04/2020,5414015,674.60,DH TOWER HAMLETS
Children & Culture,Children's Social Care,Family Support Services,CNN Pool: Children Direct Paym,Social Care - Direct Payments,03/04/2020,5414016,674.60,DH TOWER HAMLETS
Children & Culture,Children's Social Care,Family Support Services,CNN Pool: Children Direct Paym,Social Care - Direct Payments,03/04/2020,5414017,518.14,DH TOWER HAMLETS
Children & Culture,Children's Social Care,Family Support Services,CNN Pool: Children Direct Paym,Social Care - Direct Payments,03/04/2020,5414018,"1,242.00",DH TOWER HAMLETS
Children & Culture,Children's Social Care,Family Support Services,CNN Pool: Children Direct Paym,Social Care - Direct Payments,03/04/2020,5414019,674.60,DH TOWER HAMLETS
Children & Culture,Children's Social Care,Family Support Services,CNN Pool: Children Direct Paym,Social Care - Direct Payments,03/04/2020,5414021,674.60,DH TOWER HAMLETS
Children & Culture,Children's Social Care,Family Support Services,CNN Pool: Children Direct Paym,Social Care - Direct Payments,03/04/2020,5414022,"2,626.70",DH TOWER HAMLETS
Children & Culture,Children's Social Care,Family Support Services,CNN Pool: Children Direct Paym,Social Care - Direct Payments,03/04/2020,5414023,674.60,DH TOWER HAMLETS
Children & Culture,Children's Social Care,Family Support Services,CNN Pool: Children Direct Paym,Social Care - Direct Payments,03/04/2020,5414024,674.60,DH TOWER HAMLETS
Children & Culture,Children's Social Care,Family Support Services,CNN Pool: Children Direct Paym,Social Care - Direct Payments,03/04/2020,5414025,674.60,DH TOWER HAMLETS
Children & Culture,Children's Social Care,Family Support Services,CNN Pool: Children Direct Paym,Social Care - Direct Payments,03/04/2020,5414026,"3,519.00",DH TOWER HAMLETS
Children & Culture,Children's Social Care,Family Support Services,CNN Pool: Children Direct Paym,Social Care - Direct Payments,03/04/2020,5414027,674.60,DH TOWER HAMLETS
Children & Culture,Children's Social Care,Family Support Services,CNN Pool: Children Direct Paym,Social Care - Direct Payments,03/04/2020,5414028,674.60,DH TOWER HAMLETS
Children & Culture,Children's Social Care,Family Support Services,CNN Pool: Children Direct Paym,Social Care - Direct Payments,03/04/2020,5414029,674.60,DH TOWER HAMLETS
Children & Culture,Children's Social Care,Family Support Services,CNN Pool: Children Direct Paym,Social Care - Direct Payments,03/04/2020,5414030,863.62,DH TOWER HAMLETS
Children & Culture,Children's Social Care,Family Support Services,CNN Pool: Children Direct Paym,Social Care - Direct Payments,03/04/2020,5414032,674.60,DH TOWER HAMLETS
Children & Culture,Children's Social Care,Family Support Services,CNN Pool: Children Direct Paym,Social Care - Direct Payments,03/04/2020,5414033,"1,381.79",DH TOWER HAMLETS
Children & Culture,Children's Social Care,Family Support Services,CNN Pool: Children Direct Paym,Social Care - Direct Payments,03/04/2020,5414035,"1,349.20",DH TOWER HAMLETS
Children & Culture,Children's Social Care,Family Support Services,CNN Pool: Children Direct Paym,Social Care - Direct Payments,03/04/2020,5414036,899.42,DH TOWER HAMLETS
Children & Culture,Children's Social Care,Family Support Services,CNN Pool: Children Direct Paym,Social Care - Direct Payments,03/04/2020,5414037,672.75,D D PAYROLL SERVICES
Children & Culture,Children's Social Care,Family Support Services,CNN Pool: Children Direct Paym,Social Care - Direct Payments,03/04/2020,5414038,899.42,D D PAYROLL SERVICES
Children & Culture,Children's Social Care,Family Support Services,CNN Pool: Children Direct Paym,Social Care - Direct Payments,03/04/2020,5414039,"4,989.56",DH TOWER HAMLETS
Children & Culture,Children's Social Care,Family Support Services,CNN Pool: Children Direct Paym,Social Care - Direct Payments,03/04/2020,5414040,674.60,DH TOWER HAMLETS
Children & Culture,Children's Social Care,Family Support Services,CNN Pool: Children Direct Paym,Social Care - Direct Payments,03/04/2020,5414042,674.60,DH TOWER HAMLETS
Children & Culture,Children's Social Care,Family Support Services,CNN Pool: Children Direct Paym,Social Care - Direct Payments,03/04/2020,5414043,674.60,DH TOWER HAMLETS
Children & Culture,Children's Social Care,Family Support Services,CNN Pool: Children Direct Paym,Social Care - Direct Payments,03/04/2020,5414045,"1,883.66",DH TOWER HAMLETS
Children & Culture,Children's Social Care,Family Support Services,CNN Pool: Children Direct Paym,Social Care - Direct Payments,03/04/2020,5414046,674.60,DH TOWER HAMLETS
Children & Culture,Children's Social Care,Family Support Services,CNN Pool: Children Direct Paym,Social Care - Direct Payments,03/04/2020,5414047,674.60,DH TOWER HAMLETS
Children & Culture,Children's Social Care,Family Support Services,CNN Pool: Children Direct Paym,Social Care - Direct Payments,03/04/2020,5414048,674.60,DH TOWER HAMLETS
Children & Culture,Children's Social Care,Family Support Services,CNN Pool: Children Direct Paym,Social Care - Direct Payments,03/04/2020,5414049,674.60,DH TOWER HAMLETS
Children & Culture,Children's Social Care,Family Support Services,CNN Pool: Children Direct Paym,Social Care - Direct Payments,03/04/2020,5414050,674.60,DH TOWER HAMLETS
Children & Culture,Children's Social Care,Family Support Services,CNN Pool: Children Direct Paym,Social Care - Direct Payments,03/04/2020,5414052,674.60,DH TOWER HAMLETS
Children & Culture,Children's Social Care,Family Support Services,CNN Pool: Children Direct Paym,Social Care - Direct Payments,03/04/2020,5414053,674.60,DH TOWER HAMLETS
Children & Culture,Children's Social Care,Family Support Services,CNN Pool: Children Direct Paym,Social Care - Direct Payments,03/04/2020,5414054,"1,590.00",DH TOWER HAMLETS
Children & Culture,Children's Social Care,Family Support Services,CNN Pool: Children Direct Paym,Social Care - Direct Payments,03/04/2020,5414055,"3,039.00",DH TOWER HAMLETS
Children & Culture,Children's Social Care,Family Support Services,CNN Pool: Children Direct Paym,Social Care - Direct Payments,03/04/2020,5414056,674.60,DH TOWER HAMLETS
Children & Culture,Children's Social Care,Family Support Services,CNN Pool: Children Direct Paym,Social Care - Direct Payments,03/04/2020,5414058,732.00,DH TOWER HAMLETS
Children & Culture,Children's Social Care,Family Support Services,CNN Pool: Children Direct Paym,Social Care - Direct Payments,03/04/2020,5414059,674.60,DH TOWER HAMLETS
Children & Culture,Children's Social Care,Family Support Services,CNN Pool: Children Direct Paym,Social Care - Direct Payments,03/04/2020,5414061,674.60,DH TOWER HAMLETS
Children & Culture,Children's Social Care,Family Support Services,CNN Pool: Children Direct Paym,Social Care - Direct Payments,03/04/2020,5414062,674.60,DH TOWER HAMLETS
Children & Culture,Children's Social Care,Family Support Services,CNN Pool: Children Direct Paym,Social Care - Direct Payments,03/04/2020,5414063,674.60,DH TOWER HAMLETS
Children & Culture,Children's Social Care,Family Support Services,CNN Pool: Children Direct Paym,Social Care - Direct Payments,03/04/2020,5414064,674.60,DH TOWER HAMLETS
Children & Culture,Children's Social Care,Family Support Services,CNN Pool: Children Direct Paym,Social Care - Direct Payments,03/04/2020,5414065,674.60,DH TOWER HAMLETS
Children & Culture,Children's Social Care,Family Support Services,CNN Pool: Children Direct Paym,Social Care - Direct Payments,03/04/2020,5414066,674.60,DH TOWER HAMLETS
Children & Culture,Children's Social Care,Family Support Services,CNN Pool: Children Direct Paym,Social Care - Direct Payments,03/04/2020,5414067,674.60,DH TOWER HAMLETS
Children & Culture,Children's Social Care,Family Support Services,CNN Pool: Children Direct Paym,Social Care - Direct Payments,03/04/2020,5414068,674.60,DH TOWER HAMLETS
Children & Culture,Children's Social Care,Family Support Services,CNN Pool: Children Direct Paym,Social Care - Direct Payments,03/04/2020,5414069,674.60,DH TOWER HAMLETS
Children & Culture,Children's Social Care,Family Support Services,CNN Pool: Children Direct Paym,Social Care - Direct Payments,03/04/2020,5414070,"1,094.60",DH TOWER HAMLETS
Children & Culture,Children's Social Care,Family Support Services,CNN Pool: Children Direct Paym,Social Care - Direct Payments,03/04/2020,5414071,"3,726.00",DH TOWER HAMLETS
Children & Culture,Education Services,Early Years,Children Centre Central Team,Services - Professional Fees - Financial Services Fees,03/04/2020,5414078,"1,454.36",Motion Picture Licensing Company
Children & Culture,Children's Social Care,Service Strategy,FSP Sect 17 - Team 1,Childrens Act Section 17 - Expert Assessmt/Witness Costs,03/04/2020,5414229,500.00,TV Edwards Solicitors (Client Account)
Children & Culture,Children's Social Care,Children Looked After,Leaving Care-UASC,Leaving Care Financial Assistance - Reg Plan Maint L-Allow,03/04/2020,5414273,556.06,SOCIAL SERVICES LEAVING CARE SERVICE
Children & Culture,Children's Social Care,Children Looked After,LCS/Allowances-Accom,Leaving Care Financial Assistance - Reg Plan Maint L-Allow,03/04/2020,5414273,"1,998.72",SOCIAL SERVICES LEAVING CARE SERVICE
Children & Culture,Children's Social Care,Service Strategy,FSP Sect 17 - Team 5,Childrens Act Section 17 - Other Childcare Support,03/04/2020,5414322,450.00,Toucan Nursery
Children & Culture,Children's Social Care,Service Strategy,FSP Sect 17 - Team 5,Childrens Act Section 17 - Other Childcare Support,03/04/2020,5414323,562.50,Toucan Nursery
Children & Culture,Children's Social Care,Children Looked After,Staying Put,Childrens Act Section 23 - Placement Fee,03/04/2020,5414331,"5,206.80",Integrated Fostering Services Ltd
Children & Culture,Children's Social Care,Children Looked After,Staying Put,Childrens Act Section 23 - Placement Fee,03/04/2020,5414332,"5,380.36",Integrated Fostering Services Ltd
Children & Culture,Children's Social Care,Children Looked After,Staying Put,Childrens Act Section 23 - Placement Fee,03/04/2020,5414333,"5,380.36",Integrated Fostering Services Ltd
Children & Culture,Children's Social Care,Children Looked After,Staying Put,Childrens Act Section 23 - Placement Fee,03/04/2020,5414334,"5,206.80",Integrated Fostering Services Ltd
Children & Culture,Children's Social Care,Children Looked After,Staying Put,Childrens Act Section 23 - Placement Fee,03/04/2020,5414336,"4,992.30",Integrated Fostering Services Ltd
Children & Culture,Children's Social Care,Children Looked After,Staying Put,Childrens Act Section 23 - Placement Fee,03/04/2020,5414337,"5,158.71",Integrated Fostering Services Ltd
Children & Culture,Children's Social Care,Children Looked After,S23 Fam Pl P&V-F/Care,Childrens Act Section 23 - Placement Fee,03/04/2020,5414338,"3,631.34",Integrated Fostering Services Ltd
Children & Culture,Children's Social Care,Children Looked After,S23 Fam Pl P&V-F/Care,Childrens Act Section 23 - Placement Fee,03/04/2020,5414339,"5,314.33",Integrated Fostering Services Ltd
Children & Culture,Children's Social Care,Children Looked After,S23 Fam Pl P&V-F/Care,Childrens Act Section 23 - Placement Fee,03/04/2020,5414340,"3,631.34",Integrated Fostering Services Ltd
Children & Culture,Children's Social Care,Children Looked After,S23 Fam Pl P&V-F/Care,Childrens Act Section 23 - Placement Fee,03/04/2020,5414341,"3,410.00",Integrated Fostering Services Ltd
Children & Culture,Children's Social Care,Children Looked After,S23 Fam Pl P&V-F/Care,Childrens Act Section 23 - Placement Fee,03/04/2020,5414367,784.00,Swiis Foster Care Limited
Children & Culture,Children's Social Care,Service Strategy,FSP Sect 17 - Team 5,Childrens Act Section 17 - Non-Contact Taxi Costs,03/04/2020,5414384,"1,135.24",TKG LTD T/A The Keen Group
Children & Culture,Education Services,Other Strategic Functions,Pupil & Student Services GF,Non Staff Transport Costs - Tfl Concessionary fares,06/04/2020,5238154,"-1,292.80",Oyster Sales Service
Children & Culture,Education Services,Other Strategic Functions,Pupil & Student Services GF,Non Staff Transport Costs - Tfl Concessionary fares,06/04/2020,5238155,"-1,988.50",Oyster Sales Service
Children & Culture,Children's Social Care,Support Service and Management Costs,Building Cleaning,Materials - Cleaning Materials,06/04/2020,5383050,856.80,The Maintenance Supply Co Ltd
Children & Culture,Cultural and Related Services,Open Spaces,Mile End Park,Repairs and Maintenance - Responsive - Buildings,06/04/2020,5400084,"1,090.00",JC Coster (Metalworks) Ltd
Children & Culture,Cultural and Related Services,Open Spaces,Victoria Park,Repairs and Maintenance - Responsive - Repair & Maintenance,06/04/2020,5400086,"5,625.00",JC Coster (Metalworks) Ltd
Children & Culture,Cultural and Related Services,Open Spaces,Mile End Park,Repairs and Maintenance - Responsive - Buildings,06/04/2020,5402007,"3,575.00",JC Coster (Metalworks) Ltd
Children & Culture,Cultural and Related Services,Open Spaces,Victoria Park,Repairs and Maintenance - Responsive - Repair & Maintenance,06/04/2020,5402008,"4,125.00",JC Coster (Metalworks) Ltd
Children & Culture,Education Services,Other Strategic Functions,Music Trading Account,Subscriptions - Associations,06/04/2020,5402126,900.00,The UK Association for Music Education - Music Mark
Children & Culture,Children's Social Care,Support Service and Management Costs,Sch. Meals A/c - Central Production Unit,Kitchen Supplies - Food and Beverages,06/04/2020,5402130,914.24,Chicken Joes
Children & Culture,Children's Social Care,Support Service and Management Costs,Swanlea,Kitchen Supplies - Food and Beverages,06/04/2020,5402131,305.56,Chicken Joes
Children & Culture,Children's Social Care,Support Service and Management Costs,Sch. Meals A/c - Raines Foundation,Kitchen Supplies - Food and Beverages,06/04/2020,5402133,266.10,Chicken Joes
Children & Culture,Children's Social Care,Support Service and Management Costs,Schools Catering,Kitchen Supplies - Food and Beverages,06/04/2020,5402183,520.80,Thomas Ridley & Son Ltd
Children & Culture,Children's Social Care,Support Service and Management Costs,Schools Catering,Kitchen Supplies - Food and Beverages,06/04/2020,5402184,422.01,Thomas Ridley & Son Ltd
Children & Culture,Children's Social Care,Support Service and Management Costs,Schools Catering,Kitchen Supplies - Food and Beverages,06/04/2020,5402185,601.70,Thomas Ridley & Son Ltd
Children & Culture,Children's Social Care,Support Service and Management Costs,Schools Catering,Kitchen Supplies - Food and Beverages,06/04/2020,5402186,259.26,Thomas Ridley & Son Ltd
Children & Culture,Children's Social Care,Support Service and Management Costs,Schools Catering,Kitchen Supplies - Food and Beverages,06/04/2020,5402187,560.93,Thomas Ridley & Son Ltd
Children & Culture,Children's Social Care,Support Service and Management Costs,Schools Catering,Kitchen Supplies - Food and Beverages,06/04/2020,5402188,327.90,Thomas Ridley & Son Ltd
Children & Culture,Children's Social Care,Support Service and Management Costs,Schools Catering,Kitchen Supplies - Food and Beverages,06/04/2020,5402190,729.82,Thomas Ridley & Son Ltd
Children & Culture,Children's Social Care,Support Service and Management Costs,Schools Catering,Kitchen Supplies - Food and Beverages,06/04/2020,5402193,343.10,Thomas Ridley & Son Ltd
Children & Culture,Children's Social Care,Support Service and Management Costs,Schools Catering,Kitchen Supplies - Food and Beverages,06/04/2020,5402195,798.43,Thomas Ridley & Son Ltd
Children & Culture,Children's Social Care,Support Service and Management Costs,Schools Catering,Kitchen Supplies - Food and Beverages,06/04/2020,5402196,"1,753.35",Thomas Ridley & Son Ltd
Children & Culture,Children's Social Care,Support Service and Management Costs,Schools Catering,Kitchen Supplies - Food and Beverages,06/04/2020,5402197,310.85,Thomas Ridley & Son Ltd
Children & Culture,Children's Social Care,Support Service and Management Costs,Schools Catering,Kitchen Supplies - Food and Beverages,06/04/2020,5402199,363.15,Thomas Ridley & Son Ltd
Children & Culture,Children's Social Care,Support Service and Management Costs,Schools Catering,Kitchen Supplies - Food and Beverages,06/04/2020,5402201,445.59,Thomas Ridley & Son Ltd
Children & Culture,Children's Social Care,Support Service and Management Costs,Schools Catering,Kitchen Supplies - Food and Beverages,06/04/2020,5402202,551.17,Thomas Ridley & Son Ltd
Children & Culture,Children's Social Care,Support Service and Management Costs,Schools Catering,Kitchen Supplies - Food and Beverages,06/04/2020,5402205,316.73,Thomas Ridley & Son Ltd
Children & Culture,Children's Social Care,Support Service and Management Costs,Schools Catering,Kitchen Supplies - Food and Beverages,06/04/2020,5402206,334.66,Thomas Ridley & Son Ltd
Children & Culture,Children's Social Care,Support Service and Management Costs,Schools Catering,Kitchen Supplies - Food and Beverages,06/04/2020,5402207,673.92,Thomas Ridley & Son Ltd
Children & Culture,Children's Social Care,Support Service and Management Costs,Schools Catering,Kitchen Supplies - Food and Beverages,06/04/2020,5402208,533.47,Thomas Ridley & Son Ltd
Children & Culture,Children's Social Care,Support Service and Management Costs,Schools Catering,Kitchen Supplies - Food and Beverages,06/04/2020,5402211,297.30,Thomas Ridley & Son Ltd
Children & Culture,Children's Social Care,Support Service and Management Costs,Schools Catering,Kitchen Supplies - Food and Beverages,06/04/2020,5402212,410.59,Thomas Ridley & Son Ltd
Children & Culture,Children's Social Care,Support Service and Management Costs,Schools Catering,Kitchen Supplies - Food and Beverages,06/04/2020,5402215,450.97,Thomas Ridley & Son Ltd
Children & Culture,Children's Social Care,Support Service and Management Costs,Schools Catering,Kitchen Supplies - Food and Beverages,06/04/2020,5402216,835.57,Thomas Ridley & Son Ltd
Children & Culture,Children's Social Care,Support Service and Management Costs,Schools Catering,Kitchen Supplies - Food and Beverages,06/04/2020,5402217,357.93,Thomas Ridley & Son Ltd
Children & Culture,Children's Social Care,Support Service and Management Costs,Schools Catering,Kitchen Supplies - Food and Beverages,06/04/2020,5402219,298.80,Thomas Ridley & Son Ltd
Children & Culture,Children's Social Care,Support Service and Management Costs,Schools Catering,Kitchen Supplies - Food and Beverages,06/04/2020,5402220,678.52,Thomas Ridley & Son Ltd
Children & Culture,Children's Social Care,Support Service and Management Costs,"Mulberry Caf�		",Kitchen Supplies - Food and Beverages,06/04/2020,5402221,415.59,Thomas Ridley & Son Ltd
Children & Culture,Children's Social Care,Support Service and Management Costs,Schools Catering,Kitchen Supplies - Food and Beverages,06/04/2020,5402222,353.40,Thomas Ridley & Son Ltd
Children & Culture,Children's Social Care,Support Service and Management Costs,Schools Catering,Kitchen Supplies - Food and Beverages,06/04/2020,5402224,420.37,Thomas Ridley & Son Ltd
Children & Culture,Children's Social Care,Support Service and Management Costs,Schools Catering,Kitchen Supplies - Food and Beverages,06/04/2020,5402225,335.22,Thomas Ridley & Son Ltd
Children & Culture,Children's Social Care,Support Service and Management Costs,Schools Catering,Kitchen Supplies - Food and Beverages,06/04/2020,5402226,401.58,Thomas Ridley & Son Ltd
Children & Culture,Children's Social Care,Support Service and Management Costs,Schools Catering,Kitchen Supplies - Food and Beverages,06/04/2020,5402227,255.80,Thomas Ridley & Son Ltd
Children & Culture,Children's Social Care,Support Service and Management Costs,Schools Catering,Kitchen Supplies - Food and Beverages,06/04/2020,5402228,349.19,Thomas Ridley & Son Ltd
Children & Culture,Children's Social Care,Support Service and Management Costs,Sch. Meals A/c - P.D.C. Cateen,Kitchen Supplies - Food and Beverages,06/04/2020,5402231,346.44,Thomas Ridley & Son Ltd
Children & Culture,Children's Social Care,Support Service and Management Costs,Schools Catering,Kitchen Supplies - Food and Beverages,06/04/2020,5402232,412.23,Thomas Ridley & Son Ltd
Children & Culture,Children's Social Care,Support Service and Management Costs,Schools Catering,Kitchen Supplies - Food and Beverages,06/04/2020,5402236,745.50,Thomas Ridley & Son Ltd
Children & Culture,Children's Social Care,Support Service and Management Costs,Schools Catering,Kitchen Supplies - Food and Beverages,06/04/2020,5402239,321.35,Thomas Ridley & Son Ltd
Children & Culture,Children's Social Care,Support Service and Management Costs,Schools Catering,Kitchen Supplies - Food and Beverages,06/04/2020,5402240,811.87,Thomas Ridley & Son Ltd
Children & Culture,Children's Social Care,Support Service and Management Costs,Schools Catering,Kitchen Supplies - Food and Beverages,06/04/2020,5402241,638.43,Thomas Ridley & Son Ltd
Children & Culture,Children's Social Care,Support Service and Management Costs,Schools Catering,Kitchen Supplies - Food and Beverages,06/04/2020,5402242,392.35,Thomas Ridley & Son Ltd
Children & Culture,Children's Social Care,Support Service and Management Costs,Schools Catering,Kitchen Supplies - Food and Beverages,06/04/2020,5402243,347.21,Thomas Ridley & Son Ltd
Children & Culture,Children's Social Care,Support Service and Management Costs,Schools Catering,Kitchen Supplies - Food and Beverages,06/04/2020,5402245,341.64,Thomas Ridley & Son Ltd
Children & Culture,Children's Social Care,Support Service and Management Costs,Schools Catering,Kitchen Supplies - Food and Beverages,06/04/2020,5402247,256.97,Thomas Ridley & Son Ltd
Children & Culture,Children's Social Care,Support Service and Management Costs,Schools Catering,Kitchen Supplies - Food and Beverages,06/04/2020,5402249,665.13,Thomas Ridley & Son Ltd
Children & Culture,Children's Social Care,Support Service and Management Costs,Schools Catering,Kitchen Supplies - Food and Beverages,06/04/2020,5402250,313.25,Thomas Ridley & Son Ltd
Children & Culture,Children's Social Care,Support Service and Management Costs,Schools Catering,Kitchen Supplies - Food and Beverages,06/04/2020,5402252,350.31,Thomas Ridley & Son Ltd
Children & Culture,Children's Social Care,Children Looked After,S23 Family Placements P&V,Childrens Act Section 23 - Placement Fee,06/04/2020,5403159,"3,541.75",Ryancare Fostering Ltd
Children & Culture,Children's Social Care,Children Looked After,S23 Family Placements P&V,Childrens Act Section 23 - Placement Fee,06/04/2020,5403160,"4,650.00",Ryancare Fostering Ltd
Children & Culture,Children's Social Care,Children Looked After,S23 Family Placements P&V,Childrens Act Section 23 - Placement Fee,06/04/2020,5403161,"3,364.74",Ryancare Fostering Ltd
Children & Culture,Children's Social Care,Children Looked After,S23 Fam Pl P&V-F/Care,Childrens Act Section 23 - Placement Fee,06/04/2020,5403162,"3,875.00",Ryancare Fostering Ltd
Children & Culture,Children's Social Care,Support Service and Management Costs,Schools Catering,Kitchen Supplies - Food and Beverages,06/04/2020,5403191,394.47,Thomas Ridley & Son Ltd
Children & Culture,Children's Social Care,Support Service and Management Costs,Schools Catering,Kitchen Supplies - Food and Beverages,06/04/2020,5403192,428.88,Thomas Ridley & Son Ltd
Children & Culture,Children's Social Care,Support Service and Management Costs,Schools Catering,Kitchen Supplies - Food and Beverages,06/04/2020,5403194,406.20,Thomas Ridley & Son Ltd
Children & Culture,Children's Social Care,Support Service and Management Costs,Schools Catering,Kitchen Supplies - Food and Beverages,06/04/2020,5403197,413.65,Thomas Ridley & Son Ltd
Children & Culture,Children's Social Care,Support Service and Management Costs,Sch. Meals A/c - Central Production Unit,Kitchen Supplies - Food and Beverages,06/04/2020,5403200,"1,926.62",Thomas Ridley & Son Ltd
Children & Culture,Children's Social Care,Support Service and Management Costs,Schools Catering,Kitchen Supplies - Food and Beverages,06/04/2020,5403201,438.55,Thomas Ridley & Son Ltd
Children & Culture,Children's Social Care,Support Service and Management Costs,Schools Catering,Kitchen Supplies - Food and Beverages,06/04/2020,5403261,274.04,Prescott-Thomas LTD.
Children & Culture,Children's Social Care,Support Service and Management Costs,Schools Catering,Kitchen Supplies - Food and Beverages,06/04/2020,5403283,343.66,Prescott-Thomas LTD.
Children & Culture,No Service Specified,No Division Specified,Capital-Minor Works (SC),Building Works - Main Works,06/04/2020,5403581,450.00,Environtec Ltd
Children & Culture,No Service Specified,No Division Specified,Capital-Minor Works (SC),Building Works - Asbestos- Surveys & Removal,06/04/2020,5403582,"1,795.00",Environtec Ltd
Children & Culture,No Service Specified,No Division Specified,Capital-Minor Works (SC),Building Works - Asbestos- Surveys & Removal,06/04/2020,5403583,975.00,Environtec Ltd
Children & Culture,No Service Specified,No Division Specified,Capital-Minor Works (SC),Building Works - Asbestos- Surveys & Removal,06/04/2020,5403584,975.00,Environtec Ltd
Children & Culture,Children's Social Care,Children Looked After,S23 Fam Pl P&V-F/Care,Childrens Act Section 23 - Non-Contact Trans/Travel Costs,06/04/2020,5403601,956.40,Compass Fostering South East Limited
Children & Culture,Children's Social Care,Children Looked After,S23-Other-Mother & Baby Unit,Childrens Act Section 23 - Placement Fee,06/04/2020,5403623,"13,878.53",Care 2 Share LTD
Children & Culture,Education Services,Other Strategic Functions,Alternative Provision,Third Party Payments - Contingencies,06/04/2020,5403625,"3,840.00",It's Your Life
Children & Culture,Education Services,Other Strategic Functions,Alternative Provision,Third Party Payments - Contingencies,06/04/2020,5403625,"1,981.84",It's Your Life
Children & Culture,Education Services,Other Strategic Functions,Alternative Provision,Third Party Payments - Contingencies,06/04/2020,5403625,770.00,It's Your Life
Children & Culture,Children's Social Care,Children Looked After,S23-Resi-P&V/OLA-Child Home,Childrens Act Section 23 - Placement Fee,06/04/2020,5403914,"19,463.66",Prestige Adolescent Care & Education Ltd
Children & Culture,Children's Social Care,Support Service and Management Costs,Sch. Meals A/c - Central Production Unit,Kitchen Supplies - Food and Beverages,06/04/2020,5404414,963.50,William White Meats Ltd
Children & Culture,Children's Social Care,Support Service and Management Costs,Schools Catering,Kitchen Supplies - Food and Beverages,06/04/2020,5404417,469.86,William White Meats Ltd
Children & Culture,Cultural and Related Services,Culture & Heritage,Arts-Park Events,Events & Exhibition Supplies,06/04/2020,5404597,910.50,Face Events LTD
Children & Culture,Children's Social Care,Support Service and Management Costs,Schools Catering,Kitchen Supplies - Food and Beverages,06/04/2020,5407885,381.99,William White Meats Ltd
Children & Culture,Children's Social Care,Support Service and Management Costs,Schools Catering,Kitchen Supplies - Food and Beverages,06/04/2020,5407886,320.47,William White Meats Ltd
Children & Culture,Education Services,Other Strategic Functions,Pupil & Student Services GF,Non Staff Transport Costs - Tfl Concessionary fares,06/04/2020,5408471,316.20,Oyster Sales Service
Children & Culture,Education Services,Other Strategic Functions,Pupil & Student Services GF,Non Staff Transport Costs - Tfl Concessionary fares,06/04/2020,5408472,878.00,Oyster Sales Service
Children & Culture,Education Services,Other Strategic Functions,Pupil & Student Services GF,Non Staff Transport Costs - Tfl Concessionary fares,06/04/2020,5408472,"3,284.00",Oyster Sales Service
Children & Culture,Education Services,Other Strategic Functions,Pupil & Student Services GF,Non Staff Transport Costs - Tfl Concessionary fares,06/04/2020,5408472,363.60,Oyster Sales Service
Children & Culture,Education Services,Other Strategic Functions,Pupil & Student Services GF,Non Staff Transport Costs - Tfl Concessionary fares,06/04/2020,5408472,"3,867.00",Oyster Sales Service
Children & Culture,Children's Social Care,Children Looked After,S23 Fam Pl P&V-F/Care,Childrens Act Section 23 - Placement Fee,06/04/2020,5411575,"3,114.39",Sunbeam Fostering Agency Ltd
Children & Culture,No Service Specified,No Division Specified,Capital-Minor Works (SC),Building Works - Main Works,06/04/2020,5411593,600.00,Controlcare Ltd
Children & Culture,No Service Specified,No Division Specified,Capital-Minor Works (SC),Building Works - Main Works,06/04/2020,5411595,"4,432.50",Controlcare Ltd
Children & Culture,Cultural and Related Services,Recreation & Sport,Recreational Services Central,Training Expenses - Staff Internal Training,06/04/2020,5413278,685.33,the royal foundation of st katharine
Children & Culture,Education Services,Other Strategic Functions,SEN External Travel,Non Staff Transport Costs - Reimbursement,06/04/2020,5414275,"1,250.00",Mile End Car Hire Limited
Children & Culture,Education Services,Other Strategic Functions,SEN External Travel,Non Staff Transport Costs - Reimbursement,06/04/2020,5414276,600.00,Mile End Car Hire Limited
Children & Culture,Education Services,Other Strategic Functions,SEN External Travel,Non Staff Transport Costs - Reimbursement,06/04/2020,5414277,"3,300.00",Mile End Car Hire Limited
Children & Culture,Education Services,Other Strategic Functions,SEN External Travel,Non Staff Transport Costs - Reimbursement,06/04/2020,5414278,"2,925.00",Mile End Car Hire Limited
Children & Culture,Education Services,Other Strategic Functions,SEN External Travel,Non Staff Transport Costs - Reimbursement,06/04/2020,5414279,"3,300.00",Mile End Car Hire Limited
Children & Culture,Children's Social Care,Children Looked After,S23 Fam Pl P&V-F/Care,Childrens Act Section 23 - Placement Fee,06/04/2020,5414623,"3,370.00",Family Fostering
Children & Culture,Children's Social Care,Children Looked After,S23 Fam Pl P&V-F/Care,Childrens Act Section 23 - Placement Fee,06/04/2020,5414625,"4,030.00",Family Fostering
Children & Culture,Children's Social Care,Children Looked After,S23-Other-Prison,Childrens Act Section 23 - Placement Fee,06/04/2020,5414764,"14,472.00",National Offender Management Service
Children & Culture,Children's Social Care,Children Looked After,S23-Other-Prison,Childrens Act Section 23 - Placement Fee,06/04/2020,5414765,"1,680.00",National Offender Management Service
Children & Culture,Children's Social Care,Family Support Services,CNN Pool: Children Direct Paym,Social Care - Direct Payments,06/04/2020,5414821,"4,047.90",DH TOWER HAMLETS
Children & Culture,Children's Social Care,Service Strategy,"FSP Sect 17 - Team 8		",Childrens Act Section 17 - Other Childcare Support,08/04/2020,5290627,800.00,Unique Contact and Community Services
Children & Culture,Children's Social Care,Service Strategy,"FSP Sect 17 - Team 8		",Childrens Act Section 17 - Other Childcare Support,08/04/2020,5322361,400.00,Unique Contact and Community Services
Children & Culture,Children's Social Care,Service Strategy,"FSP Sect 17 - Team 8		",Childrens Act Section 17 - Other Childcare Support,08/04/2020,5336778,280.00,Unique Contact and Community Services
Children & Culture,Children's Social Care,Children Looked After,S23-Other-Semi-Ind. Unit,Childrens Act Section 23 - Interpreting/Translation,08/04/2020,5399735,"2,224.05",Oncall Interpreters LTD
Children & Culture,Education Services,Other Strategic Functions,Music Trading Account,Third Party Payments - Voluntary Associations,08/04/2020,5403097,"2,100.00",Voces Cantabiles Music
Children & Culture,Cultural and Related Services,Open Spaces,Parks & Open Spaces Man&Admin,Repairs and Maintenance - Responsive - Buildings,08/04/2020,5403518,"3,000.00",JC Coster (Metalworks) Ltd
Children & Culture,Cultural and Related Services,Open Spaces,Parks & Open Spaces Man&Admin,Repairs and Maintenance - Responsive - Buildings,08/04/2020,5403519,"2,660.00",JC Coster (Metalworks) Ltd
Children & Culture,Cultural and Related Services,Open Spaces,Mile End Park,Repairs and Maintenance - Responsive - Buildings,08/04/2020,5403520,"1,430.00",JC Coster (Metalworks) Ltd
Children & Culture,Cultural and Related Services,Open Spaces,Victoria Park,Repairs and Maintenance - Responsive - Repair & Maintenance,08/04/2020,5403522,"1,880.00",JC Coster (Metalworks) Ltd
Children & Culture,Children's Social Care,Support Service and Management Costs,Sch. Meals A/c - Elizabeth Selby,Kitchen Supplies - Catering Equipment,08/04/2020,5403549,537.98,W V Howe LTD
Children & Culture,Children's Social Care,Children Looked After,C.B.C & Fam.Prev/Support-Mgmnt,Third Party Payments - Other Agencies,08/04/2020,5403556,"6,483.75",Barnardo's Services
Children & Culture,Children's Social Care,Children Looked After,C.B.C & Fam.Prev/Support-Mgmnt,Third Party Payments - Voluntary Associations,08/04/2020,5403557,"27,786.33",Barnardo's Services
Children & Culture,Children's Social Care,Children Looked After,Virtual School PPG,Third Party Payments - Payments to Schools,08/04/2020,5403609,500.00,Norlington School & 6th Form
Children & Culture,Children's Social Care,Children Looked After,S23-Resi-P&V/OLA-Child Home,Childrens Act Section 23 - Placement Fee,08/04/2020,5403620,"11,957.14",Mig House Residential Care Home Ltd
Children & Culture,Education Services,Services to Young People and Other Community Learners,Holiday Childcare,Educational/Training Supplies - Arts & Crafts,08/04/2020,5403664,408.00,ESPO
Children & Culture,Education Services,Services to Young People and Other Community Learners,Holiday Childcare,Educational/Training Supplies - Arts & Crafts,08/04/2020,5403668,360.00,ESPO
Children & Culture,Education Services,Services to Young People and Other Community Learners,Holiday Childcare,Educational/Training Supplies - Arts & Crafts,08/04/2020,5403669,392.00,ESPO
Children & Culture,Education Services,Services to Young People and Other Community Learners,Holiday Childcare,Educational/Training Supplies - Arts & Crafts,08/04/2020,5403673,318.00,ESPO
Children & Culture,Education Services,Services to Young People and Other Community Learners,Holiday Childcare,Educational/Training Supplies - Arts & Crafts,08/04/2020,5403673,293.70,ESPO
Children & Culture,Education Services,Services to Young People and Other Community Learners,Holiday Childcare,Educational/Training Supplies - Arts & Crafts,08/04/2020,5403673,293.70,ESPO
Children & Culture,Education Services,Services to Young People and Other Community Learners,Holiday Childcare,Educational/Training Supplies - Arts & Crafts,08/04/2020,5403673,266.70,ESPO
Children & Culture,Education Services,Services to Young People and Other Community Learners,Holiday Childcare,Stationery,08/04/2020,5403673,366.00,ESPO
Children & Culture,Education Services,Services to Young People and Other Community Learners,Holiday Childcare,Educational/Training Supplies - Arts & Crafts,08/04/2020,5403675,290.00,ESPO
Children & Culture,Education Services,Services to Young People and Other Community Learners,Holiday Childcare,Stationery,08/04/2020,5403676,579.60,ESPO
Children & Culture,Children's Social Care,Support Service and Management Costs,Schools Catering,Kitchen Supplies - Food and Beverages,08/04/2020,5403687,726.81,Thomas Ridley & Son Ltd
Children & Culture,Children's Social Care,Support Service and Management Costs,Schools Catering,Kitchen Supplies - Food and Beverages,08/04/2020,5403689,624.42,Thomas Ridley & Son Ltd
Children & Culture,Children's Social Care,Support Service and Management Costs,Schools Catering,Kitchen Supplies - Food and Beverages,08/04/2020,5403691,264.68,Thomas Ridley & Son Ltd
Children & Culture,Children's Social Care,Support Service and Management Costs,Schools Catering,Kitchen Supplies - Food and Beverages,08/04/2020,5403692,580.28,Thomas Ridley & Son Ltd
Children & Culture,Children's Social Care,Support Service and Management Costs,Schools Catering,Kitchen Supplies - Food and Beverages,08/04/2020,5403693,"1,032.81",Thomas Ridley & Son Ltd
Children & Culture,Children's Social Care,Support Service and Management Costs,Schools Catering,Kitchen Supplies - Food and Beverages,08/04/2020,5403695,306.17,Thomas Ridley & Son Ltd
Children & Culture,Children's Social Care,Support Service and Management Costs,Schools Catering,Kitchen Supplies - Food and Beverages,08/04/2020,5403696,390.30,Thomas Ridley & Son Ltd
Children & Culture,Children's Social Care,Support Service and Management Costs,Schools Catering,Kitchen Supplies - Food and Beverages,08/04/2020,5403697,428.04,Thomas Ridley & Son Ltd
Children & Culture,Children's Social Care,Support Service and Management Costs,Schools Catering,Kitchen Supplies - Food and Beverages,08/04/2020,5403700,779.16,Thomas Ridley & Son Ltd
Children & Culture,Children's Social Care,Support Service and Management Costs,Schools Catering,Kitchen Supplies - Food and Beverages,08/04/2020,5403701,262.89,Thomas Ridley & Son Ltd
Children & Culture,Children's Social Care,Support Service and Management Costs,Schools Catering,Kitchen Supplies - Food and Beverages,08/04/2020,5403702,492.92,Thomas Ridley & Son Ltd
Children & Culture,Children's Social Care,Support Service and Management Costs,Schools Catering,Kitchen Supplies - Food and Beverages,08/04/2020,5403703,326.73,Thomas Ridley & Son Ltd
Children & Culture,Children's Social Care,Support Service and Management Costs,Schools Catering,Kitchen Supplies - Food and Beverages,08/04/2020,5403704,304.41,Thomas Ridley & Son Ltd
Children & Culture,Children's Social Care,Support Service and Management Costs,Schools Catering,Kitchen Supplies - Food and Beverages,08/04/2020,5403706,585.19,Thomas Ridley & Son Ltd
Children & Culture,Children's Social Care,Support Service and Management Costs,Schools Catering,Kitchen Supplies - Food and Beverages,08/04/2020,5403707,519.26,Thomas Ridley & Son Ltd
Children & Culture,Children's Social Care,Support Service and Management Costs,Schools Catering,Kitchen Supplies - Food and Beverages,08/04/2020,5403710,340.20,Thomas Ridley & Son Ltd
Children & Culture,Children's Social Care,Support Service and Management Costs,Sch. Meals A/c - Central Production Unit,Kitchen Supplies - Food and Beverages,08/04/2020,5403711,"1,249.69",Thomas Ridley & Son Ltd
Children & Culture,Children's Social Care,Support Service and Management Costs,Schools Catering,Kitchen Supplies - Food and Beverages,08/04/2020,5403713,725.78,Thomas Ridley & Son Ltd
Children & Culture,Children's Social Care,Support Service and Management Costs,Schools Catering,Kitchen Supplies - Food and Beverages,08/04/2020,5403717,454.99,Thomas Ridley & Son Ltd
Children & Culture,Children's Social Care,Support Service and Management Costs,Schools Catering,Kitchen Supplies - Food and Beverages,08/04/2020,5403719,579.38,Thomas Ridley & Son Ltd
Children & Culture,Children's Social Care,Family Support Services,Eva Armsby Family Centre,Office Furniture/Equipment,08/04/2020,5403806,569.71,Posturite (UK) Ltd
Children & Culture,Children's Social Care,Children Looked After,Virtual School PPG,Third Party Payments - Payments to Schools,08/04/2020,5403830,480.00,Priory School
Children & Culture,Education Services,Early Years,Children Centre Central Team,Services - Professional Fees - Environmental Services Fees,08/04/2020,5403902,"6,540.00",Charterhouse Aquatics
Children & Culture,No Service Specified,No Division Specified,Capital-Minor Works (SC),Other External Fees - Consultants Fees,08/04/2020,5403903,"3,720.00",Aspire Community Works
Children & Culture,Education Services,Other Strategic Functions,Special Education Needs DSG,Third Party Payments - Payments to Schools,08/04/2020,5403906,299.40,Unlocking Language Ltd
Children & Culture,Children's Social Care,Children Looked After,S23 Fam Pl P&V-F/Care,Childrens Act Section 23 - Placement Fee,08/04/2020,5403929,"3,145.88",Children First Fostering Agency LTD
Children & Culture,Children's Social Care,Children Looked After,S23 Fam Pl P&V-F/Care,Childrens Act Section 23 - Placement Fee,08/04/2020,5403930,"3,173.78",Children First Fostering Agency LTD
Children & Culture,Education Services,Services to Young People and Other Community Learners,Holiday Childcare,Grounds Maintenance - Contract - Paths/Drives/Playground,08/04/2020,5403946,290.00,ESPO
Children & Culture,Children's Social Care,Support Service and Management Costs,Schools Catering,Kitchen Supplies - Food and Beverages,08/04/2020,5403948,295.41,Thomas Ridley & Son Ltd
Children & Culture,Children's Social Care,Support Service and Management Costs,Schools Catering,Kitchen Supplies - Food and Beverages,08/04/2020,5403949,617.75,Thomas Ridley & Son Ltd
Children & Culture,Children's Social Care,Support Service and Management Costs,Schools Catering,Kitchen Supplies - Food and Beverages,08/04/2020,5403950,495.89,Thomas Ridley & Son Ltd
Children & Culture,Children's Social Care,Support Service and Management Costs,Schools Catering,Kitchen Supplies - Food and Beverages,08/04/2020,5403952,378.94,Thomas Ridley & Son Ltd
Children & Culture,Children's Social Care,Support Service and Management Costs,Schools Catering,Kitchen Supplies - Food and Beverages,08/04/2020,5403954,432.21,Thomas Ridley & Son Ltd
Children & Culture,Children's Social Care,Support Service and Management Costs,Schools Catering,Kitchen Supplies - Food and Beverages,08/04/2020,5403955,476.62,Thomas Ridley & Son Ltd
Children & Culture,Children's Social Care,Support Service and Management Costs,Schools Catering,Kitchen Supplies - Food and Beverages,08/04/2020,5403956,268.79,Thomas Ridley & Son Ltd
Children & Culture,Children's Social Care,Support Service and Management Costs,Schools Catering,Kitchen Supplies - Food and Beverages,08/04/2020,5403957,289.89,Thomas Ridley & Son Ltd
Children & Culture,Children's Social Care,Support Service and Management Costs,Schools Catering,Kitchen Supplies - Food and Beverages,08/04/2020,5403961,340.82,Thomas Ridley & Son Ltd
Children & Culture,Children's Social Care,Support Service and Management Costs,Schools Catering,Kitchen Supplies - Food and Beverages,08/04/2020,5403962,318.36,Thomas Ridley & Son Ltd
Children & Culture,Children's Social Care,Support Service and Management Costs,Schools Catering,Kitchen Supplies - Food and Beverages,08/04/2020,5403963,265.59,Thomas Ridley & Son Ltd
Children & Culture,Children's Social Care,Support Service and Management Costs,Schools Catering,Kitchen Supplies - Food and Beverages,08/04/2020,5403966,531.98,Thomas Ridley & Son Ltd
Children & Culture,Children's Social Care,Support Service and Management Costs,Schools Catering,Kitchen Supplies - Food and Beverages,08/04/2020,5403967,355.70,Thomas Ridley & Son Ltd
Children & Culture,Children's Social Care,Support Service and Management Costs,Schools Catering,Kitchen Supplies - Food and Beverages,08/04/2020,5403968,441.59,Thomas Ridley & Son Ltd
Children & Culture,Children's Social Care,Support Service and Management Costs,Schools Catering,Kitchen Supplies - Food and Beverages,08/04/2020,5403972,408.94,Thomas Ridley & Son Ltd
Children & Culture,Children's Social Care,Support Service and Management Costs,Schools Catering,Kitchen Supplies - Food and Beverages,08/04/2020,5403973,358.82,Thomas Ridley & Son Ltd
Children & Culture,Children's Social Care,Support Service and Management Costs,Schools Catering,Kitchen Supplies - Food and Beverages,08/04/2020,5403974,948.58,Thomas Ridley & Son Ltd
Children & Culture,Children's Social Care,Support Service and Management Costs,Schools Catering,Kitchen Supplies - Food and Beverages,08/04/2020,5403975,619.53,Thomas Ridley & Son Ltd
Children & Culture,Children's Social Care,Support Service and Management Costs,Schools Catering,Kitchen Supplies - Food and Beverages,08/04/2020,5403977,760.01,Thomas Ridley & Son Ltd
Children & Culture,Children's Social Care,Support Service and Management Costs,Schools Catering,Kitchen Supplies - Food and Beverages,08/04/2020,5403979,464.78,Thomas Ridley & Son Ltd
Children & Culture,Children's Social Care,Support Service and Management Costs,"Mulberry Caf�		",Kitchen Supplies - Food and Beverages,08/04/2020,5403980,257.13,Thomas Ridley & Son Ltd
Children & Culture,Children's Social Care,Support Service and Management Costs,Schools Catering,Kitchen Supplies - Food and Beverages,08/04/2020,5403981,425.00,Thomas Ridley & Son Ltd
Children & Culture,Children's Social Care,Support Service and Management Costs,Schools Catering,Kitchen Supplies - Food and Beverages,08/04/2020,5403982,883.23,Thomas Ridley & Son Ltd
Children & Culture,Children's Social Care,Support Service and Management Costs,Schools Catering,Kitchen Supplies - Food and Beverages,08/04/2020,5403985,399.29,Thomas Ridley & Son Ltd
Children & Culture,Children's Social Care,Support Service and Management Costs,Schools Catering,Kitchen Supplies - Food and Beverages,08/04/2020,5403986,323.56,Thomas Ridley & Son Ltd
Children & Culture,Children's Social Care,Support Service and Management Costs,Schools Catering,Kitchen Supplies - Food and Beverages,08/04/2020,5403987,"1,722.95",Thomas Ridley & Son Ltd
Children & Culture,Children's Social Care,Support Service and Management Costs,Schools Catering,Kitchen Supplies - Food and Beverages,08/04/2020,5403988,698.95,Thomas Ridley & Son Ltd
Children & Culture,Children's Social Care,Support Service and Management Costs,Schools Catering,Kitchen Supplies - Food and Beverages,08/04/2020,5403989,282.70,Thomas Ridley & Son Ltd
Children & Culture,Children's Social Care,Support Service and Management Costs,Schools Catering,Kitchen Supplies - Food and Beverages,08/04/2020,5403990,397.84,Thomas Ridley & Son Ltd
Children & Culture,Children's Social Care,Support Service and Management Costs,Sch. Meals A/c - Central Production Unit,Kitchen Supplies - Food and Beverages,08/04/2020,5403992,"1,754.83",Thomas Ridley & Son Ltd
Children & Culture,Children's Social Care,Support Service and Management Costs,Schools Catering,Kitchen Supplies - Food and Beverages,08/04/2020,5403993,426.83,Thomas Ridley & Son Ltd
Children & Culture,Children's Social Care,Support Service and Management Costs,Schools Catering,Kitchen Supplies - Food and Beverages,08/04/2020,5403994,901.72,Thomas Ridley & Son Ltd
Children & Culture,Children's Social Care,Support Service and Management Costs,Schools Catering,Kitchen Supplies - Food and Beverages,08/04/2020,5403995,373.87,Thomas Ridley & Son Ltd
Children & Culture,Children's Social Care,Support Service and Management Costs,Schools Catering,Kitchen Supplies - Food and Beverages,08/04/2020,5403997,319.90,Thomas Ridley & Son Ltd
Children & Culture,Children's Social Care,Support Service and Management Costs,Schools Catering,Kitchen Supplies - Food and Beverages,08/04/2020,5403998,441.03,Thomas Ridley & Son Ltd
Children & Culture,Children's Social Care,Support Service and Management Costs,Schools Catering,Kitchen Supplies - Food and Beverages,08/04/2020,5403999,410.09,Thomas Ridley & Son Ltd
Children & Culture,Children's Social Care,Support Service and Management Costs,Schools Catering,Kitchen Supplies - Food and Beverages,08/04/2020,5404029,273.33,Prescott-Thomas LTD.
Children & Culture,Children's Social Care,Support Service and Management Costs,Schools Catering,Kitchen Supplies - Food and Beverages,08/04/2020,5404051,264.60,Prescott-Thomas LTD.
Children & Culture,Children's Social Care,Support Service and Management Costs,Swanlea,Kitchen Supplies - Food and Beverages,08/04/2020,5404057,286.55,Prescott-Thomas LTD.
Children & Culture,Education Services,Other Strategic Functions,Alternative Provision,Third Party Payments - Payments to Schools,08/04/2020,5404188,"3,000.00",Morpeth School
Children & Culture,Cultural and Related Services,Open Spaces,Mile End Park,Repairs and Maintenance - Responsive - Buildings,08/04/2020,5404195,"1,800.00",JC Coster (Metalworks) Ltd
Children & Culture,Cultural and Related Services,Open Spaces,Parks & Open Spaces Man&Admin,Repairs and Maintenance - Responsive - Buildings,08/04/2020,5404196,980.00,JC Coster (Metalworks) Ltd
Children & Culture,Education Services,Other Strategic Functions,Music Trading Account,Payments to Private Contractors - Voluntary Associations,08/04/2020,5404230,300.00,Rehan Jamil Photography
Children & Culture,Education Services,Other Strategic Functions,Special Education Needs DSG,Third Party Payments - Payments to Schools,08/04/2020,5404250,"13,087.18",Transitional Care LTD
Children & Culture,Education Services,Early Years,Wapping CC,Educational/Training Supplies - Arts & Crafts,08/04/2020,5404256,430.00,Eduzone Ltd
Children & Culture,Education Services,Other Strategic Functions,Alternative Provision,Third Party Payments - Payments to Schools,08/04/2020,5404354,"3,000.00",BOW SCHOOL
Children & Culture,Education Services,Other Strategic Functions,Alternative Provision,Third Party Payments - Payments to Schools,08/04/2020,5404355,"4,000.00",BISHOP CHALLONER BOYS SCHOOL
Children & Culture,Cultural and Related Services,Open Spaces,Parks & Open Spaces Man&Admin,Repairs and Maintenance - Responsive - Buildings,08/04/2020,5404452,540.00,JC Coster (Metalworks) Ltd
Children & Culture,Education Services,Other Strategic Functions,Alternative Provision,Third Party Payments - Other Colleges,08/04/2020,5404459,"126,000.00",New City College
Children & Culture,Children's Social Care,Children Looked After,LCS/Allowances-Accom,Leaving Care Financial Assistance - Supp Accom/Hous Rents,08/04/2020,5404519,571.40,The Way Care Services Ltd
Children & Culture,Children's Social Care,Children Looked After,LCS/Allowances-Accom,Leaving Care Financial Assistance - Supported Living,08/04/2020,5404519,285.70,The Way Care Services Ltd
Children & Culture,Education Services,Early Years,Children Centre Central Team,Medical Requisites,08/04/2020,5404533,"1,850.00",NHS SUPPLY CHAIN
Children & Culture,Children's Social Care,Support Service and Management Costs,Sch. Meals A/c - Bow School,Kitchen Supplies - Food and Beverages,08/04/2020,5404540,"1,125.90",Tiffin Sandwiches
Children & Culture,Children's Social Care,Support Service and Management Costs,Sch. Meals A/c - C.F.S. Upper (Harley Grove),Kitchen Supplies - Food and Beverages,08/04/2020,5404541,567.00,Tiffin Sandwiches
Children & Culture,Children's Social Care,Support Service and Management Costs,Sch. Meals A/c - St. Paul's Way Comm. Trust,Kitchen Supplies - Food and Beverages,08/04/2020,5404544,739.53,Tiffin Sandwiches
Children & Culture,Children's Social Care,Support Service and Management Costs,Sch. Meals A/c - Stepney Green,Kitchen Supplies - Food and Beverages,08/04/2020,5404545,291.60,Tiffin Sandwiches
Children & Culture,Children's Social Care,Support Service and Management Costs,Sch. Meals A/c - Morpeth,Kitchen Supplies - Food and Beverages,08/04/2020,5404547,"1,077.30",Tiffin Sandwiches
Children & Culture,Children's Social Care,Support Service and Management Costs,"Mulberry Caf�		",Kitchen Supplies - Food and Beverages,08/04/2020,5404548,336.54,Tiffin Sandwiches
Children & Culture,Education Services,Early Years,EYS Mangt & Admin GF,Printing - External,08/04/2020,5404549,300.00,Kois Miah Photography
Children & Culture,Children's Social Care,Support Service and Management Costs,Swanlea,Kitchen Supplies - Food and Beverages,08/04/2020,5404582,449.08,Chicken Joes
Children & Culture,Children's Social Care,Support Service and Management Costs,Sch. Meals A/c - Central Production Unit,Kitchen Supplies - Food and Beverages,08/04/2020,5404584,914.24,Chicken Joes
Children & Culture,Children's Social Care,Support Service and Management Costs,Schools Catering,Kitchen Supplies - Food and Beverages,08/04/2020,5404612,"1,355.97",Thomas Ridley & Son Ltd
Children & Culture,Children's Social Care,Support Service and Management Costs,Schools Catering,Kitchen Supplies - Food and Beverages,08/04/2020,5404613,323.01,Thomas Ridley & Son Ltd
Children & Culture,Children's Social Care,Support Service and Management Costs,Schools Catering,Kitchen Supplies - Food and Beverages,08/04/2020,5404614,391.06,Thomas Ridley & Son Ltd
Children & Culture,Children's Social Care,Support Service and Management Costs,Schools Catering,Kitchen Supplies - Food and Beverages,08/04/2020,5404617,681.47,Thomas Ridley & Son Ltd
Children & Culture,Children's Social Care,Support Service and Management Costs,Schools Catering,Kitchen Supplies - Food and Beverages,08/04/2020,5404619,365.85,Thomas Ridley & Son Ltd
Children & Culture,Children's Social Care,Support Service and Management Costs,Schools Catering,Kitchen Supplies - Food and Beverages,08/04/2020,5404621,576.53,Thomas Ridley & Son Ltd
Children & Culture,Children's Social Care,Support Service and Management Costs,Schools Catering,Kitchen Supplies - Food and Beverages,08/04/2020,5404625,"1,219.33",Thomas Ridley & Son Ltd
Children & Culture,Children's Social Care,Support Service and Management Costs,Schools Catering,Kitchen Supplies - Food and Beverages,08/04/2020,5404627,860.79,Thomas Ridley & Son Ltd
Children & Culture,Children's Social Care,Support Service and Management Costs,Schools Catering,Kitchen Supplies - Food and Beverages,08/04/2020,5404628,303.60,Thomas Ridley & Son Ltd
Children & Culture,Children's Social Care,Support Service and Management Costs,Schools Catering,Kitchen Supplies - Food and Beverages,08/04/2020,5404629,321.75,Thomas Ridley & Son Ltd
Children & Culture,Children's Social Care,Support Service and Management Costs,Schools Catering,Kitchen Supplies - Food and Beverages,08/04/2020,5404631,424.39,Thomas Ridley & Son Ltd
Children & Culture,Children's Social Care,Support Service and Management Costs,Schools Catering,Kitchen Supplies - Food and Beverages,08/04/2020,5404633,370.36,Thomas Ridley & Son Ltd
Children & Culture,Children's Social Care,Support Service and Management Costs,Schools Catering,Kitchen Supplies - Food and Beverages,08/04/2020,5404635,345.24,Thomas Ridley & Son Ltd
Children & Culture,Children's Social Care,Support Service and Management Costs,Schools Catering,Kitchen Supplies - Food and Beverages,08/04/2020,5404636,587.39,Thomas Ridley & Son Ltd
Children & Culture,Children's Social Care,Support Service and Management Costs,Schools Catering,Kitchen Supplies - Food and Beverages,08/04/2020,5404637,616.43,Thomas Ridley & Son Ltd
Children & Culture,Children's Social Care,Support Service and Management Costs,Schools Catering,Kitchen Supplies - Food and Beverages,08/04/2020,5404638,283.95,Thomas Ridley & Son Ltd
Children & Culture,Children's Social Care,Support Service and Management Costs,Schools Catering,Kitchen Supplies - Food and Beverages,08/04/2020,5404640,584.00,Thomas Ridley & Son Ltd
Children & Culture,Children's Social Care,Support Service and Management Costs,Schools Catering,Kitchen Supplies - Food and Beverages,08/04/2020,5404644,440.39,Thomas Ridley & Son Ltd
Children & Culture,Children's Social Care,Support Service and Management Costs,Schools Catering,Kitchen Supplies - Food and Beverages,08/04/2020,5404647,315.02,Thomas Ridley & Son Ltd
Children & Culture,Children's Social Care,Support Service and Management Costs,Schools Catering,Kitchen Supplies - Food and Beverages,08/04/2020,5404648,315.93,Thomas Ridley & Son Ltd
Children & Culture,Children's Social Care,Support Service and Management Costs,Schools Catering,Kitchen Supplies - Food and Beverages,08/04/2020,5404649,372.70,Thomas Ridley & Son Ltd
Children & Culture,Children's Social Care,Support Service and Management Costs,Schools Catering,Kitchen Supplies - Food and Beverages,08/04/2020,5404651,373.42,Thomas Ridley & Son Ltd
Children & Culture,Children's Social Care,Support Service and Management Costs,Schools Catering,Kitchen Supplies - Food and Beverages,08/04/2020,5404652,539.01,Thomas Ridley & Son Ltd
Children & Culture,Children's Social Care,Support Service and Management Costs,Schools Catering,Kitchen Supplies - Food and Beverages,08/04/2020,5404653,421.18,Thomas Ridley & Son Ltd
Children & Culture,Children's Social Care,Support Service and Management Costs,Schools Catering,Kitchen Supplies - Food and Beverages,08/04/2020,5404654,337.55,Thomas Ridley & Son Ltd
Children & Culture,Children's Social Care,Support Service and Management Costs,Schools Catering,Kitchen Supplies - Food and Beverages,08/04/2020,5404655,330.08,Thomas Ridley & Son Ltd
Children & Culture,Children's Social Care,Support Service and Management Costs,Schools Catering,Kitchen Supplies - Food and Beverages,08/04/2020,5404657,553.41,Thomas Ridley & Son Ltd
Children & Culture,Children's Social Care,Support Service and Management Costs,Schools Catering,Kitchen Supplies - Food and Beverages,08/04/2020,5404658,790.73,Thomas Ridley & Son Ltd
Children & Culture,Children's Social Care,Support Service and Management Costs,Schools Catering,Kitchen Supplies - Food and Beverages,08/04/2020,5404659,290.76,Thomas Ridley & Son Ltd
Children & Culture,Children's Social Care,Support Service and Management Costs,Sch. Meals A/c - Central Production Unit,Kitchen Supplies - Food and Beverages,08/04/2020,5404661,402.70,Thomas Ridley & Son Ltd
Children & Culture,Children's Social Care,Support Service and Management Costs,Schools Catering,Kitchen Supplies - Food and Beverages,08/04/2020,5404662,488.02,Thomas Ridley & Son Ltd
Children & Culture,Children's Social Care,Support Service and Management Costs,Schools Catering,Kitchen Supplies - Food and Beverages,08/04/2020,5404663,445.33,Thomas Ridley & Son Ltd
Children & Culture,Children's Social Care,Support Service and Management Costs,"Mulberry Caf�		",Kitchen Supplies - Food and Beverages,08/04/2020,5404664,254.13,Thomas Ridley & Son Ltd
Children & Culture,Children's Social Care,Support Service and Management Costs,Schools Catering,Kitchen Supplies - Food and Beverages,08/04/2020,5404668,679.42,Thomas Ridley & Son Ltd
Children & Culture,Children's Social Care,Support Service and Management Costs,Schools Catering,Kitchen Supplies - Food and Beverages,08/04/2020,5404669,480.85,Thomas Ridley & Son Ltd
Children & Culture,Children's Social Care,Support Service and Management Costs,Schools Catering,Kitchen Supplies - Food and Beverages,08/04/2020,5404672,306.66,Thomas Ridley & Son Ltd
Children & Culture,Children's Social Care,Support Service and Management Costs,Schools Catering,Kitchen Supplies - Food and Beverages,08/04/2020,5404673,441.09,Thomas Ridley & Son Ltd
Children & Culture,Children's Social Care,Support Service and Management Costs,Schools Catering,Kitchen Supplies - Food and Beverages,08/04/2020,5404674,888.69,Thomas Ridley & Son Ltd
Children & Culture,Children's Social Care,Support Service and Management Costs,Schools Catering,Kitchen Supplies - Food and Beverages,08/04/2020,5404677,383.32,Thomas Ridley & Son Ltd
Children & Culture,Children's Social Care,Children Looked After,S23 Fam Pl P&V-F/Care,Childrens Act Section 23 - All Contact Expenses,08/04/2020,5404687,350.00,HOPE Superjobs Ltd
Children & Culture,Children's Social Care,Support Service and Management Costs,Schools Catering,Kitchen Supplies - Food and Beverages,08/04/2020,5407898,328.39,William White Meats Ltd
Children & Culture,Children's Social Care,Support Service and Management Costs,Schools Catering,Kitchen Supplies - Food and Beverages,08/04/2020,5407906,582.13,William White Meats Ltd
Children & Culture,Children's Social Care,Support Service and Management Costs,Schools Catering,Kitchen Supplies - Food and Beverages,08/04/2020,5407907,537.12,William White Meats Ltd
Children & Culture,Children's Social Care,Support Service and Management Costs,Swanlea,Kitchen Supplies - Food and Beverages,08/04/2020,5407912,"1,159.01",William White Meats Ltd
Children & Culture,Children's Social Care,Support Service and Management Costs,Sch. Meals A/c - Central Production Unit,Kitchen Supplies - Food and Beverages,08/04/2020,5407915,"1,735.71",William White Meats Ltd
Children & Culture,Education Services,Other Strategic Functions,Schools Library,Books - General Purchases,08/04/2020,5407959,463.85,Peters Bookselling Services
Children & Culture,Children's Social Care,Support Service and Management Costs,Building Cleaning,Materials - Cleaning Materials,08/04/2020,5408051,"1,113.46",The Maintenance Supply Co Ltd
Children & Culture,Children's Social Care,Support Service and Management Costs,Schools Catering,Materials - Cleaning Materials,08/04/2020,5408054,316.35,The Maintenance Supply Co Ltd
Children & Culture,Children's Social Care,Children Looked After,Comm Outreach & Assmnt Team,Social Care - Day Care,08/04/2020,5408163,"19,474.00",Positive Families Partnership LLP
Children & Culture,Education Services,Other Strategic Functions,Special Education Needs DSG,Services - Professional Fees - Consultants Fees,08/04/2020,5408186,"5,104.00",Hampton's Resourcing Limited
Children & Culture,Children's Social Care,Support Service and Management Costs,Sch. Meals A/c - Hague,Tools and Equipment - Purchase,08/04/2020,5408203,852.00,Lambourne Refrigeration
Children & Culture,Children's Social Care,Family Support Services,Short Breaks and Family Support,Third Party Payments - Voluntary Associations,08/04/2020,5408204,"19,038.00",Childrens Specialist Services SENSE
Children & Culture,Education Services,Other Strategic Functions,Special Education Needs DSG,Social Care - Nursing Care,08/04/2020,5408235,"60,000.00",Barts Health NHS Trust
Children & Culture,Children's Social Care,Support Service and Management Costs,Schools Catering,Kitchen Supplies - Food and Beverages,08/04/2020,5408264,296.19,Thomas Ridley & Son Ltd
Children & Culture,Children's Social Care,Support Service and Management Costs,Schools Catering,Kitchen Supplies - Food and Beverages,08/04/2020,5408265,395.60,Thomas Ridley & Son Ltd
Children & Culture,Children's Social Care,Support Service and Management Costs,Schools Catering,Kitchen Supplies - Food and Beverages,08/04/2020,5408266,441.13,Thomas Ridley & Son Ltd
Children & Culture,Children's Social Care,Support Service and Management Costs,Schools Catering,Kitchen Supplies - Food and Beverages,08/04/2020,5408267,292.11,Thomas Ridley & Son Ltd
Children & Culture,Children's Social Care,Support Service and Management Costs,Schools Catering,Kitchen Supplies - Food and Beverages,08/04/2020,5408268,383.29,Thomas Ridley & Son Ltd
Children & Culture,Children's Social Care,Support Service and Management Costs,Sch. Meals A/c - Central Production Unit,Kitchen Supplies - Food and Beverages,08/04/2020,5408272,"2,094.48",Thomas Ridley & Son Ltd
Children & Culture,Children's Social Care,Support Service and Management Costs,Schools Catering,Kitchen Supplies - Food and Beverages,08/04/2020,5408273,378.65,Thomas Ridley & Son Ltd
Children & Culture,Children's Social Care,Services for young people,A Team Arts,Educational/Training Supplies - Curriculum Visits/Activities,08/04/2020,5408447,540.00,Asdan Limited
Children & Culture,Children's Social Care,Children Looked After,Enrichment Projects,Training Expenses - Staff External Training (UK Based),08/04/2020,5408543,"3,000.00",Learning Labs Ltd
Children & Culture,Children's Social Care,Children Looked After,Leaving Care-UASC,Leaving Care Financial Assistance - Supp Accom/Hous Rents,08/04/2020,5408712,"2,974.53",The Way Care Services Ltd
Children & Culture,Children's Social Care,Children Looked After,Leaving Care-UASC,Leaving Care Financial Assistance - Supported Living,08/04/2020,5408712,"1,035.59",The Way Care Services Ltd
Children & Culture,Education Services,Other Strategic Functions,SEN External Travel,Social Care - Day Care,08/04/2020,5408781,396.75,Carebridge Staffing Ltd
Children & Culture,Children's Social Care,Children Looked After,Virtual School PPG,Third Party Payments - Payments to Schools,08/04/2020,5408784,700.00,Warren Junior School
Children & Culture,Children's Social Care,Children's and Young People's Safety,Community Safeguarding,Training Expenses - Staff External Training (UK Based),08/04/2020,5408831,400.00,WF Somali Women Association
Children & Culture,Children's Social Care,Support Service and Management Costs,Schools Catering,Kitchen Supplies - Food and Beverages,08/04/2020,5410552,391.19,William White Meats Ltd
Children & Culture,Children's Social Care,Support Service and Management Costs,Schools Catering,Kitchen Supplies - Food and Beverages,08/04/2020,5410555,300.76,William White Meats Ltd
Children & Culture,Children's Social Care,Support Service and Management Costs,Schools Catering,Kitchen Supplies - Food and Beverages,08/04/2020,5410556,296.94,William White Meats Ltd
Children & Culture,Children's Social Care,Support Service and Management Costs,Schools Catering,Kitchen Supplies - Food and Beverages,08/04/2020,5410557,433.24,William White Meats Ltd
Children & Culture,Children's Social Care,Support Service and Management Costs,Schools Catering,Kitchen Supplies - Food and Beverages,08/04/2020,5410560,833.11,William White Meats Ltd
Children & Culture,Children's Social Care,Support Service and Management Costs,Schools Catering,Kitchen Supplies - Food and Beverages,08/04/2020,5410562,340.88,William White Meats Ltd
Children & Culture,Children's Social Care,Support Service and Management Costs,Schools Catering,Kitchen Supplies - Food and Beverages,08/04/2020,5410568,344.56,William White Meats Ltd
Children & Culture,Children's Social Care,Support Service and Management Costs,Schools Catering,Kitchen Supplies - Food and Beverages,08/04/2020,5410569,429.06,William White Meats Ltd
Children & Culture,Children's Social Care,Support Service and Management Costs,Schools Catering,Kitchen Supplies - Food and Beverages,08/04/2020,5410571,266.44,William White Meats Ltd
Children & Culture,Children's Social Care,Support Service and Management Costs,Schools Catering,Kitchen Supplies - Food and Beverages,08/04/2020,5410572,475.85,William White Meats Ltd
Children & Culture,Children's Social Care,Support Service and Management Costs,Schools Catering,Kitchen Supplies - Food and Beverages,08/04/2020,5410573,437.01,William White Meats Ltd
Children & Culture,Children's Social Care,Support Service and Management Costs,Schools Catering,Kitchen Supplies - Food and Beverages,08/04/2020,5410575,352.67,William White Meats Ltd
Children & Culture,Children's Social Care,Support Service and Management Costs,Schools Catering,Kitchen Supplies - Food and Beverages,08/04/2020,5410580,337.29,William White Meats Ltd
Children & Culture,Children's Social Care,Support Service and Management Costs,Schools Catering,Kitchen Supplies - Food and Beverages,08/04/2020,5410582,789.21,William White Meats Ltd
Children & Culture,Children's Social Care,Support Service and Management Costs,Schools Catering,Kitchen Supplies - Food and Beverages,08/04/2020,5410584,308.85,William White Meats Ltd
Children & Culture,Children's Social Care,Support Service and Management Costs,Schools Catering,Kitchen Supplies - Food and Beverages,08/04/2020,5410586,291.45,William White Meats Ltd
Children & Culture,Children's Social Care,Support Service and Management Costs,Schools Catering,Kitchen Supplies - Food and Beverages,08/04/2020,5410589,421.91,William White Meats Ltd
Children & Culture,Children's Social Care,Support Service and Management Costs,Schools Catering,Kitchen Supplies - Food and Beverages,08/04/2020,5410590,299.98,William White Meats Ltd
Children & Culture,Children's Social Care,Support Service and Management Costs,Schools Catering,Kitchen Supplies - Food and Beverages,08/04/2020,5410592,470.56,William White Meats Ltd
Children & Culture,Children's Social Care,Support Service and Management Costs,Sch. Meals A/c - Central Production Unit,Kitchen Supplies - Food and Beverages,08/04/2020,5410595,442.86,William White Meats Ltd
Children & Culture,Children's Social Care,Support Service and Management Costs,Schools Catering,Kitchen Supplies - Food and Beverages,08/04/2020,5410597,251.42,William White Meats Ltd
Children & Culture,Children's Social Care,Support Service and Management Costs,Schools Catering,Kitchen Supplies - Food and Beverages,08/04/2020,5410600,372.66,William White Meats Ltd
Children & Culture,Children's Social Care,Support Service and Management Costs,Schools Catering,Kitchen Supplies - Food and Beverages,08/04/2020,5410606,"1,038.96",William White Meats Ltd
Children & Culture,Children's Social Care,Support Service and Management Costs,Schools Catering,Kitchen Supplies - Food and Beverages,08/04/2020,5410607,350.15,William White Meats Ltd
Children & Culture,Children's Social Care,Support Service and Management Costs,Schools Catering,Kitchen Supplies - Food and Beverages,08/04/2020,5410609,391.09,William White Meats Ltd
Children & Culture,Children's Social Care,Support Service and Management Costs,Schools Catering,Kitchen Supplies - Food and Beverages,08/04/2020,5410610,"1,137.17",William White Meats Ltd
Children & Culture,Children's Social Care,Support Service and Management Costs,Schools Catering,Kitchen Supplies - Food and Beverages,08/04/2020,5410611,259.28,William White Meats Ltd
Children & Culture,Children's Social Care,Support Service and Management Costs,Schools Catering,Kitchen Supplies - Food and Beverages,08/04/2020,5410614,259.14,William White Meats Ltd
Children & Culture,Children's Social Care,Support Service and Management Costs,Schools Catering,Kitchen Supplies - Food and Beverages,08/04/2020,5410615,607.16,William White Meats Ltd
Children & Culture,Children's Social Care,Support Service and Management Costs,Schools Catering,Kitchen Supplies - Food and Beverages,08/04/2020,5410616,514.80,William White Meats Ltd
Children & Culture,Children's Social Care,Support Service and Management Costs,Schools Catering,Kitchen Supplies - Food and Beverages,08/04/2020,5410618,365.00,William White Meats Ltd
Children & Culture,Children's Social Care,Support Service and Management Costs,Schools Catering,Kitchen Supplies - Food and Beverages,08/04/2020,5410620,326.23,William White Meats Ltd
Children & Culture,Children's Social Care,Support Service and Management Costs,Welfare Catering,Kitchen Supplies - Food and Beverages,08/04/2020,5410754,275.88,Apetito LTD
Children & Culture,Education Services,Other Strategic Functions,SEN External Travel,Social Care - Day Care,08/04/2020,5410767,"1,470.00",Carebridge Staffing Ltd
Children & Culture,Children's Social Care,Children Looked After,S23 Fam Pl P&V-F/Care,Childrens Act Section 23 - Placement Fee,08/04/2020,5411576,"3,114.39",Sunbeam Fostering Agency Ltd
Children & Culture,Children's Social Care,Children Looked After,S23 Fam Pl P&V-F/Care,Childrens Act Section 23 - Placement Fee,08/04/2020,5411577,"3,114.39",Sunbeam Fostering Agency Ltd
Children & Culture,Children's Social Care,Children Looked After,S23 Fam Pl P&V-F/Care,Childrens Act Section 23 - Placement Fee,08/04/2020,5411578,"3,114.39",Sunbeam Fostering Agency Ltd
Children & Culture,Children's Social Care,Children Looked After,S23 Fam Pl P&V-F/Care,Childrens Act Section 23 - Placement Fee,08/04/2020,5411579,"3,114.39",Sunbeam Fostering Agency Ltd
Children & Culture,Children's Social Care,Children Looked After,S23 Fam Pl P&V-F/Care,Childrens Act Section 23 - Placement Fee,08/04/2020,5411580,"3,114.39",Sunbeam Fostering Agency Ltd
Children & Culture,Children's Social Care,Children Looked After,S23 Fam Pl P&V-F/Care,Childrens Act Section 23 - Placement Fee,08/04/2020,5411581,"2,913.46",Sunbeam Fostering Agency Ltd
Children & Culture,Children's Social Care,Children Looked After,S23 Fam Pl P&V-F/Care,Childrens Act Section 23 - Placement Fee,08/04/2020,5411582,"2,913.46",Sunbeam Fostering Agency Ltd
Children & Culture,Children's Social Care,Children Looked After,S23 Fam Pl P&V-F/Care,Childrens Act Section 23 - Placement Fee,08/04/2020,5411583,"2,913.46",Sunbeam Fostering Agency Ltd
Children & Culture,Children's Social Care,Other Children's and Family Services,Adoption Support Fund,Third Party Payments - Voluntary Associations,08/04/2020,5411967,"4,995.54",Family Action
Children & Culture,Children's Social Care,Other Children's and Family Services,Adoption Support Fund,Training Expenses - Staff External Training (UK Based),08/04/2020,5412153,"4,960.00",JC Therapy
Children & Culture,Children's Social Care,Children Looked After,Virtual School PPG,Agency Staff - Associations,08/04/2020,5412164,"1,274.85",Academics ltd
Children & Culture,Children's Social Care,Children Looked After,Virtual School PPG,Agency Staff - Associations,08/04/2020,5412165,509.88,Academics ltd
Children & Culture,Children's Social Care,Children Looked After,Virtual School PPG,Agency Staff - Associations,08/04/2020,5412166,"1,019.88",Academics ltd
Children & Culture,Children's Social Care,Children Looked After,Virtual School PPG,Agency Staff - Associations,08/04/2020,5412167,764.91,Academics ltd
Children & Culture,Children's Social Care,Children Looked After,Virtual School PPG,Agency Staff - Associations,08/04/2020,5412168,254.97,Academics ltd
Children & Culture,Children's Social Care,Children Looked After,Virtual School PPG,Agency Staff - Associations,08/04/2020,5412169,"1,019.88",Academics ltd
Children & Culture,Children's Social Care,Children Looked After,Virtual School PPG,Agency Staff - Associations,08/04/2020,5412170,"1,019.88",Academics ltd
Children & Culture,Children's Social Care,Children Looked After,S23 Fam Pl P&V-F/Care,Childrens Act Section 23 - Placement Fee,08/04/2020,5412489,"6,155.71",Fostering Innovations Ltd
Children & Culture,Children's Social Care,Children Looked After,S23 Fam Pl P&V-F/Care,Childrens Act Section 23 - Placement Fee,08/04/2020,5412490,"3,494.14",Fostering Innovations Ltd
Children & Culture,Children's Social Care,Children Looked After,S23 Fam Pl P&V-F/Care,Childrens Act Section 23 - Placement Fee,08/04/2020,5412491,"3,424.26",Fostering Innovations Ltd
Children & Culture,Children's Social Care,Children Looked After,S23 Fam Pl P&V-F/Care,Childrens Act Section 23 - Placement Fee,08/04/2020,5412492,"3,494.14",Fostering Innovations Ltd
Children & Culture,Children's Social Care,Children Looked After,S23 Fam Pl P&V-F/Care,Childrens Act Section 23 - Placement Fee,08/04/2020,5412493,"3,424.26",Fostering Innovations Ltd
Children & Culture,Children's Social Care,Children Looked After,S23 Fam Pl P&V-F/Care,Childrens Act Section 23 - Placement Fee,08/04/2020,5412494,"3,494.14",Fostering Innovations Ltd
Children & Culture,Children's Social Care,Children Looked After,S23 Fam Pl P&V-F/Care,Childrens Act Section 23 - Placement Fee,08/04/2020,5412495,"3,424.26",Fostering Innovations Ltd
Children & Culture,Children's Social Care,Children Looked After,S23 Fam Pl P&V-F/Care,Childrens Act Section 23 - Placement Fee,08/04/2020,5412496,"3,494.14",Fostering Innovations Ltd
Children & Culture,Children's Social Care,Children Looked After,S23-Other-Semi-Ind. Unit,Childrens Act Section 23 - Placement Fee,08/04/2020,5412518,"3,257.14",Pathfinders Care Services
Children & Culture,Children's Social Care,Children Looked After,S23-Other-Semi-Ind. Unit,Childrens Act Section 23 - Placement Fee,08/04/2020,5412519,883.00,Pathfinders Care Services
Children & Culture,Children's Social Care,Children Looked After,S23 Fam Pl P&V-F/Care,Childrens Act Section 23 - Placement Fee,08/04/2020,5412524,"3,114.39",Sunbeam Fostering Agency Ltd
Children & Culture,Children's Social Care,Children Looked After,S23 Fam Pl P&V-F/Care,Childrens Act Section 23 - Placement Fee,08/04/2020,5412525,"3,114.39",Sunbeam Fostering Agency Ltd
Children & Culture,Children's Social Care,Children Looked After,S23 Fam Pl P&V-F/Care,Childrens Act Section 23 - Placement Fee,08/04/2020,5412526,"3,114.39",Sunbeam Fostering Agency Ltd
Children & Culture,Education Services,Other Strategic Functions,Music Trading Account,Meeting Expenses,08/04/2020,5413379,500.00,Rich Mix Cultural Enterprises LTD
Children & Culture,Education Services,Other Strategic Functions,Special Education Needs DSG,Third Party Payments - Other Agencies,08/04/2020,5414102,825.00,Redacted Section 40 FOI Act
Children & Culture,Children's Social Care,Family Support Services,Eva Armsby Family Centre,Repairs and Maintenance - Responsive - Electrical,08/04/2020,5414130,795.00,surelock security systems ltd
Children & Culture,Children's Social Care,Services for young people,Youth Service Management,Services - Professional Fees - Legal Fees/Expenses,08/04/2020,5414223,750.00,Mark Baigent Consulting LTD
Children & Culture,Children's Social Care,Children Looked After,LCS/Allowances-Accom,Leaving Care Financial Assistance - Supp Accom/Hous Rents,08/04/2020,5414881,488.84,The Way Care Services Ltd
Children & Culture,Children's Social Care,Family Support Services,IPST S17 NRPF,Childrens Act Section 17 - Other Placements Bed & Breakfast,08/04/2020,5414923,"4,250.00",Finefair Management
Children & Culture,Children's Social Care,Family Support Services,IPST S17 NRPF,Childrens Act Section 17 - Other Placements Bed & Breakfast,08/04/2020,5414924,"2,635.00",Finefair Management
Children & Culture,Children's Social Care,Family Support Services,IPST S17 NRPF,Childrens Act Section 17 - Other Placements Bed & Breakfast,08/04/2020,5414925,"2,480.00",Finefair Management
Children & Culture,Children's Social Care,Family Support Services,IPST S17 NRPF,Childrens Act Section 17 - Other Placements Bed & Breakfast,08/04/2020,5414926,"2,635.00",Finefair Management
Children & Culture,Children's Social Care,Family Support Services,IPST S17 NRPF,Childrens Act Section 17 - Other Placements Bed & Breakfast,08/04/2020,5414927,"1,550.00",Finefair Management
Children & Culture,Children's Social Care,Family Support Services,IPST S17 NRPF,Childrens Act Section 17 - Other Placements Bed & Breakfast,08/04/2020,5414928,"1,550.00",Finefair Management
Children & Culture,Children's Social Care,Family Support Services,IPST S17 NRPF,Childrens Act Section 17 - Other Placements Bed & Breakfast,08/04/2020,5414929,"1,395.00",Finefair Management
Children & Culture,Children's Social Care,Family Support Services,IPST S17 NRPF,Childrens Act Section 17 - Other Placements Bed & Breakfast,08/04/2020,5414930,"1,240.00",Finefair Management
Children & Culture,Children's Social Care,Children Looked After,S23-Other-Semi-Ind. Unit,Childrens Act Section 23 - Interpreting/Translation,08/04/2020,5415023,255.00,Language Reach
Children & Culture,Children's Social Care,Youth Justice,Youth Justice Team,Services - Professional Fees - Consultants Fees,08/04/2020,5415885,"1,190.00",The Appropriate Adult Service Ltd
Children & Culture,Children's Social Care,Children Looked After,Leaving Care-UASC,Leaving Care Financial Assistance - Supp Accom/Hous Rents,08/04/2020,5415907,"1,661.76",HAMLETTS LTD
Children & Culture,Education Services,Other Strategic Functions,Special Education Needs DSG,Payments to Private Contractors - Other Establishments,08/04/2020,5415929,"2,379.00",SEN Support Services Ltd
Children & Culture,Education Services,Other Strategic Functions,Special Education Needs DSG,Payments to Private Contractors - Other Establishments,08/04/2020,5415930,"3,099.00",SEN Support Services Ltd
Children & Culture,Education Services,Early Years,3&4 Year old PVI�s,Third Party Payments - Voluntary Associations,08/04/2020,5415958,"3,974.40",Rainbow Angels Nurseries & Learning Centres Ltd
Children & Culture,Education Services,Early Years,Private Voluntary & Independant Extended Funding Hours,Third Party Payments - Voluntary Associations,08/04/2020,5415959,"3,974.40",Rainbow Angels Nurseries & Learning Centres Ltd
Children & Culture,Education Services,Early Years,SSEYCG Two Year Old Pilot,Third Party Payments - Voluntary Associations,08/04/2020,5415960,"10,530.00",Little St Matthias Pre School
Children & Culture,Education Services,Early Years,SSEYCG Two Year Old Pilot,Third Party Payments - Voluntary Associations,08/04/2020,5415961,682.50,Iqra Preschool
Children & Culture,Education Services,Early Years,SSEYCG Two Year Old Pilot,Third Party Payments - Voluntary Associations,08/04/2020,5415962,"1,170.00",Puddle Jumpers Ltd
Children & Culture,Education Services,Early Years,SSEYCG Two Year Old Pilot,Third Party Payments - Voluntary Associations,08/04/2020,5415963,"13,845.00",TATE HOUSE PLAYGROUP
Children & Culture,Education Services,Early Years,3&4 Year old PVI�s,Third Party Payments - Voluntary Associations,08/04/2020,5415965,"10,954.80",ABERTOTS PLAY
Children & Culture,Education Services,Early Years,3&4 Year old PVI�s,Third Party Payments - Voluntary Associations,08/04/2020,5415966,"3,222.00",Allen Gardens Playgroup
Children & Culture,Education Services,Early Years,3&4 Year old PVI�s,Third Party Payments - Voluntary Associations,08/04/2020,5415967,"4,510.80",Avebury Playgroup
Children & Culture,Education Services,Early Years,Private Voluntary & Independant Extended Funding Hours,Third Party Payments - Voluntary Associations,08/04/2020,5415968,644.40,Avebury Playgroup
Children & Culture,Education Services,Early Years,3&4 Year old PVI�s,Third Party Payments - Voluntary Associations,08/04/2020,5415969,"18,687.60",Barkantine Community Nursery
Children & Culture,Education Services,Early Years,Private Voluntary & Independant Extended Funding Hours,Third Party Payments - Voluntary Associations,08/04/2020,5415970,"6,444.00",Barkantine Community Nursery
Children & Culture,Education Services,Early Years,3&4 Year old PVI�s,Third Party Payments - Voluntary Associations,08/04/2020,5415971,"7,088.40",Bethnal Green Montessuri Nursery
Children & Culture,Education Services,Early Years,Private Voluntary & Independant Extended Funding Hours,Third Party Payments - Voluntary Associations,08/04/2020,5415972,"1,288.80",Bethnal Green Montessuri Nursery
Children & Culture,Education Services,Early Years,3&4 Year old PVI�s,Third Party Payments - Voluntary Associations,08/04/2020,5415973,"19,332.00",Barnardo's
Children & Culture,Education Services,Early Years,Private Voluntary & Independant Extended Funding Hours,Third Party Payments - Voluntary Associations,08/04/2020,5415974,"13,532.40",Barnardo's
Children & Culture,Education Services,Early Years,3&4 Year old PVI�s,Third Party Payments - Voluntary Associations,08/04/2020,5415975,"1,933.20",BRAYFORD SQUARE PLAYGROUP
Children & Culture,Education Services,Early Years,3&4 Year old PVI�s,Third Party Payments - Voluntary Associations,08/04/2020,5415976,"12,888.00",BRIGHT HORIZONS FAMILY SOLUTION
Children & Culture,Education Services,Early Years,Private Voluntary & Independant Extended Funding Hours,Third Party Payments - Voluntary Associations,08/04/2020,5415977,"5,799.60",BRIGHT HORIZONS FAMILY SOLUTION
Children & Culture,Education Services,Early Years,3&4 Year old PVI�s,Third Party Payments - Voluntary Associations,08/04/2020,5415978,"18,043.20",BRIGHT HORIZONS FAMILY SOLUTION
Children & Culture,Education Services,Early Years,Private Voluntary & Independant Extended Funding Hours,Third Party Payments - Voluntary Associations,08/04/2020,5415979,"3,866.40",BRIGHT HORIZONS FAMILY SOLUTION
Children & Culture,Education Services,Early Years,3&4 Year old PVI�s,Third Party Payments - Voluntary Associations,08/04/2020,5415980,"24,487.20",BRIGHT HORIZONS FAMILY SOLUTION
Children & Culture,Education Services,Early Years,Private Voluntary & Independant Extended Funding Hours,Third Party Payments - Voluntary Associations,08/04/2020,5415981,"7,732.80",BRIGHT HORIZONS FAMILY SOLUTION
Children & Culture,Education Services,Early Years,3&4 Year old PVI�s,Third Party Payments - Voluntary Associations,08/04/2020,5415982,"9,021.60",BRIGHT HORIZONS FAMILY SOLUTION
Children & Culture,Education Services,Early Years,Private Voluntary & Independant Extended Funding Hours,Third Party Payments - Voluntary Associations,08/04/2020,5415983,"3,222.00",BRIGHT HORIZONS FAMILY SOLUTION
Children & Culture,Education Services,Early Years,3&4 Year old PVI�s,Third Party Payments - Voluntary Associations,08/04/2020,5415984,"8,377.20",BRIGHT HORIZONS FAMILY SOLUTION
Children & Culture,Education Services,Early Years,Private Voluntary & Independant Extended Funding Hours,Third Party Payments - Voluntary Associations,08/04/2020,5415985,"1,933.20",BRIGHT HORIZONS FAMILY SOLUTION
Children & Culture,Education Services,Early Years,3&4 Year old PVI�s,Third Party Payments - Voluntary Associations,08/04/2020,5415986,"8,377.20",Burdett Estate playgroup
Children & Culture,Education Services,Early Years,3&4 Year old PVI�s,Third Party Payments - Voluntary Associations,08/04/2020,5415987,"23,198.40",BUTTERCUP  NURSERY
Children & Culture,Education Services,Early Years,Private Voluntary & Independant Extended Funding Hours,Third Party Payments - Voluntary Associations,08/04/2020,5415988,"3,222.00",BUTTERCUP  NURSERY
Children & Culture,Education Services,Early Years,3&4 Year old PVI�s,Third Party Payments - Voluntary Associations,08/04/2020,5415989,"12,243.60",Calvary Poplar Preschool
Children & Culture,Education Services,Early Years,Private Voluntary & Independant Extended Funding Hours,Third Party Payments - Voluntary Associations,08/04/2020,5415990,644.40,Calvary Poplar Preschool
Children & Culture,Education Services,Early Years,3&4 Year old PVI�s,Third Party Payments - Voluntary Associations,08/04/2020,5415991,"4,510.80",SOMALI INTEGRATION TEAM
Children & Culture,Education Services,Early Years,3&4 Year old PVI�s,Third Party Payments - Voluntary Associations,08/04/2020,5415992,"19,332.00",CROSSHARBOUR MONTESSORI DAY NURSERY
Children & Culture,Education Services,Early Years,Private Voluntary & Independant Extended Funding Hours,Third Party Payments - Voluntary Associations,08/04/2020,5415993,"12,888.00",CROSSHARBOUR MONTESSORI DAY NURSERY
Children & Culture,Education Services,Early Years,3&4 Year old PVI�s,Third Party Payments - Voluntary Associations,08/04/2020,5415994,"57,351.60",DATE PALM PRIMARY
Children & Culture,Education Services,Early Years,Private Voluntary & Independant Extended Funding Hours,Third Party Payments - Voluntary Associations,08/04/2020,5415995,"12,888.00",DATE PALM PRIMARY
Children & Culture,Education Services,Early Years,3&4 Year old PVI�s,Third Party Payments - Voluntary Associations,08/04/2020,5415996,"2,577.60",Dreammaker Day Nursery
Children & Culture,Education Services,Early Years,Private Voluntary & Independant Extended Funding Hours,Third Party Payments - Voluntary Associations,08/04/2020,5415997,644.40,Dreammaker Day Nursery
Children & Culture,Education Services,Early Years,3&4 Year old PVI�s,Third Party Payments - Voluntary Associations,08/04/2020,5415998,"27,709.20",BRIGHT HORIZONS FAMILY SOLUTION
Children & Culture,Education Services,Early Years,Private Voluntary & Independant Extended Funding Hours,Third Party Payments - Voluntary Associations,08/04/2020,5415999,"16,110.00",BRIGHT HORIZONS FAMILY SOLUTION
Children & Culture,Education Services,Early Years,3&4 Year old PVI�s,Third Party Payments - Voluntary Associations,08/04/2020,5416000,"3,866.40",EXCELLENCE CHRISTIAN SCHOOL
Children & Culture,Education Services,Early Years,3&4 Year old PVI�s,Third Party Payments - Voluntary Associations,08/04/2020,5416001,"22,554.00",GLOBAL KIDS DAY CARE
Children & Culture,Education Services,Early Years,Private Voluntary & Independant Extended Funding Hours,Third Party Payments - Voluntary Associations,08/04/2020,5416002,"5,155.20",GLOBAL KIDS DAY CARE
Children & Culture,Education Services,Early Years,3&4 Year old PVI�s,Third Party Payments - Voluntary Associations,08/04/2020,5416003,"7,732.80",GLOBAL KIDS DAY CARE
Children & Culture,Education Services,Early Years,Private Voluntary & Independant Extended Funding Hours,Third Party Payments - Voluntary Associations,08/04/2020,5416004,"1,933.20",GLOBAL KIDS DAY CARE
Children & Culture,Education Services,Early Years,3&4 Year old PVI�s,Third Party Payments - Voluntary Associations,08/04/2020,5416005,"8,377.20",Green Gables School
Children & Culture,Education Services,Early Years,Private Voluntary & Independant Extended Funding Hours,Third Party Payments - Voluntary Associations,08/04/2020,5416006,"3,222.00",Green Gables School
Children & Culture,Education Services,Early Years,3&4 Year old PVI�s,Third Party Payments - Voluntary Associations,08/04/2020,5416007,"5,799.60",GREEN GABLES PRIMARY SCHOOL
Children & Culture,Education Services,Early Years,3&4 Year old PVI�s,Third Party Payments - Voluntary Associations,08/04/2020,5416008,"11,599.20",Account 3 Ltd
Children & Culture,Education Services,Early Years,Private Voluntary & Independant Extended Funding Hours,Third Party Payments - Voluntary Associations,08/04/2020,5416009,644.40,Account 3 Ltd
Children & Culture,Education Services,Early Years,3&4 Year old PVI�s,Third Party Payments - Voluntary Associations,08/04/2020,5416010,"15,465.60",Headstart Nursery
Children & Culture,Education Services,Early Years,Private Voluntary & Independant Extended Funding Hours,Third Party Payments - Voluntary Associations,08/04/2020,5416011,"3,866.40",Headstart Nursery
Children & Culture,Education Services,Early Years,3&4 Year old PVI�s,Third Party Payments - Voluntary Associations,08/04/2020,5416012,644.40,Incy Wincy Stars Childcare Ltd
Children & Culture,Education Services,Early Years,3&4 Year old PVI�s,Third Party Payments - Voluntary Associations,08/04/2020,5416013,"13,532.40",Iqra Pre School
Children & Culture,Education Services,Early Years,Private Voluntary & Independant Extended Funding Hours,Third Party Payments - Voluntary Associations,08/04/2020,5416014,"1,288.80",Iqra Pre School
Children & Culture,Education Services,Early Years,3&4 Year old PVI�s,Third Party Payments - Voluntary Associations,08/04/2020,5416015,"4,510.80",Iqra Preschool
Children & Culture,Education Services,Early Years,Private Voluntary & Independant Extended Funding Hours,Third Party Payments - Voluntary Associations,08/04/2020,5416016,644.40,Iqra Preschool
Children & Culture,Education Services,Early Years,3&4 Year old PVI�s,Third Party Payments - Voluntary Associations,08/04/2020,5416017,"7,732.80",ISLAND HOUSE PRE SCHOOL PLAYGROUP
Children & Culture,Education Services,Early Years,Private Voluntary & Independant Extended Funding Hours,Third Party Payments - Voluntary Associations,08/04/2020,5416018,"1,933.20",ISLAND HOUSE PRE SCHOOL PLAYGROUP
Children & Culture,Education Services,Early Years,3&4 Year old PVI�s,Third Party Payments - Voluntary Associations,08/04/2020,5416019,"12,243.60",Jingle Jungle Nursery
Children & Culture,Education Services,Early Years,3&4 Year old PVI�s,Third Party Payments - Voluntary Associations,08/04/2020,5416020,"4,510.80",Kids Kingdom Nursery
Children & Culture,Education Services,Early Years,Private Voluntary & Independant Extended Funding Hours,Third Party Payments - Voluntary Associations,08/04/2020,5416021,644.40,Kids Kingdom Nursery
Children & Culture,Education Services,Early Years,3&4 Year old PVI�s,Third Party Payments - Voluntary Associations,08/04/2020,5416022,"6,444.00",LANTERNS DAY NURSERY
Children & Culture,Education Services,Early Years,3&4 Year old PVI�s,Third Party Payments - Voluntary Associations,08/04/2020,5416023,"30,286.80",Lincoln Hall Playgroup
Children & Culture,Education Services,Early Years,3&4 Year old PVI�s,Third Party Payments - Voluntary Associations,08/04/2020,5416024,"7,732.80",Little Limehouse Preschool
Children & Culture,Education Services,Early Years,Private Voluntary & Independant Extended Funding Hours,Third Party Payments - Voluntary Associations,08/04/2020,5416025,644.40,Little Limehouse Preschool
Children & Culture,Education Services,Early Years,3&4 Year old PVI�s,Third Party Payments - Voluntary Associations,08/04/2020,5416026,"11,599.20",Little Miracles Nursery
Children & Culture,Education Services,Early Years,Private Voluntary & Independant Extended Funding Hours,Third Party Payments - Voluntary Associations,08/04/2020,5416027,"1,933.20",Little Miracles Nursery
Children & Culture,Education Services,Early Years,3&4 Year old PVI�s,Third Party Payments - Voluntary Associations,08/04/2020,5416028,"6,444.00",Little St Matthias Pre School
Children & Culture,Education Services,Early Years,Private Voluntary & Independant Extended Funding Hours,Third Party Payments - Voluntary Associations,08/04/2020,5416029,644.40,Little St Matthias Pre School
Children & Culture,Education Services,Early Years,3&4 Year old PVI�s,Third Party Payments - Voluntary Associations,08/04/2020,5416030,"1,288.80",Little Tigers Nursery
Children & Culture,Education Services,Early Years,3&4 Year old PVI�s,Third Party Payments - Voluntary Associations,08/04/2020,5416031,"16,110.00",MAGIC ROUNDABOUT NURSERIES LTD
Children & Culture,Education Services,Early Years,Private Voluntary & Independant Extended Funding Hours,Third Party Payments - Voluntary Associations,08/04/2020,5416032,"10,954.80",MAGIC ROUNDABOUT NURSERIES LTD
Children & Culture,Education Services,Early Years,3&4 Year old PVI�s,Third Party Payments - Voluntary Associations,08/04/2020,5416033,"31,575.60",Matchbox Day Nursery Ltd
Children & Culture,Education Services,Early Years,Private Voluntary & Independant Extended Funding Hours,Third Party Payments - Voluntary Associations,08/04/2020,5416034,"16,110.00",Matchbox Day Nursery Ltd
Children & Culture,Education Services,Early Years,3&4 Year old PVI�s,Third Party Payments - Voluntary Associations,08/04/2020,5416035,"4,510.80",Matilda Community Day Nursery
Children & Culture,Education Services,Early Years,Private Voluntary & Independant Extended Funding Hours,Third Party Payments - Voluntary Associations,08/04/2020,5416036,"3,866.40",Matilda Community Day Nursery
Children & Culture,Education Services,Early Years,3&4 Year old PVI�s,Third Party Payments - Voluntary Associations,08/04/2020,5416037,"21,265.20",Montessori On The Park
Children & Culture,Education Services,Early Years,Private Voluntary & Independant Extended Funding Hours,Third Party Payments - Voluntary Associations,08/04/2020,5416038,"12,888.00",Montessori On The Park
Children & Culture,Education Services,Early Years,3&4 Year old PVI�s,Third Party Payments - Voluntary Associations,08/04/2020,5416039,"23,198.40",Mudchute Association
Children & Culture,Education Services,Early Years,Private Voluntary & Independant Extended Funding Hours,Third Party Payments - Voluntary Associations,08/04/2020,5416040,"10,954.80",Mudchute Association
Children & Culture,Education Services,Early Years,3&4 Year old PVI�s,Third Party Payments - Voluntary Associations,08/04/2020,5416041,"7,732.80",New Birth Day Nursery
Children & Culture,Education Services,Early Years,Private Voluntary & Independant Extended Funding Hours,Third Party Payments - Voluntary Associations,08/04/2020,5416042,"4,510.80",New Birth Day Nursery
Children & Culture,Education Services,Early Years,3&4 Year old PVI�s,Third Party Payments - Voluntary Associations,08/04/2020,5416043,"2,577.60",New City College
Children & Culture,Education Services,Early Years,3&4 Year old PVI�s,Third Party Payments - Voluntary Associations,08/04/2020,5416044,"1,933.20",London Early Years Foundation
Children & Culture,Education Services,Early Years,Private Voluntary & Independant Extended Funding Hours,Third Party Payments - Voluntary Associations,08/04/2020,5416045,644.40,London Early Years Foundation
Children & Culture,Education Services,Early Years,3&4 Year old PVI�s,Third Party Payments - Voluntary Associations,08/04/2020,5416046,"5,155.20",Pillar Box Nurseries Ltd
Children & Culture,Education Services,Early Years,Private Voluntary & Independant Extended Funding Hours,Third Party Payments - Voluntary Associations,08/04/2020,5416047,644.40,Pillar Box Nurseries Ltd
Children & Culture,Education Services,Early Years,3&4 Year old PVI�s,Third Party Payments - Voluntary Associations,08/04/2020,5416048,"9,021.60",Poplar Play Centre
Children & Culture,Education Services,Early Years,Private Voluntary & Independant Extended Funding Hours,Third Party Payments - Voluntary Associations,08/04/2020,5416049,"3,866.40",Poplar Play Centre
Children & Culture,Education Services,Early Years,3&4 Year old PVI�s,Third Party Payments - Voluntary Associations,08/04/2020,5416050,"7,088.40",Precious Kids Day Nursery LTD
Children & Culture,Education Services,Early Years,Private Voluntary & Independant Extended Funding Hours,Third Party Payments - Voluntary Associations,08/04/2020,5416051,"1,288.80",Precious Kids Day Nursery LTD
Children & Culture,Education Services,Early Years,3&4 Year old PVI�s,Third Party Payments - Voluntary Associations,08/04/2020,5416052,"13,532.40",Puddle Jumpers Ltd
Children & Culture,Education Services,Early Years,Private Voluntary & Independant Extended Funding Hours,Third Party Payments - Voluntary Associations,08/04/2020,5416053,"3,222.00",Puddle Jumpers Ltd
Children & Culture,Education Services,Early Years,3&4 Year old PVI�s,Third Party Payments - Voluntary Associations,08/04/2020,5416054,"6,444.00",Rainbow Angels Nurseries & Learning Centres Ltd
Children & Culture,Education Services,Early Years,Private Voluntary & Independant Extended Funding Hours,Third Party Payments - Voluntary Associations,08/04/2020,5416055,"3,222.00",Rainbow Angels Nurseries & Learning Centres Ltd
Children & Culture,Education Services,Early Years,3&4 Year old PVI�s,Third Party Payments - Voluntary Associations,08/04/2020,5416056,"21,265.20",Rainbow House
Children & Culture,Education Services,Early Years,Private Voluntary & Independant Extended Funding Hours,Third Party Payments - Voluntary Associations,08/04/2020,5416057,"3,866.40",Rainbow House
Children & Culture,Education Services,Early Years,3&4 Year old PVI�s,Third Party Payments - Voluntary Associations,08/04/2020,5416058,"13,532.40",Rainbow House
Children & Culture,Education Services,Early Years,Private Voluntary & Independant Extended Funding Hours,Third Party Payments - Voluntary Associations,08/04/2020,5416059,644.40,Rainbow House
Children & Culture,Education Services,Early Years,3&4 Year old PVI�s,Third Party Payments - Voluntary Associations,08/04/2020,5416060,"8,377.20",Rainbow House
Children & Culture,Education Services,Early Years,Private Voluntary & Independant Extended Funding Hours,Third Party Payments - Voluntary Associations,08/04/2020,5416061,"3,222.00",Rainbow Splash Day Nursery
Children & Culture,Education Services,Early Years,3&4 Year old PVI�s,Third Party Payments - Voluntary Associations,08/04/2020,5416062,"14,176.80",Rainbow Splash Day Nursery
Children & Culture,Education Services,Early Years,Private Voluntary & Independant Extended Funding Hours,Third Party Payments - Voluntary Associations,08/04/2020,5416063,"5,799.60",Barkantine Community Nursery
Children & Culture,Education Services,Early Years,3&4 Year old PVI�s,Third Party Payments - Voluntary Associations,08/04/2020,5416064,"4,510.80",Barkantine Community Nursery
Children & Culture,Education Services,Early Years,3&4 Year old PVI�s,Third Party Payments - Voluntary Associations,08/04/2020,5416065,"72,172.80",RANWELL PLAYGROUP
Children & Culture,Education Services,Early Years,3&4 Year old PVI�s,Third Party Payments - Voluntary Associations,08/04/2020,5416066,"5,155.20",Riverhouse Montessori Nursery
Children & Culture,Education Services,Early Years,Private Voluntary & Independant Extended Funding Hours,Third Party Payments - Voluntary Associations,08/04/2020,5416067,"1,933.20",Scallywags Playgroup
Children & Culture,Education Services,Early Years,3&4 Year old PVI�s,Third Party Payments - Voluntary Associations,08/04/2020,5416068,"12,888.00",Scallywags Playgroup
Children & Culture,Education Services,Early Years,Private Voluntary & Independant Extended Funding Hours,Third Party Payments - Voluntary Associations,08/04/2020,5416069,"8,377.20",Shining Futures Nursery
Children & Culture,Education Services,Early Years,3&4 Year old PVI�s,Third Party Payments - Voluntary Associations,08/04/2020,5416070,"5,799.60",Shining Futures Nursery
Children & Culture,Education Services,Early Years,3&4 Year old PVI�s,Third Party Payments - Voluntary Associations,08/04/2020,5416071,"6,444.00",Spring Nursery Limited
Children & Culture,Education Services,Early Years,Private Voluntary & Independant Extended Funding Hours,Third Party Payments - Voluntary Associations,08/04/2020,5416072,"1,933.20",Step By Step Nursery
Children & Culture,Education Services,Early Years,3&4 Year old PVI�s,Third Party Payments - Voluntary Associations,08/04/2020,5416073,"1,288.80",CATHOLIC CHILDREN'S SOCIETY(WESTMINSTER)
Children & Culture,Education Services,Early Years,3&4 Year old PVI�s,Third Party Payments - Voluntary Associations,08/04/2020,5416074,"8,377.20",Bethnal Green Montessuri Nursery
Children & Culture,Education Services,Early Years,Private Voluntary & Independant Extended Funding Hours,Third Party Payments - Voluntary Associations,08/04/2020,5416075,"4,510.80",Bethnal Green Montessuri Nursery
Children & Culture,Education Services,Early Years,3&4 Year old PVI�s,Third Party Payments - Voluntary Associations,08/04/2020,5416076,"8,377.20",TATE HOUSE PLAYGROUP
Children & Culture,Education Services,Early Years,3&4 Year old PVI�s,Third Party Payments - Voluntary Associations,08/04/2020,5416077,"10,310.40",St Paul�s (Nursery at Dock Street)
Children & Culture,Education Services,Early Years,Private Voluntary & Independant Extended Funding Hours,Third Party Payments - Voluntary Associations,08/04/2020,5416078,"2,577.60",St Paul�s (Nursery at Dock Street)
Children & Culture,Education Services,Early Years,3&4 Year old PVI�s,Third Party Payments - Voluntary Associations,08/04/2020,5416079,"14,176.80",The Pier Head Preparatory School
Children & Culture,Education Services,Early Years,Private Voluntary & Independant Extended Funding Hours,Third Party Payments - Voluntary Associations,08/04/2020,5416080,"1,288.80",The Pier Head Preparatory School
Children & Culture,Education Services,Early Years,3&4 Year old PVI�s,Third Party Payments - Voluntary Associations,08/04/2020,5416081,"7,088.40",Tower Hamlets Opportunity Group
Children & Culture,Education Services,Early Years,3&4 Year old PVI�s,Third Party Payments - Voluntary Associations,08/04/2020,5416082,"12,888.00",VERNON PLAYGROUP
Children & Culture,Education Services,Early Years,3&4 Year old PVI�s,Third Party Payments - Voluntary Associations,08/04/2020,5416083,"3,866.40",WAPPING PLAYGROUP
Children & Culture,Education Services,Early Years,3&4 Year old PVI�s,Third Party Payments - Voluntary Associations,08/04/2020,5416084,"6,444.00",WEAVERSFIELD COMMUNITY NURSERY
Children & Culture,Education Services,Early Years,Private Voluntary & Independant Extended Funding Hours,Third Party Payments - Voluntary Associations,08/04/2020,5416085,"3,222.00",WEAVERSFIELD COMMUNITY NURSERY
Children & Culture,Education Services,Early Years,3&4 Year old PVI�s,Third Party Payments - Voluntary Associations,08/04/2020,5416086,"11,599.20",THE NURSERY QUEEN MARY UNIVERSITY LONDON
Children & Culture,Education Services,Early Years,Private Voluntary & Independant Extended Funding Hours,Third Party Payments - Voluntary Associations,08/04/2020,5416087,"6,444.00",THE NURSERY QUEEN MARY UNIVERSITY LONDON
Children & Culture,Education Services,Early Years,3&4 Year old PVI�s,Third Party Payments - Voluntary Associations,08/04/2020,5416088,"37,375.20",SELECT LEARNING LONDON LTD
Children & Culture,Education Services,Early Years,3&4 Year old PVI�s,Third Party Payments - Voluntary Associations,08/04/2020,5416108,644.40,Nicola Bennison Childcare Services
Children & Culture,Education Services,Early Years,Private Voluntary & Independant Extended Funding Hours,Third Party Payments - Voluntary Associations,08/04/2020,5416109,"1,288.80",Nicola Bennison Childcare Services
Children & Culture,Education Services,Early Years,SSEYCG Two Year Old Pilot,Third Party Payments - Voluntary Associations,08/04/2020,5416123,"7,020.00",ABERTOTS PLAY
Children & Culture,Education Services,Early Years,SSEYCG Two Year Old Pilot,Third Party Payments - Voluntary Associations,08/04/2020,5416124,"10,530.00",Allen Gardens Playgroup
Children & Culture,Education Services,Early Years,SSEYCG Two Year Old Pilot,Third Party Payments - Voluntary Associations,08/04/2020,5416125,"7,020.00",Avebury Playgroup
Children & Culture,Education Services,Early Years,SSEYCG Two Year Old Pilot,Third Party Payments - Voluntary Associations,08/04/2020,5416126,"7,605.00",Barkantine Community Nursery
Children & Culture,Education Services,Early Years,SSEYCG Two Year Old Pilot,Third Party Payments - Voluntary Associations,08/04/2020,5416127,"7,020.00",Barnardo's
Children & Culture,Education Services,Early Years,SSEYCG Two Year Old Pilot,Third Party Payments - Voluntary Associations,08/04/2020,5416128,"3,510.00",BRAYFORD SQUARE PLAYGROUP
Children & Culture,Education Services,Early Years,SSEYCG Two Year Old Pilot,Third Party Payments - Voluntary Associations,08/04/2020,5416129,"11,115.00",Burdett Estate playgroup
Children & Culture,Education Services,Early Years,SSEYCG Two Year Old Pilot,Third Party Payments - Voluntary Associations,08/04/2020,5416130,"5,850.00",Calvary Poplar Preschool
Children & Culture,Education Services,Early Years,SSEYCG Two Year Old Pilot,Third Party Payments - Voluntary Associations,08/04/2020,5416131,"5,850.00",SOMALI INTEGRATION TEAM
Children & Culture,Education Services,Early Years,SSEYCG Two Year Old Pilot,Third Party Payments - Voluntary Associations,08/04/2020,5416132,"15,210.00",DATE PALM PRIMARY
Children & Culture,Education Services,Early Years,SSEYCG Two Year Old Pilot,Third Party Payments - Voluntary Associations,08/04/2020,5416133,"2,340.00",EXCELLENCE CHRISTIAN SCHOOL
Children & Culture,Education Services,Early Years,SSEYCG Two Year Old Pilot,Third Party Payments - Voluntary Associations,08/04/2020,5416134,"8,775.00",GLOBAL KIDS DAY CARE
Children & Culture,Education Services,Early Years,SSEYCG Two Year Old Pilot,Third Party Payments - Voluntary Associations,08/04/2020,5416135,"26,325.00",GLOBAL KIDS DAY CARE
Children & Culture,Education Services,Early Years,SSEYCG Two Year Old Pilot,Third Party Payments - Voluntary Associations,08/04/2020,5416136,"17,550.00",Account 3 Ltd
Children & Culture,Education Services,Early Years,SSEYCG Two Year Old Pilot,Third Party Payments - Voluntary Associations,08/04/2020,5416137,"9,945.00",Headstart Nursery
Children & Culture,Education Services,Early Years,SSEYCG Two Year Old Pilot,Third Party Payments - Voluntary Associations,08/04/2020,5416138,"2,925.00",Incy Wincy Stars Childcare Ltd
Children & Culture,Education Services,Early Years,SSEYCG Two Year Old Pilot,Third Party Payments - Voluntary Associations,08/04/2020,5416139,"21,645.00",Iqra Pre School
Children & Culture,Education Services,Early Years,SSEYCG Two Year Old Pilot,Third Party Payments - Voluntary Associations,08/04/2020,5416140,"5,265.00",Iqra Preschool
Children & Culture,Education Services,Early Years,SSEYCG Two Year Old Pilot,Third Party Payments - Voluntary Associations,08/04/2020,5416141,"9,360.00",ISLAND HOUSE PRE SCHOOL PLAYGROUP
Children & Culture,Education Services,Early Years,SSEYCG Two Year Old Pilot,Third Party Payments - Voluntary Associations,08/04/2020,5416142,"13,455.00",Jingle Jungle Nursery
Children & Culture,Education Services,Early Years,SSEYCG Two Year Old Pilot,Third Party Payments - Voluntary Associations,08/04/2020,5416143,"11,700.00",Kids Kingdom Nursery
Children & Culture,Education Services,Early Years,SSEYCG Two Year Old Pilot,Third Party Payments - Voluntary Associations,08/04/2020,5416144,"28,665.00",Lincoln Hall Playgroup
Children & Culture,Education Services,Early Years,SSEYCG Two Year Old Pilot,Third Party Payments - Voluntary Associations,08/04/2020,5416145,"4,680.00",Little Limehouse Preschool
Children & Culture,Education Services,Early Years,SSEYCG Two Year Old Pilot,Third Party Payments - Voluntary Associations,08/04/2020,5416146,"12,285.00",Little Miracles Nursery
Children & Culture,Education Services,Early Years,SSEYCG Two Year Old Pilot,Third Party Payments - Voluntary Associations,08/04/2020,5416147,"6,435.00",Little St Matthias Pre School
Children & Culture,Education Services,Early Years,SSEYCG Two Year Old Pilot,Third Party Payments - Voluntary Associations,08/04/2020,5416148,"8,775.00",Little Tigers Nursery
Children & Culture,Education Services,Early Years,SSEYCG Two Year Old Pilot,Third Party Payments - Voluntary Associations,08/04/2020,5416149,"1,170.00",MAGIC ROUNDABOUT NURSERIES LTD
Children & Culture,Education Services,Early Years,SSEYCG Two Year Old Pilot,Third Party Payments - Voluntary Associations,08/04/2020,5416150,"14,040.00",Matchbox Day Nursery Ltd
Children & Culture,Education Services,Early Years,SSEYCG Two Year Old Pilot,Third Party Payments - Voluntary Associations,08/04/2020,5416151,585.00,Matilda Community Day Nursery
Children & Culture,Education Services,Early Years,SSEYCG Two Year Old Pilot,Third Party Payments - Voluntary Associations,08/04/2020,5416152,585.00,Mudchute Association
Children & Culture,Education Services,Early Years,SSEYCG Two Year Old Pilot,Third Party Payments - Voluntary Associations,08/04/2020,5416153,585.00,New Birth Day Nursery
Children & Culture,Education Services,Early Years,SSEYCG Two Year Old Pilot,Third Party Payments - Voluntary Associations,08/04/2020,5416154,"1,170.00",New City College
Children & Culture,Education Services,Early Years,SSEYCG Two Year Old Pilot,Third Party Payments - Voluntary Associations,08/04/2020,5416155,"2,340.00",London Early Years Foundation
Children & Culture,Education Services,Early Years,SSEYCG Two Year Old Pilot,Third Party Payments - Voluntary Associations,08/04/2020,5416156,"3,510.00",Poplar Play Centre
Children & Culture,Education Services,Early Years,SSEYCG Two Year Old Pilot,Third Party Payments - Voluntary Associations,08/04/2020,5416157,"3,510.00",Precious Kids Day Nursery LTD
Children & Culture,Education Services,Early Years,SSEYCG Two Year Old Pilot,Third Party Payments - Voluntary Associations,08/04/2020,5416158,"8,775.00",Puddle Jumpers Ltd
Children & Culture,Education Services,Early Years,SSEYCG Two Year Old Pilot,Third Party Payments - Voluntary Associations,08/04/2020,5416159,"2,925.00",Rainbow Angels Nurseries & Learning Centres Ltd
Children & Culture,Education Services,Early Years,SSEYCG Two Year Old Pilot,Third Party Payments - Voluntary Associations,08/04/2020,5416160,"18,135.00",Rainbow House
Children & Culture,Education Services,Early Years,SSEYCG Two Year Old Pilot,Third Party Payments - Voluntary Associations,08/04/2020,5416161,585.00,Rainbow Splash Day Nursery
Children & Culture,Education Services,Early Years,SSEYCG Two Year Old Pilot,Third Party Payments - Voluntary Associations,08/04/2020,5416162,"1,170.00",Barkantine Community Nursery
Children & Culture,Education Services,Early Years,SSEYCG Two Year Old Pilot,Third Party Payments - Voluntary Associations,08/04/2020,5416163,"7,605.00",RANWELL PLAYGROUP
Children & Culture,Education Services,Early Years,SSEYCG Two Year Old Pilot,Third Party Payments - Voluntary Associations,08/04/2020,5416164,585.00,Scallywags Playgroup
Children & Culture,Education Services,Early Years,SSEYCG Two Year Old Pilot,Third Party Payments - Voluntary Associations,08/04/2020,5416165,"2,925.00",Shining Futures Nursery
Children & Culture,Education Services,Early Years,SSEYCG Two Year Old Pilot,Third Party Payments - Voluntary Associations,08/04/2020,5416166,"11,115.00",Spring Nursery Limited
Children & Culture,Education Services,Early Years,SSEYCG Two Year Old Pilot,Third Party Payments - Voluntary Associations,08/04/2020,5416167,"4,095.00",Step By Step Nursery
Children & Culture,Education Services,Early Years,SSEYCG Two Year Old Pilot,Third Party Payments - Voluntary Associations,08/04/2020,5416168,"3,022.50",CATHOLIC CHILDREN'S SOCIETY(WESTMINSTER)
Children & Culture,Education Services,Early Years,SSEYCG Two Year Old Pilot,Third Party Payments - Voluntary Associations,08/04/2020,5416169,585.00,Bethnal Green Montessuri Nursery
Children & Culture,Education Services,Early Years,SSEYCG Two Year Old Pilot,Third Party Payments - Voluntary Associations,08/04/2020,5416170,"17,550.00",TATE HOUSE PLAYGROUP
Children & Culture,Education Services,Early Years,SSEYCG Two Year Old Pilot,Third Party Payments - Voluntary Associations,08/04/2020,5416171,"1,170.00",St Paul�s (Nursery at Dock Street)
Children & Culture,Education Services,Early Years,SSEYCG Two Year Old Pilot,Third Party Payments - Voluntary Associations,08/04/2020,5416172,"8,190.00",Tower Hamlets Opportunity Group
Children & Culture,Education Services,Early Years,SSEYCG Two Year Old Pilot,Third Party Payments - Voluntary Associations,08/04/2020,5416173,"14,625.00",VERNON PLAYGROUP
Children & Culture,Education Services,Early Years,SSEYCG Two Year Old Pilot,Third Party Payments - Voluntary Associations,08/04/2020,5416174,"4,680.00",WAPPING PLAYGROUP
Children & Culture,Education Services,Early Years,SSEYCG Two Year Old Pilot,Third Party Payments - Voluntary Associations,08/04/2020,5416175,"8,190.00",WEAVERSFIELD COMMUNITY NURSERY
Children & Culture,Education Services,Early Years,SSEYCG Two Year Old Pilot,Third Party Payments - Voluntary Associations,08/04/2020,5416176,585.00,THE NURSERY QUEEN MARY UNIVERSITY LONDON
Children & Culture,Education Services,Early Years,SSEYCG Two Year Old Pilot,Third Party Payments - Voluntary Associations,08/04/2020,5416177,"52,650.00",SELECT LEARNING LONDON LTD
Children & Culture,Cultural and Related Services,Open Spaces,Mile End Park,Hire of Premises - Ecology Pavilion,08/04/2020,5416208,500.00,Urban Makers East
Children & Culture,Children's Social Care,Services for young people,Youth Service Management,Services - Professional Fees - Legal Fees/Expenses,08/04/2020,5416210,"7,225.00",Old Square Chambers
Children & Culture,Education Services,Other Strategic Functions,Special Education Needs DSG,Third Party Payments - Payments to Schools,15/04/2020,5404531,"4,631.90",SMALL HAVEN SCHOOL
Children & Culture,Education Services,Other Strategic Functions,Special Education Needs DSG,Third Party Payments - Payments to Schools,15/04/2020,5404532,"6,769.70",SMALL HAVEN SCHOOL
Children & Culture,Cultural and Related Services,Open Spaces,Parks & Open Spaces Man&Admin,Repairs and Maintenance - Responsive - Buildings,15/04/2020,5407949,810.00,JC Coster (Metalworks) Ltd
Children & Culture,Cultural and Related Services,Open Spaces,Parks & Open Spaces Man&Admin,Repairs and Maintenance - Responsive - Repair & Maintenance,15/04/2020,5407952,"2,071.00",JC Coster (Metalworks) Ltd
Children & Culture,Cultural and Related Services,Open Spaces,Mile End Park,Repairs and Maintenance - Responsive - Buildings,15/04/2020,5407956,480.00,JC Coster (Metalworks) Ltd
Children & Culture,Children's Social Care,Children Looked After,LCS/Allowances-Accom,Leaving Care Financial Assistance - Supp Accom/Hous Rents,15/04/2020,5408205,"1,031.99",HAMLETTS LTD
Children & Culture,Children's Social Care,Children Looked After,LCS/Allowances-Accom,Leaving Care Financial Assistance - Supp Accom/Hous Rents,15/04/2020,5408206,"1,031.99",HAMLETTS LTD
Children & Culture,Children's Social Care,Children Looked After,LCS/Allowances-Accom,Leaving Care Financial Assistance - Supp Accom/Hous Rents,15/04/2020,5408207,"1,077.56",HAMLETTS LTD
Children & Culture,Children's Social Care,Children Looked After,Leaving Care-UASC,Leaving Care Financial Assistance - Supp Accom/Hous Rents,15/04/2020,5408208,"1,031.99",HAMLETTS LTD
Children & Culture,Children's Social Care,Children Looked After,Leaving Care-UASC,Leaving Care Financial Assistance - Supp Accom/Hous Rents,15/04/2020,5408209,"1,031.99",HAMLETTS LTD
Children & Culture,Children's Social Care,Children Looked After,LCS/Allowances-Accom,Leaving Care Financial Assistance - Supp Accom/Hous Rents,15/04/2020,5408210,"1,031.99",HAMLETTS LTD
Children & Culture,Children's Social Care,Children Looked After,LCS/Allowances-Accom,Leaving Care Financial Assistance - Supp Accom/Hous Rents,15/04/2020,5408211,"1,031.99",HAMLETTS LTD
Children & Culture,Children's Social Care,Children Looked After,Leaving Care-UASC,Leaving Care Financial Assistance - Supp Accom/Hous Rents,15/04/2020,5408212,"1,031.99",HAMLETTS LTD
Children & Culture,Children's Social Care,Children Looked After,Leaving Care-UASC,Leaving Care Financial Assistance - Supp Accom/Hous Rents,15/04/2020,5408213,"1,031.99",HAMLETTS LTD
Children & Culture,Children's Social Care,Children Looked After,Leaving Care-UASC,Leaving Care Financial Assistance - Supp Accom/Hous Rents,15/04/2020,5408214,"1,031.99",HAMLETTS LTD
Children & Culture,Children's Social Care,Children Looked After,LCS/Allowances-Accom,Leaving Care Financial Assistance - Supp Accom/Hous Rents,15/04/2020,5408215,"1,031.99",HAMLETTS LTD
Children & Culture,Children's Social Care,Children Looked After,Leaving Care-UASC,Leaving Care Financial Assistance - Supp Accom/Hous Rents,15/04/2020,5408216,"1,715.28",HAMLETTS LTD
Children & Culture,Education Services,Services to Young People and Other Community Learners,Holiday Childcare,Recreational Activities,15/04/2020,5408253,350.00,ESPO
Children & Culture,Education Services,Services to Young People and Other Community Learners,Holiday Childcare,Educational/Training Supplies - Arts & Crafts,15/04/2020,5408255,324.00,ESPO
Children & Culture,Education Services,Services to Young People and Other Community Learners,Holiday Childcare,Recreational Activities,15/04/2020,5408256,447.00,ESPO
Children & Culture,Children's Social Care,Support Service and Management Costs,Schools Catering,Kitchen Supplies - Food and Beverages,15/04/2020,5408278,798.19,Thomas Ridley & Son Ltd
Children & Culture,Children's Social Care,Support Service and Management Costs,Schools Catering,Kitchen Supplies - Food and Beverages,15/04/2020,5408280,648.04,Thomas Ridley & Son Ltd
Children & Culture,Children's Social Care,Support Service and Management Costs,Schools Catering,Kitchen Supplies - Food and Beverages,15/04/2020,5408281,364.50,Thomas Ridley & Son Ltd
Children & Culture,Children's Social Care,Support Service and Management Costs,Schools Catering,Kitchen Supplies - Food and Beverages,15/04/2020,5408282,267.95,Thomas Ridley & Son Ltd
Children & Culture,Children's Social Care,Support Service and Management Costs,Schools Catering,Kitchen Supplies - Food and Beverages,15/04/2020,5408283,278.49,Thomas Ridley & Son Ltd
Children & Culture,Children's Social Care,Support Service and Management Costs,Schools Catering,Kitchen Supplies - Food and Beverages,15/04/2020,5408284,971.48,Thomas Ridley & Son Ltd
Children & Culture,Children's Social Care,Support Service and Management Costs,Schools Catering,Kitchen Supplies - Food and Beverages,15/04/2020,5408286,353.46,Thomas Ridley & Son Ltd
Children & Culture,Children's Social Care,Support Service and Management Costs,Schools Catering,Kitchen Supplies - Food and Beverages,15/04/2020,5408287,383.30,Thomas Ridley & Son Ltd
Children & Culture,Children's Social Care,Support Service and Management Costs,Schools Catering,Kitchen Supplies - Food and Beverages,15/04/2020,5408288,456.71,Thomas Ridley & Son Ltd
Children & Culture,Children's Social Care,Support Service and Management Costs,Schools Catering,Kitchen Supplies - Food and Beverages,15/04/2020,5408289,387.54,Thomas Ridley & Son Ltd
Children & Culture,Children's Social Care,Support Service and Management Costs,Schools Catering,Kitchen Supplies - Food and Beverages,15/04/2020,5408292,"1,402.22",Thomas Ridley & Son Ltd
Children & Culture,Children's Social Care,Support Service and Management Costs,Schools Catering,Kitchen Supplies - Food and Beverages,15/04/2020,5408293,323.65,Thomas Ridley & Son Ltd
Children & Culture,Children's Social Care,Support Service and Management Costs,Schools Catering,Kitchen Supplies - Food and Beverages,15/04/2020,5408294,819.86,Thomas Ridley & Son Ltd
Children & Culture,Children's Social Care,Support Service and Management Costs,Schools Catering,Kitchen Supplies - Food and Beverages,15/04/2020,5408295,455.97,Thomas Ridley & Son Ltd
Children & Culture,Children's Social Care,Support Service and Management Costs,Schools Catering,Kitchen Supplies - Food and Beverages,15/04/2020,5408296,328.88,Thomas Ridley & Son Ltd
Children & Culture,Children's Social Care,Support Service and Management Costs,Schools Catering,Kitchen Supplies - Food and Beverages,15/04/2020,5408297,375.67,Thomas Ridley & Son Ltd
Children & Culture,Children's Social Care,Support Service and Management Costs,Schools Catering,Kitchen Supplies - Food and Beverages,15/04/2020,5408298,713.43,Thomas Ridley & Son Ltd
Children & Culture,Children's Social Care,Support Service and Management Costs,Schools Catering,Kitchen Supplies - Food and Beverages,15/04/2020,5408300,553.38,Thomas Ridley & Son Ltd
Children & Culture,Children's Social Care,Support Service and Management Costs,Schools Catering,Kitchen Supplies - Food and Beverages,15/04/2020,5408301,931.15,Thomas Ridley & Son Ltd
Children & Culture,Children's Social Care,Support Service and Management Costs,Schools Catering,Kitchen Supplies - Food and Beverages,15/04/2020,5408303,364.15,Thomas Ridley & Son Ltd
Children & Culture,Children's Social Care,Support Service and Management Costs,Schools Catering,Kitchen Supplies - Food and Beverages,15/04/2020,5408304,456.00,Thomas Ridley & Son Ltd
Children & Culture,Children's Social Care,Support Service and Management Costs,Schools Catering,Kitchen Supplies - Food and Beverages,15/04/2020,5408306,602.67,Thomas Ridley & Son Ltd
Children & Culture,Cultural and Related Services,Open Spaces,Mile End Park,Services - Professional Fees - Security Fees,15/04/2020,5408565,324.60,A P Security (North) LTD
Children & Culture,Education Services,Other Strategic Functions,Schools Library,Events & Exhibition Supplies,15/04/2020,5408579,"12,980.30",The Poetry Society
Children & Culture,Children's Social Care,Support Service and Management Costs,Schools Catering,Kitchen Supplies - Food and Beverages,15/04/2020,5408604,432.57,Thomas Ridley & Son Ltd
Children & Culture,Children's Social Care,Support Service and Management Costs,Schools Catering,Kitchen Supplies - Food and Beverages,15/04/2020,5408605,445.63,Thomas Ridley & Son Ltd
Children & Culture,Children's Social Care,Support Service and Management Costs,Schools Catering,Kitchen Supplies - Food and Beverages,15/04/2020,5408606,686.44,Thomas Ridley & Son Ltd
Children & Culture,Children's Social Care,Support Service and Management Costs,Schools Catering,Kitchen Supplies - Food and Beverages,15/04/2020,5408608,316.28,Thomas Ridley & Son Ltd
Children & Culture,Children's Social Care,Support Service and Management Costs,Schools Catering,Kitchen Supplies - Food and Beverages,15/04/2020,5408610,363.35,Thomas Ridley & Son Ltd
Children & Culture,Children's Social Care,Support Service and Management Costs,Schools Catering,Kitchen Supplies - Food and Beverages,15/04/2020,5408612,496.68,Thomas Ridley & Son Ltd
Children & Culture,Children's Social Care,Support Service and Management Costs,Schools Catering,Kitchen Supplies - Food and Beverages,15/04/2020,5408614,274.27,Thomas Ridley & Son Ltd
Children & Culture,Children's Social Care,Support Service and Management Costs,Schools Catering,Kitchen Supplies - Food and Beverages,15/04/2020,5408616,263.51,Thomas Ridley & Son Ltd
Children & Culture,Children's Social Care,Support Service and Management Costs,Schools Catering,Kitchen Supplies - Food and Beverages,15/04/2020,5408621,268.31,Thomas Ridley & Son Ltd
Children & Culture,Children's Social Care,Support Service and Management Costs,Sch. Meals A/c - Central Production Unit,Kitchen Supplies - Food and Beverages,15/04/2020,5408622,"1,061.61",Thomas Ridley & Son Ltd
Children & Culture,Children's Social Care,Support Service and Management Costs,Schools Catering,Kitchen Supplies - Food and Beverages,15/04/2020,5408623,684.81,Thomas Ridley & Son Ltd
Children & Culture,Children's Social Care,Support Service and Management Costs,Schools Catering,Kitchen Supplies - Food and Beverages,15/04/2020,5408625,270.34,Thomas Ridley & Son Ltd
Children & Culture,Children's Social Care,Support Service and Management Costs,Schools Catering,Kitchen Supplies - Food and Beverages,15/04/2020,5408626,329.52,Thomas Ridley & Son Ltd
Children & Culture,Children's Social Care,Support Service and Management Costs,Schools Catering,Kitchen Supplies - Food and Beverages,15/04/2020,5408630,558.24,Thomas Ridley & Son Ltd
Children & Culture,Children's Social Care,Support Service and Management Costs,Schools Catering,Kitchen Supplies - Food and Beverages,15/04/2020,5408632,345.94,Thomas Ridley & Son Ltd
Children & Culture,Children's Social Care,Service Strategy,"FSP Sect 17 - Team 6		",Childrens Act Section 17 - Expert Assessmt/Witness Costs,15/04/2020,5408657,"1,500.00",TV Edwards Solicitors (Client Account)
Children & Culture,Children's Social Care,Children Looked After,Leaving Care-UASC,Leaving Care Financial Assistance - Supp Accom/Hous Rents,15/04/2020,5408710,"2,153.97",The Way Care Services Ltd
Children & Culture,Children's Social Care,Children Looked After,Leaving Care-UASC,Leaving Care Financial Assistance - Supported Living,15/04/2020,5408710,749.91,The Way Care Services Ltd
Children & Culture,Children's Social Care,Children Looked After,Leaving Care-UASC,Leaving Care Financial Assistance - Reg Plan Maint L-Allow,15/04/2020,5408711,256.99,The Way Care Services Ltd
Children & Culture,Children's Social Care,Children Looked After,Leaving Care-UASC,Leaving Care Financial Assistance - Supp Accom/Hous Rents,15/04/2020,5408711,"3,179.67",The Way Care Services Ltd
Children & Culture,Children's Social Care,Children Looked After,Leaving Care-UASC,Leaving Care Financial Assistance - Supported Living,15/04/2020,5408711,"1,107.01",The Way Care Services Ltd
Children & Culture,Children's Social Care,Family Support Services,CNN Pool: Joint Family Support,Social Care - Homecare,15/04/2020,5408751,"3,985.71",Explore Independence Ltd
Children & Culture,Children's Social Care,Family Support Services,CNN Pool: Joint Family Support,Social Care - Homecare,15/04/2020,5408752,"1,200.00",Explore Independence Ltd
Children & Culture,Education Services,Other Strategic Functions,High Needs Other Boroughs,Social Care - Nursing Care,15/04/2020,5408755,"15,999.67",Whittington Health NHS Trust
Children & Culture,Cultural and Related Services,Recreation & Sport,Sports Development,Recreational Activities,15/04/2020,5408805,"1,606.60",Greenwich Leisure LTD
Children & Culture,Cultural and Related Services,Recreation & Sport,Sports Development,Recreational Activities,15/04/2020,5408806,"1,503.80",Greenwich Leisure LTD
Children & Culture,No Service Specified,No Division Specified,Capital-Minor Works (SC),Other External Fees - Consultants Fees,15/04/2020,5408871,"2,160.00",Macegreen Consulting Ltd
Children & Culture,Children's Social Care,Support Service and Management Costs,Sch. Meals A/c - Central Production Unit,Kitchen Supplies - Food and Beverages,15/04/2020,5410594,499.40,William White Meats Ltd
Children & Culture,No Service Specified,No Division Specified,Capital-Minor Works (SC),Other External Fees - Consultants Fees,15/04/2020,5410689,600.00,Ellis & Moore
Children & Culture,Cultural and Related Services,Recreation & Sport,Recreational Services Central,Payments to Private Contractors - Minor Works,15/04/2020,5410772,"34,397.96",Greenwich Leisure LTD
Children & Culture,Education Services,Other Strategic Functions,Music Trading Account,Educational/Training Supplies - Arts & Crafts,15/04/2020,5410788,725.00,Bow Strings
Children & Culture,Cultural and Related Services,Open Spaces,Victoria Park,Events & Exhibition Supplies,15/04/2020,5410824,900.00,Bird Brain UK
Children & Culture,Children's Social Care,Children Looked After,LCS/Allowances-Accom,Leaving Care Financial Assistance - Supp Accom/Hous Rents,15/04/2020,5411787,"1,507.94",JEM Support Services
Children & Culture,Children's Social Care,Children Looked After,LCS/Allowances-Accom,Leaving Care Financial Assistance - Supported Living,15/04/2020,5411787,964.28,JEM Support Services
Children & Culture,Children's Social Care,Children Looked After,LCS/Allowances-Accom,Leaving Care Financial Assistance - Supp Accom/Hous Rents,15/04/2020,5411788,"3,653.57",JEM Support Services
Children & Culture,Children's Social Care,Children Looked After,LCS/Allowances-Accom,Leaving Care Financial Assistance - Supported Living,15/04/2020,5411788,"1,107.14",JEM Support Services
Children & Culture,Children's Social Care,Children Looked After,LCS/Allowances-Accom,Leaving Care Financial Assistance - Supp Accom/Hous Rents,15/04/2020,5411789,"3,417.86",JEM Support Services
Children & Culture,Children's Social Care,Children Looked After,LCS/Allowances-Accom,Leaving Care Financial Assistance - Supported Living,15/04/2020,5411789,"1,035.71",JEM Support Services
Children & Culture,Children's Social Care,Children Looked After,LCS/Allowances-Accom,Leaving Care Financial Assistance - Supp Accom/Hous Rents,15/04/2020,5411791,"3,653.57",JEM Support Services
Children & Culture,Children's Social Care,Children Looked After,LCS/Allowances-Accom,Leaving Care Financial Assistance - Supported Living,15/04/2020,5411791,"1,107.14",JEM Support Services
Children & Culture,Children's Social Care,Children Looked After,Virtual School PPG,Agency Staff - Associations,15/04/2020,5412171,509.94,Academics ltd
Children & Culture,Children's Social Care,Children Looked After,Virtual School PPG,Agency Staff - Associations,15/04/2020,5412172,"1,274.85",Academics ltd
Children & Culture,Children's Social Care,Children Looked After,Virtual School PPG,Agency Staff - Associations,15/04/2020,5412173,509.88,Academics ltd
Children & Culture,Children's Social Care,Children Looked After,Virtual School PPG,Agency Staff - Associations,15/04/2020,5412175,764.91,Academics ltd
Children & Culture,Children's Social Care,Children Looked After,Virtual School PPG,Agency Staff - Associations,15/04/2020,5412176,764.91,Academics ltd
Children & Culture,Children's Social Care,Children Looked After,Virtual School PPG,Agency Staff - Associations,15/04/2020,5412177,"1,274.85",Academics ltd
Children & Culture,Children's Social Care,Children Looked After,Virtual School PPG,Agency Staff - Associations,15/04/2020,5412178,"1,274.85",Academics ltd
Children & Culture,Children's Social Care,Children Looked After,Leaving Care-UASC,Leaving Care Financial Assistance - Reg Plan Maint L-Allow,15/04/2020,5412206,256.86,Pangea Support Services
Children & Culture,Children's Social Care,Children Looked After,LCS/Allowances-Accom,Leaving Care Financial Assistance - Supp Accom/Hous Rents,15/04/2020,5412213,"1,328.57",Silver Birch Care LTD
Children & Culture,Children's Social Care,Children Looked After,LCS/Allowances-Accom,Leaving Care Financial Assistance - Supported Living,15/04/2020,5412214,"1,328.57",Silver Birch Care LTD
Children & Culture,Children's Social Care,Children Looked After,LCS/Allowances-Accom,Leaving Care Financial Assistance - Supp Accom/Hous Rents,15/04/2020,5412215,"1,242.86",Silver Birch Care LTD
Children & Culture,Children's Social Care,Children Looked After,LCS/Allowances-Accom,Leaving Care Financial Assistance - Supp Accom/Hous Rents,15/04/2020,5412507,"3,875.00",The Anchor Services-Semi Independent Living Ltd
Children & Culture,Children's Social Care,Children Looked After,LCS/Allowances-Accom,Leaving Care Financial Assistance - Supported Living,15/04/2020,5412507,265.00,The Anchor Services-Semi Independent Living Ltd
Children & Culture,Children's Social Care,Children Looked After,Virtual School PPG,Agency Staff - Associations,15/04/2020,5412538,"1,019.88",Academics ltd
Children & Culture,Children's Social Care,Children Looked After,LCS/Allowances-Accom,Leaving Care Financial Assistance - Supp Accom/Hous Rents,15/04/2020,5412544,"1,328.57",Silver Birch Care LTD
Children & Culture,Children's Social Care,Children Looked After,LCS/Allowances-Accom,Leaving Care Financial Assistance - Supported Living,15/04/2020,5412545,"1,242.86",Silver Birch Care LTD
Children & Culture,Children's Social Care,Children Looked After,Staying Put,Childrens Act Section 23 - Placement Fee,15/04/2020,5414335,"5,323.16",Integrated Fostering Services Ltd
Children & Culture,Education Services,Other Strategic Functions,Empty Properties,Services - Professional Fees - Consultants Fees,15/04/2020,5414943,"4,210.00",GERALD EVE LLP
Children & Culture,Children's Social Care,Service Strategy,Child Care M & A,Services - Professional Fees - Legal Fees/Expenses,15/04/2020,5416206,300.00,Anderson Browne Solicitors Ltd
Children & Culture,Children's Social Care,Children Looked After,S23 Fam Pl P&V-F/Care,Childrens Act Section 23 - Placement Fee,15/04/2020,5416270,784.00,Swiis Foster Care Limited
Children & Culture,Cultural and Related Services,Open Spaces,Mile End Park,Repairs and Maintenance - Responsive - General,15/04/2020,5416285,480.00,J&L Coster (Drainage) Ltd
Children & Culture,Cultural and Related Services,Open Spaces,Mile End Park,Repairs and Maintenance - Responsive - General,15/04/2020,5416286,"2,780.00",J&L Coster (Drainage) Ltd
Children & Culture,Children's Social Care,Family Support Services,IPST S17 NRPF,Childrens Act Section 17 - Other Placements Bed & Breakfast,15/04/2020,5416302,"1,960.00",Finefair Management
Children & Culture,Children's Social Care,Children Looked After,S23-Other-Semi-Ind. Unit,Childrens Act Section 23 - Placement Fee,15/04/2020,5416303,"2,129.71",Pangea Support Services
Children & Culture,Children's Social Care,Children Looked After,S23-Other-Semi-Ind. Unit,Childrens Act Section 23 - Placement Fee,15/04/2020,5416305,"2,125.66",Pangea Support Services
Children & Culture,Children's Social Care,Children Looked After,S23-Other-Semi-Ind. Unit,Childrens Act Section 23 - Placement Fee,15/04/2020,5416307,"2,430.82",Pangea Support Services
Children & Culture,Children's Social Care,Children Looked After,S23-Other-Semi-Ind. Unit,Childrens Act Section 23 - Placement Fee,15/04/2020,5416309,"1,904.72",Pangea Support Services
Children & Culture,Children's Social Care,Children Looked After,S23-Other-Semi-Ind. Unit,Childrens Act Section 23 - Placement Fee,15/04/2020,5416310,"1,879.72",Pangea Support Services
Children & Culture,Children's Social Care,Children Looked After,S23-Other-Semi-Ind. Unit,Childrens Act Section 23 - Placement Fee,15/04/2020,5416311,"1,879.72",Pangea Support Services
Children & Culture,Children's Social Care,Children Looked After,S23-Other-Semi-Ind. Unit,Childrens Act Section 23 - Placement Fee,15/04/2020,5416313,"2,766.86",Pangea Support Services
Children & Culture,Children's Social Care,Children Looked After,S23-Other-Semi-Ind. Unit,Childrens Act Section 23 - Placement Fee,15/04/2020,5416317,"1,879.72",Pangea Support Services
Children & Culture,Children's Social Care,Children Looked After,S23-Other-Semi-Ind. Unit,Childrens Act Section 23 - Placement Fee,15/04/2020,5416318,"2,903.39",Pangea Support Services
Children & Culture,Children's Social Care,Children Looked After,S23-Other-Semi-Ind. Unit,Childrens Act Section 23 - Placement Fee,15/04/2020,5416320,"1,904.71",Pangea Support Services
Children & Culture,Children's Social Care,Family Support Services,CNN Pool: Children Direct Paym,Social Care - Direct Payments,15/04/2020,5416374,"1,182.70",DH TOWER HAMLETS
Children & Culture,Children's Social Care,Children Looked After,Staying Put,Childrens Act Section 23 - Placement Fee,15/04/2020,5416589,"5,158.71",Integrated Fostering Services Ltd
Children & Culture,Education Services,Other Strategic Functions,High Needs Out Of Borough Special Schools,Third Party Payments - SEN Placement Funding,15/04/2020,5416631,"9,818.18",Cavendish School
Children & Culture,Education Services,Other Strategic Functions,High Needs Out Of Borough Special Schools,Third Party Payments - SEN Placement Funding,15/04/2020,5416632,"9,818.18",Cavendish School
Children & Culture,Education Services,Other Strategic Functions,High Needs Out Of Borough Special Schools,Third Party Payments - Payments to Schools,15/04/2020,5416633,"9,818.18",Cavendish School
Children & Culture,Children's Social Care,Children Looked After,S23-Other-Semi-Ind. Unit,Childrens Act Section 23 - Placement Fee,15/04/2020,5416658,"1,927.14",Pangea Support Services
Children & Culture,Children's Social Care,Children Looked After,S23-Other-Semi-Ind. Unit,Childrens Act Section 23 - Placement Fee,15/04/2020,5416659,"2,009.72",Pangea Support Services
Children & Culture,Children's Social Care,Children Looked After,S23-Other-Semi-Ind. Unit,Childrens Act Section 23 - Placement Fee,15/04/2020,5416660,"1,877.14",Pangea Support Services
Children & Culture,Children's Social Care,Children Looked After,S23-Other-Semi-Ind. Unit,Childrens Act Section 23 - Placement Fee,15/04/2020,5416665,"2,089.72",Pangea Support Services
Children & Culture,Children's Social Care,Children Looked After,S23-Other-Semi-Ind. Unit,Childrens Act Section 23 - Placement Fee,15/04/2020,5416666,"1,877.14",Pangea Support Services
Children & Culture,Children's Social Care,Children Looked After,S23-Other-Semi-Ind. Unit,Childrens Act Section 23 - Placement Fee,15/04/2020,5416668,"1,877.14",Pangea Support Services
Children & Culture,Children's Social Care,Children Looked After,S23-Other-Semi-Ind. Unit,Childrens Act Section 23 - Placement Fee,15/04/2020,5416671,"2,169.14",Pangea Support Services
Children & Culture,Children's Social Care,Children Looked After,S23-Other-Semi-Ind. Unit,Childrens Act Section 23 - Placement Fee,15/04/2020,5416672,"1,939.72",Pangea Support Services
Children & Culture,Children's Social Care,Children Looked After,S23-Other-Semi-Ind. Unit,Childrens Act Section 23 - Placement Fee,15/04/2020,5416673,"1,877.14",Pangea Support Services
Children & Culture,Children's Social Care,Children Looked After,S23-Other-Semi-Ind. Unit,Childrens Act Section 23 - Placement Fee,15/04/2020,5416676,"1,188.86",Pangea Support Services
Children & Culture,Children's Social Care,Children Looked After,S23-Other-Semi-Ind. Unit,Childrens Act Section 23 - Placement Fee,15/04/2020,5416683,"2,248.57",Pangea Support Services
Children & Culture,Children's Social Care,Children Looked After,S23-Other-Semi-Ind. Unit,Childrens Act Section 23 - Placement Fee,15/04/2020,5416692,"1,877.14",Pangea Support Services
Children & Culture,Children's Social Care,Children Looked After,S23-Other-Semi-Ind. Unit,Childrens Act Section 23 - Placement Fee,15/04/2020,5416693,"1,939.72",Pangea Support Services
Children & Culture,Children's Social Care,Children Looked After,S23-Other-Semi-Ind. Unit,Childrens Act Section 23 - Placement Fee,15/04/2020,5416694,980.00,Pangea Support Services
Children & Culture,Children's Social Care,Children Looked After,S23-Other-Semi-Ind. Unit,Childrens Act Section 23 - Placement Fee,15/04/2020,5416698,980.00,Pangea Support Services
Children & Culture,Children's Social Care,Children Looked After,S23-Other-Semi-Ind. Unit,Childrens Act Section 23 - Placement Fee,15/04/2020,5416699,"1,959.72",Pangea Support Services
Children & Culture,Children's Social Care,Children Looked After,S23-Other-Semi-Ind. Unit,Childrens Act Section 23 - Placement Fee,15/04/2020,5416700,"2,027.14",Pangea Support Services
Children & Culture,Children's Social Care,Children Looked After,S23-Other-Semi-Ind. Unit,Childrens Act Section 23 - Placement Fee,15/04/2020,5416701,"4,555.71",Pangea Support Services
Children & Culture,Children's Social Care,Children Looked After,Leaving Care-UASC,Leaving Care Financial Assistance - Supp Accom/Hous Rents,15/04/2020,5416791,"1,157.14",Pangea Support Services
Children & Culture,Children's Social Care,Children Looked After,Leaving Care-UASC,Leaving Care Financial Assistance - Reg Plan Maint L-Allow,15/04/2020,5416792,256.86,Pangea Support Services
Children & Culture,Children's Social Care,Children Looked After,Leaving Care-UASC,Leaving Care Financial Assistance - Supp Accom/Hous Rents,15/04/2020,5416792,"1,195.71",Pangea Support Services
Children & Culture,Children's Social Care,Children Looked After,S23-Other-Semi-Ind. Unit,Childrens Act Section 23 - Placement Fee,15/04/2020,5417447,"2,089.72",Pangea Support Services
Children & Culture,Children's Social Care,Children Looked After,S23-Other-Semi-Ind. Unit,Childrens Act Section 23 - Placement Fee,15/04/2020,5417448,"1,939.72",Pangea Support Services
Children & Culture,Children's Social Care,Children Looked After,S23-Other-Semi-Ind. Unit,Childrens Act Section 23 - Placement Fee,15/04/2020,5417449,"1,814.58",Pangea Support Services
Children & Culture,Children's Social Care,Children Looked After,S23-Other-Semi-Ind. Unit,Childrens Act Section 23 - Placement Fee,15/04/2020,5417450,"1,939.72",Pangea Support Services
Children & Culture,Children's Social Care,Children Looked After,S23-Other-Semi-Ind. Unit,Childrens Act Section 23 - Placement Fee,15/04/2020,5417451,"1,939.72",Pangea Support Services
Children & Culture,Children's Social Care,Children Looked After,S23-Other-Semi-Ind. Unit,Childrens Act Section 23 - Placement Fee,15/04/2020,5417452,"1,814.58",Pangea Support Services
Children & Culture,Children's Social Care,Children Looked After,S23-Other-Semi-Ind. Unit,Childrens Act Section 23 - Placement Fee,15/04/2020,5417466,"1,939.72",Pangea Support Services
Children & Culture,Children's Social Care,Children Looked After,S23-Other-Semi-Ind. Unit,Childrens Act Section 23 - Placement Fee,15/04/2020,5417467,"1,939.72",Pangea Support Services
Children & Culture,Children's Social Care,Children Looked After,S23-Other-Semi-Ind. Unit,Childrens Act Section 23 - Placement Fee,15/04/2020,5417468,250.28,Pangea Support Services
Children & Culture,Children's Social Care,Children Looked After,S23-Other-Semi-Ind. Unit,Childrens Act Section 23 - Placement Fee,15/04/2020,5417469,"1,939.72",Pangea Support Services
Children & Culture,Children's Social Care,Children Looked After,S23-Other-Semi-Ind. Unit,Childrens Act Section 23 - Placement Fee,15/04/2020,5417471,"1,063.00",Pangea Support Services
Children & Culture,Children's Social Care,Children Looked After,S23-Other-Semi-Ind. Unit,Childrens Act Section 23 - Placement Fee,15/04/2020,5417472,"5,614.14",Pangea Support Services
Children & Culture,Children's Social Care,Children Looked After,Leaving Care-UASC,Leaving Care Financial Assistance - Reg Plan Maint L-Allow,15/04/2020,5417474,256.86,Pangea Support Services
Children & Culture,Children's Social Care,Children Looked After,Leaving Care-UASC,Leaving Care Financial Assistance - Supp Accom/Hous Rents,15/04/2020,5417474,"1,195.71",Pangea Support Services
Children & Culture,Children's Social Care,Children Looked After,Leaving Care-UASC,Leaving Care Financial Assistance - Supp Accom/Hous Rents,15/04/2020,5417475,"1,118.57",Pangea Support Services
Children & Culture,Children's Social Care,Children Looked After,S23-Other-Semi-Ind. Unit,Childrens Act Section 23 - Placement Fee,15/04/2020,5417483,"2,019.72",Pangea Support Services
Children & Culture,Children's Social Care,Children Looked After,S23-Other-Semi-Ind. Unit,Childrens Act Section 23 - Placement Fee,15/04/2020,5417484,"1,478.50",Pangea Support Services
Children & Culture,Children's Social Care,Children Looked After,S23-Other-Semi-Ind. Unit,Childrens Act Section 23 - Placement Fee,15/04/2020,5417485,"4,176.29",Pangea Support Services
Children & Culture,Children's Social Care,Children Looked After,S23-Other-Semi-Ind. Unit,Childrens Act Section 23 - Placement Fee,15/04/2020,5417486,"4,466.06",Pangea Support Services
Children & Culture,Children's Social Care,Children Looked After,S23-Other-Semi-Ind. Unit,Childrens Act Section 23 - Placement Fee,15/04/2020,5417487,"1,939.72",Pangea Support Services
Children & Culture,Children's Social Care,Children Looked After,S23-Other-Semi-Ind. Unit,Childrens Act Section 23 - Placement Fee,15/04/2020,5417488,"1,939.72",Pangea Support Services
Children & Culture,Children's Social Care,Children Looked After,S23-Other-Semi-Ind. Unit,Childrens Act Section 23 - Placement Fee,15/04/2020,5417489,"1,877.14",Pangea Support Services
Children & Culture,Children's Social Care,Children Looked After,S23-Other-Semi-Ind. Unit,Childrens Act Section 23 - Placement Fee,15/04/2020,5417490,"1,939.72",Pangea Support Services
Children & Culture,Children's Social Care,Children Looked After,S23-Other-Semi-Ind. Unit,Childrens Act Section 23 - Placement Fee,15/04/2020,5417491,"1,939.72",Pangea Support Services
Children & Culture,Children's Social Care,Children Looked After,S23-Other-Semi-Ind. Unit,Childrens Act Section 23 - Placement Fee,15/04/2020,5417538,"1,985.72",Pangea Support Services
Children & Culture,Children's Social Care,Children Looked After,S23-Other-Semi-Ind. Unit,Childrens Act Section 23 - Placement Fee,15/04/2020,5417539,"1,939.72",Pangea Support Services
Children & Culture,Children's Social Care,Children Looked After,S23-Other-Semi-Ind. Unit,Childrens Act Section 23 - Placement Fee,15/04/2020,5417548,"2,019.72",Pangea Support Services
Children & Culture,Children's Social Care,Children Looked After,S23-Other-Semi-Ind. Unit,Childrens Act Section 23 - Placement Fee,15/04/2020,5417549,"1,939.72",Pangea Support Services
Children & Culture,Children's Social Care,Children Looked After,S23-Other-Semi-Ind. Unit,Childrens Act Section 23 - Placement Fee,15/04/2020,5417555,"1,353.85",Pangea Support Services
Children & Culture,Children's Social Care,Children Looked After,S23-Other-Semi-Ind. Unit,Childrens Act Section 23 - Placement Fee,15/04/2020,5417560,"4,707.57",Pangea Support Services
Children & Culture,Children's Social Care,Children Looked After,S23-Other-Semi-Ind. Unit,Childrens Act Section 23 - Placement Fee,15/04/2020,5417561,"1,366.71",Pangea Support Services
Children & Culture,Children's Social Care,Children Looked After,S23-Other-Semi-Ind. Unit,Childrens Act Section 23 - Placement Fee,15/04/2020,5417563,"4,252.00",Pangea Support Services
Children & Culture,Children's Social Care,Children Looked After,S23-Other-Semi-Ind. Unit,Childrens Act Section 23 - Placement Fee,15/04/2020,5417564,"4,707.57",Pangea Support Services
Children & Culture,Children's Social Care,Support Service and Management Costs,Sch. Meals A/c - C.F.S. Upper (Harley Grove),Kitchen Supplies - Food and Beverages,17/04/2020,5377390,"-1,076.64",Bewley's Tea & Coffee UK Ltd
Children & Culture,Children's Social Care,Children Looked After,S23-Other-Semi-Ind. Unit,Childrens Act Section 23 - Placement Fee,17/04/2020,5408480,"4,059.72",Alpha Care Service Ltd
Children & Culture,Children's Social Care,Children Looked After,LCS/Allowances-Accom,Leaving Care Financial Assistance - Supp Accom/Hous Rents,17/04/2020,5408481,"2,657.14",Alpha Care Service Ltd
Children & Culture,Children's Social Care,Children Looked After,LCS/Allowances-Accom,Leaving Care Financial Assistance - Supported Living,17/04/2020,5408481,"1,328.57",Alpha Care Service Ltd
Children & Culture,Children's Social Care,Children Looked After,S23 Fam Pl P&V-F/Care,Childrens Act Section 23 - Placement Fee,17/04/2020,5408705,"3,535.80",Select Fostercare Services Ltd
Children & Culture,Children's Social Care,Children Looked After,S23 Fam Pl P&V-F/Care,Childrens Act Section 23 - Placement Fee,17/04/2020,5408706,"3,535.80",Select Fostercare Services Ltd
Children & Culture,Education Services,Other Strategic Functions,SEN External Travel,Social Care - Day Care,17/04/2020,5408782,"1,470.00",Carebridge Staffing Ltd
Children & Culture,Education Services,Other Strategic Functions,SEN External Travel,Social Care - Day Care,17/04/2020,5408783,396.75,Carebridge Staffing Ltd
Children & Culture,Children's Social Care,Children Looked After,S23-Resi-P&V/OLA-Child Home,Childrens Act Section 23 - Placement Fee,17/04/2020,5408789,"6,320.00",Prestige Adolescent Care & Education Ltd
Children & Culture,Children's Social Care,Service Strategy,CSC Childrens Resources M & A,Training Expenses - Staff External Training (UK Based),17/04/2020,5408872,"1,985.50",AC Education
Children & Culture,Children's Social Care,Support Service and Management Costs,Swanlea,Kitchen Supplies - Food and Beverages,17/04/2020,5410630,929.86,William White Meats Ltd
Children & Culture,Children's Social Care,Support Service and Management Costs,Sch. Meals A/c - Central Production Unit,Kitchen Supplies - Food and Beverages,17/04/2020,5410633,979.11,William White Meats Ltd
Children & Culture,Children's Social Care,Children's and Young People's Safety,Child Protection Mgt & Admin,Meeting Expenses,17/04/2020,5410640,408.00,Account 3 Ltd
Children & Culture,Education Services,Early Years,Children Centre Central Team,Medical Requisites,17/04/2020,5410729,283.80,NHS SUPPLY CHAIN
Children & Culture,Children's Social Care,Support Service and Management Costs,Sch. Meals A/c - Bow School,Kitchen Supplies - Food and Beverages,17/04/2020,5410740,770.85,Tiffin Sandwiches
Children & Culture,Children's Social Care,Support Service and Management Costs,Sch. Meals A/c - C.F.S. Upper (Harley Grove),Kitchen Supplies - Food and Beverages,17/04/2020,5410741,567.00,Tiffin Sandwiches
